Workbook

Sheet 取扱説明
B1: 【取扱説明】
L2: ver.1.5改 | M2: by：にんにん
B3: ◆ | C3: 概要設定
C4: まずはじめに、名前、ハンデ者には"-"を事前に入力します。
C5: 基準点、ハンデ点はデフォルトのままで良いです。（２４０点まで対応）
C6: 開催日、対抗戦名を入力し、ルール（基準点）、会場名をプルダウンメニューから選んでください。
C7: 注）同姓同名の場合は違う名前にして登録お願いします。
C8: 例） 山田太郎A 山田太郎B
B10: ◆ | C10: list
C11: ラウンドテーブル表を設定します。（３人～１７人に対応） | H11: 16人・17人は新◯ｐの協力ｗ
B13: ◆ | C13: 一組
C14: 名前をプルダウンメニューから選択（１７人まで対応）
C15: 女子のハンデにも対応し名前左隣に"△"が表示されます。
C16: （ハンデ者は事前に概要設定の名前の右隣ハンデに”-”を選択してください。）
C17: 勝者は半角小文字"w"、敗者は得点を入力。（半角大文字"W"、全角小文字"ｗ"、全角大文字"Ｗ"は自動で半角小文字に変換）
C18: 新たにHRを入力出来る様にし、結果表に反映されます。
C19: 「入力アシスト機能」
C20: 負けスコア入力後”w”が自動表示、「Ctrl+q」は自分相手クリア、「Ctrl+f」は全てクリア、「Ctrl+k」は対戦マス目のみクリア
C21: 印刷する時はマス目以外の所でクリック（A1セル）、対戦相手のマゼンダ色が表示されるからです。
B23: ◆ | C23: RT
C24: 新機能、ラウンドテーブル表から節毎に対戦相手、ラベルを自動表示され、スコア、A・B、HRの入力が出来ます。
C25: 3人～17人対応 RT作成ボタンで対戦相手が表示されラベルも同時に作成されます。
C26: ※注）RT、一組で入力したスコアは消えます。
C27: RT作成ボタンを押す前に、1組の選手を登録すると人数が自動表示されます。（人数は入力しないで下さい。）
C28: 節数を入力しRT作成ボタンを押すと、入力節まで表示されます。（”９９”と入力すると全節が表示され”０”だと全節クリアされます。）
C29: スコア入力後、1組へ反映ボタンを押すと、1組にスコアが反映されます。※注）１組で入力したスコアは消えます。
C30: １組からRTへの反映は出来ません。
C31: 敗者側のスコアを入力すると相手側に”ｗ”が自動表示されます。
C32: 一組および、RT画面からスコアを入力する場合はどちらか一方のみにして下さい。（結果表はどちらで入力しても同じです。）
B34: ◆ | C34: ラベル（運営カード）
C35: 運営カードシートで運営カードを印刷してください。
C36: A6またはハガキサイズで印刷されます。（offes２００７は大丈夫ですが、２０１３はページがうまくいかないみたい？）
B38: ◆ | C38: 結果
B39: 順位、名前、W数、L数、TP、LP、HRが集計されます。
B40: HR者の最高得点者には点数に色が表示されます。
B41: 「順位判定」
B42: W数多い＞TP多い（ハンデに対応）＞総失点少ない(”w”を除いた合計、又失点のハンデは未対応)」で判定
B43: 同率の場合は手入力でお願いします。
C45: 女子のハンデにも対応しました。（１組および、結果のＴＰの内訳は、横合計＊180/140 "w"はハンデ点とします。）
C46: 例）
C47: 花子 △ | D47: （ハンデ者） | E47: w 100 | F47: w 50 | G47: → | H47: （140＋100＋140＋50）＊180/140＝552点 （小数点以下切り捨て）
C48: 太郎 | E48: w 100 | F48: w 50 | G48: → | H48: （180＋100＋180＋50）＊180/180＝510点 （小数点以下切り捨て）

Sheet 概要設定
J1: 名 前 | K1: ハンデ | L1: 基準点数 | M1: ハンデ点数
A2: 開催日 | B2: 2016 | C2: 年 | D2: 3 | E2: 月 | F2: 13 | G2: 日 | J2: 山田 晋之 | L2: 120 | M2: 100
J3: 吉向 | L3: 160 | M3: 120
A4: 試合名 | B4: 京奈対抗戦 | J4: 金澤 | L4: 180 | M4: 140
J5: 白戸 | L5: 240 | M5: 200
A6: ルール | B6: 180 | C6: 点 | D6: コールショット | J6: 近藤
J7: 斎藤裕児
A8: 会場名 | B8: キングスポット | J8: 斎藤大輔
J9: 長谷川
J10: 宮野 | K10: -
B11: 会 場 | J11: 植田
B12: トップガン | J12: 谷野
B13: キングスポット | J13: 水田
B14: プールギャング | J14: 山田晃司
J15: 鷲尾
J16: 岩本

Sheet list
B1: 3 | C1: 人 | G1: 4 | H1: 人 | L1: 5 | M1: 人 | Q1: 6 | R1: 人 | V1: 7 | W1: 人 | AA1: 8 | AB1: 人 | AF1: 9 | AG1: 人 | AK1: 10 | AL1: 人 | AP1: 11 | AQ1: 人 | AU1: 12 | AV1: 人 | AZ1: 13 | BA1: 人 | BE1: 14 | BF1: 人 | BJ1: 15 | BK1: 人 | BO1: 16 | BP1: 人 | BT1: 17 | BU1: 人
A2: 1 | B2: =A2+1 -> 2 | C2: =B2+1 -> 3 | D2: =C2+1 -> 4 | E2: 5 | F2: 6 | G2: 7 | H2: 8 | I2: 9 | J2: 10 | K2: 11 | L2: 12 | M2: 13 | N2: 14 | O2: 15 | P2: 16 | Q2: 17 | R2: 18 | S2: 19 | T2: 20 | U2: 21 | V2: 22 | W2: 23 | X2: 24 | Y2: 25 | Z2: 26 | AA2: 27 | AB2: 28 | AC2: 29 | AD2: 30 | AE2: 31 | AF2: 32 | AG2: 33 | AH2: 34 | AI2: 35 | AJ2: 36 | AK2: 37 | AL2: 38 | AM2: 39 | AN2: 40 | AO2: 41 | AP2: 42 | AQ2: 43 | AR2: 44 | AS2: 45 | AT2: 46 | AU2: 47 | AV2: 48 | AW2: 49 | AX2: 50 | AY2: 51 | AZ2: 52 | BA2: 53 | BB2: 54 | BC2: 55 | BD2: 56 | BE2: 57 | BF2: 58 | BG2: 59 | BH2: =BG2+1 -> 60 | BI2: =BH2+1 -> 61 | BJ2: =BI2+1 -> 62 | BK2: =BJ2+1 -> 63 | BL2: =BK2+1 -> 64 | BM2: =BL2+1 -> 65 | BN2: =BM2+1 -> 66 | BO2: =BN2+1 -> 67 | BP2: =BO2+1 -> 68 | BQ2: =BP2+1 -> 69 | BR2: =BQ2+1 -> 70 | BS2: =BR2+1 -> 71 | BT2: =BS2+1 -> 72 | BU2: =BT2+1 -> 73 | BV2: =BU2+1 -> 74 | BW2: 75
B3: 一節 | E3: 1 | G3: 一節 | J3: 1 | L3: 一節 | O3: 1 | Q3: 一節 | T3: 1 | V3: 一節 | Y3: 1 | AA3: 一節 | AD3: 1 | AF3: 一節 | AI3: 1 | AK3: 一節 | AN3: 1 | AP3: 一節 | AS3: 1 | AU3: 一節 | AX3: 1 | AZ3: 一節 | BC3: 1 | BE3: 一節 | BH3: 1 | BJ3: 一節 | BM3: 1 | BO3: 一節 | BR3: 1 | BT3: 一節 | BW3: 1
A4: 1 | B4: 2 | C4: - | D4: 3 | E4: 1 | F4: 1 | G4: 2 | H4: - | I4: 3 | J4: 1 | K4: 1 | L4: 2 | M4: - | N4: 5 | O4: 1 | P4: 1 | Q4: 3 | R4: - | S4: 4 | T4: 1 | U4: 1 | V4: 2 | W4: - | X4: 4 | Y4: 1 | Z4: 1 | AA4: 4 | AB4: - | AC4: 5 | AD4: 1 | AE4: 1 | AF4: 2 | AG4: - | AH4: 4 | AI4: 1 | AJ4: 1 | AK4: 5 | AL4: - | AM4: 6 | AN4: 1 | AO4: 1 | AP4: 2 | AQ4: - | AR4: 4 | AS4: 1 | AT4: 1 | AU4: 6 | AV4: - | AW4: 7 | AX4: 1 | AY4: 1 | AZ4: 2 | BA4: - | BB4: 4 | BC4: 1 | BD4: 1 | BE4: 7 | BF4: - | BG4: 8 | BH4: 1 | BI4: 1 | BJ4: 2 | BK4: - | BL4: 4 | BM4: 1 | BN4: 1 | BO4: 8 | BP4: - | BQ4: 9 | BR4: 1 | BS4: 1 | BT4: 2 | BU4: - | BV4: 4 | BW4: 1
A5: =A4+1 -> 2 | B5: 1 | C5: - | D5: 3 | E5: 1 | F5: =F4+1 -> 2 | G5: 1 | H5: - | I5: 4 | J5: 1 | K5: =K4+1 -> 2 | L5: 3 | M5: - | N5: 4 | O5: 1 | P5: 2 | Q5: 2 | R5: - | S5: 5 | T5: 1 | U5: 2 | V5: 3 | W5: - | X5: 6 | Y5: 1 | Z5: 2 | AA5: 3 | AB5: - | AC5: 6 | AD5: 1 | AE5: 2 | AF5: 3 | AG5: - | AH5: 6 | AI5: 1 | AJ5: 2 | AK5: 4 | AL5: - | AM5: 7 | AN5: 1 | AO5: 2 | AP5: 3 | AQ5: - | AR5: 6 | AS5: 1 | AT5: 2 | AU5: 5 | AV5: - | AW5: 8 | AX5: 1 | AY5: 2 | AZ5: 3 | BA5: - | BB5: 6 | BC5: 1 | BD5: 2 | BE5: 6 | BF5: - | BG5: 9 | BH5: 1 | BI5: 2 | BJ5: 3 | BK5: - | BL5: 6 | BM5: 1 | BN5: 2 | BO5: 7 | BP5: - | BQ5: 10 | BR5: 1 | BS5: 2 | BT5: 3 | BU5: - | BV5: 6 | BW5: 1
A6: =A5+1 -> 3 | B6: 1 | C6: - | D6: 2 | E6: 1 | F6: =F5+1 -> 3 | G6: 4 | H6: - | I6: 2 | J6: 1 | K6: =K5+1 -> 3 | L6: 1 | M6: - | N6: 5 | O6: 1 | P6: 3 | Q6: 1 | R6: - | S6: 6 | T6: 1 | U6: 3 | V6: 5 | W6: - | X6: 7 | Y6: 1 | Z6: 3 | AA6: 2 | AB6: - | AC6: 7 | AD6: 1 | AE6: 3 | AF6: 5 | AG6: - | AH6: 8 | AI6: 1 | AJ6: 3 | AK6: 3 | AL6: - | AM6: 8 | AN6: 1 | AO6: 3 | AP6: 5 | AQ6: - | AR6: 8 | AS6: 1 | AT6: 3 | AU6: 4 | AV6: - | AW6: 9 | AX6: 1 | AY6: 3 | AZ6: 5 | BA6: - | BB6: 8 | BC6: 1 | BD6: 3 | BE6: 5 | BF6: - | BG6: 10 | BH6: 1 | BI6: 3 | BJ6: 5 | BK6: - | BL6: 8 | BM6: 1 | BN6: 3 | BO6: 6 | BP6: - | BQ6: 11 | BR6: 1 | BS6: 3 | BT6: 5 | BU6: - | BV6: 8 | BW6: 1
F7: 4 | G7: 1 | H7: - | I7: 3 | J7: 1 | K7: 4 | L7: 3 | M7: - | N7: 2 | O7: 1 | Q7: 二節 | T7: 2 | U7: 4 | V7: 4 | W7: - | X7: 1 | Y7: 1 | Z7: 4 | AA7: 1 | AB7: - | AC7: 8 | AD7: 1 | AE7: 4 | AF7: 7 | AG7: - | AH7: 9 | AI7: 1 | AJ7: 4 | AK7: 2 | AL7: - | AM7: 9 | AN7: 1 | AO7: 4 | AP7: 7 | AQ7: - | AR7: 10 | AS7: 1 | AT7: 4 | AU7: 3 | AV7: - | AW7: 10 | AX7: 1 | AY7: 4 | AZ7: 10 | BA7: - | BB7: 7 | BC7: 1 | BD7: 4 | BE7: 4 | BF7: - | BG7: 11 | BH7: 1 | BI7: 4 | BJ7: 7 | BK7: - | BL7: 10 | BM7: 1 | BN7: 4 | BO7: 5 | BP7: - | BQ7: 12 | BR7: 1 | BS7: 4 | BT7: 7 | BU7: - | BV7: 10 | BW7: 1
F8: 5 | G8: 3 | H8: - | I8: 4 | J8: 1 | K8: 5 | L8: 1 | M8: - | N8: 4 | O8: 1 | P8: 4 | Q8: 2 | R8: - | S8: 3 | T8: 2 | U8: 5 | V8: 2 | W8: - | X8: 6 | Y8: 1 | AA8: 二節 | AD8: 2 | AE8: 5 | AF8: 4 | AG8: - | AH8: 1 | AI8: 1 | AJ8: 5 | AK8: 1 | AL8: - | AM8: 10 | AN8: 1 | AO8: 5 | AP8: 9 | AQ8: - | AR8: 11 | AS8: 1 | AT8: 5 | AU8: 2 | AV8: - | AW8: 11 | AX8: 1 | AY8: 5 | AZ8: 9 | BA8: - | BB8: 12 | BC8: 1 | BD8: 5 | BE8: 3 | BF8: - | BG8: 12 | BH8: 1 | BI8: 5 | BJ8: 9 | BK8: - | BL8: 12 | BM8: 1 | BN8: 5 | BO8: 4 | BP8: - | BQ8: 13 | BR8: 1 | BS8: 5 | BT8: 9 | BU8: - | BV8: 12 | BW8: 1
F9: 6 | G9: 1 | H9: - | I9: 2 | J9: 1 | K9: 6 | L9: 3 | M9: - | N9: 5 | O9: 1 | P9: 5 | Q9: 6 | R9: - | S9: 4 | T9: 2 | U9: 6 | V9: 3 | W9: - | X9: 7 | Y9: 1 | Z9: 5 | AA9: 3 | AB9: - | AC9: 4 | AD9: 2 | AE9: 6 | AF9: 2 | AG9: - | AH9: 6 | AI9: 1 | AK9: 二節 | AN9: 2 | AO9: 6 | AP9: 4 | AQ9: - | AR9: 1 | AS9: 1 | AT9: 6 | AU9: 1 | AV9: - | AW9: 12 | AX9: 1 | AY9: 6 | AZ9: 11 | BA9: - | BB9: 13 | BC9: 1 | BD9: 6 | BE9: 2 | BF9: - | BG9: 13 | BH9: 1 | BI9: 6 | BJ9: 11 | BK9: - | BL9: 14 | BM9: 1 | BN9: 6 | BO9: 3 | BP9: - | BQ9: 14 | BR9: 1 | BS9: 6 | BT9: 11 | BU9: - | BV9: 14 | BW9: 1
K10: 7 | L10: 4 | M10: - | N10: 2 | O10: 1 | P10: 6 | Q10: 1 | R10: - | S10: 5 | T10: 2 | U10: 7 | V10: 1 | W10: - | X10: 5 | Y10: 1 | Z10: 6 | AA10: 2 | AB10: - | AC10: 5 | AD10: 2 | AE10: 7 | AF10: 3 | AG10: - | AH10: 8 | AI10: 1 | AJ10: 6 | AK10: 4 | AL10: - | AM10: 5 | AN10: 2 | AO10: 7 | AP10: 2 | AQ10: - | AR10: 6 | AS10: 1 | AU10: 二節 | AX10: 2 | AY10: 7 | AZ10: 4 | BA10: - | BB10: 1 | BC10: 1 | BD10: 7 | BE10: 1 | BF10: - | BG10: 14 | BH10: 1 | BI10: 7 | BJ10: 13 | BK10: - | BL10: 15 | BM10: 1 | BN10: 7 | BO10: 2 | BP10: - | BQ10: 15 | BR10: 1 | BS10: 7 | BT10: 13 | BU10: - | BV10: 16 | BW10: 1
K11: 8 | L11: 3 | M11: - | N11: 1 | O11: 1 | Q11: 三節 | T11: 3 | V11: 二節 | Y11: 2 | Z11: 7 | AA11: 8 | AB11: - | AC11: 6 | AD11: 2 | AE11: 8 | AF11: 5 | AG11: - | AH11: 9 | AI11: 1 | AJ11: 7 | AK11: 3 | AL11: - | AM11: 6 | AN11: 2 | AO11: 8 | AP11: 3 | AQ11: - | AR11: 8 | AS11: 1 | AT11: 7 | AU11: 5 | AV11: - | AW11: 6 | AX11: 2 | AY11: 8 | AZ11: 2 | BA11: - | BB11: 6 | BC11: 1 | BE11: 二節 | BH11: 2 | BI11: 8 | BJ11: 4 | BK11: - | BL11: 1 | BM11: 1 | BN11: 8 | BO11: 1 | BP11: - | BQ11: 16 | BR11: 1 | BS11: 8 | BT11: 15 | BU11: - | BV11: 17 | BW11: 1
K12: 9 | L12: 4 | M12: - | N12: 5 | O12: 1 | P12: 7 | Q12: 6 | R12: - | S12: 2 | T12: 3 | U12: 8 | V12: 4 | W12: - | X12: 6 | Y12: 2 | Z12: 8 | AA12: 1 | AB12: - | AC12: 7 | AD12: 2 | AE12: 9 | AF12: 1 | AG12: - | AH12: 7 | AI12: 1 | AJ12: 8 | AK12: 2 | AL12: - | AM12: 7 | AN12: 2 | AO12: 9 | AP12: 5 | AQ12: - | AR12: 10 | AS12: 1 | AT12: 8 | AU12: 4 | AV12: - | AW12: 7 | AX12: 2 | AY12: 9 | AZ12: 3 | BA12: - | BB12: 8 | BC12: 1 | BD12: 8 | BE12: 6 | BF12: - | BG12: 7 | BH12: 2 | BI12: 9 | BJ12: 2 | BK12: - | BL12: 6 | BM12: 1 | BO12: 二節 | BR12: 2 | BS12: 9 | BT12: 4 | BU12: - | BV12: 1 | BW12: 1
K13: 10 | L13: 1 | M13: - | N13: 2 | O13: 1 | P13: 8 | Q13: 5 | R13: - | S13: 3 | T13: 3 | U13: 9 | V13: 2 | W13: - | X13: 7 | Y13: 2 | AA13: 三節 | AD13: 3 | AF13: 二節 | AI13: 2 | AJ13: 9 | AK13: 10 | AL13: - | AM13: 8 | AN13: 2 | AO13: 10 | AP13: 7 | AQ13: - | AR13: 11 | AS13: 1 | AT13: 9 | AU13: 3 | AV13: - | AW13: 8 | AX13: 2 | AY13: 10 | AZ13: 5 | BA13: - | BB13: 10 | BC13: 1 | BD13: 9 | BE13: 5 | BF13: - | BG13: 8 | BH13: 2 | BI13: 10 | BJ13: 3 | BK13: - | BL13: 8 | BM13: 1 | BN13: 9 | BO13: 7 | BP13: - | BQ13: 8 | BR13: 2 | BS13: 10 | BT13: 2 | BU13: - | BV13: 6 | BW13: 1
P14: 9 | Q14: 1 | R14: - | S14: 4 | T14: 3 | U14: 10 | V14: 3 | W14: - | X14: 5 | Y14: 2 | Z14: 9 | AA14: 2 | AB14: - | AC14: 3 | AD14: 3 | AE14: 10 | AF14: 4 | AG14: - | AH14: 6 | AI14: 2 | AJ14: 10 | AK14: 1 | AL14: - | AM14: 9 | AN14: 2 | AO14: 11 | AP14: 1 | AQ14: - | AR14: 9 | AS14: 1 | AT14: 10 | AU14: 2 | AV14: - | AW14: 9 | AX14: 2 | AY14: 11 | AZ14: 7 | BA14: - | BB14: 12 | BC14: 1 | BD14: 10 | BE14: 4 | BF14: - | BG14: 9 | BH14: 2 | BI14: 11 | BJ14: 5 | BK14: - | BL14: 10 | BM14: 1 | BN14: 10 | BO14: 6 | BP14: - | BQ14: 9 | BR14: 2 | BS14: 11 | BT14: 3 | BU14: - | BV14: 8 | BW14: 1
Q15: 四節 | T15: 4 | U15: 11 | V15: 6 | W15: - | X15: 1 | Y15: 2 | Z15: 10 | AA15: 8 | AB15: - | AC15: 4 | AD15: 3 | AE15: 11 | AF15: 2 | AG15: - | AH15: 8 | AI15: 2 | AK15: 三節 | AN15: 3 | AP15: 二節 | AS15: 2 | AT15: 11 | AU15: 12 | AV15: - | AW15: 10 | AX15: 2 | AY15: 12 | AZ15: 9 | BA15: - | BB15: 13 | BC15: 1 | BD15: 11 | BE15: 3 | BF15: - | BG15: 10 | BH15: 2 | BI15: 12 | BJ15: 7 | BK15: - | BL15: 12 | BM15: 1 | BN15: 11 | BO15: 5 | BP15: - | BQ15: 10 | BR15: 2 | BS15: 12 | BT15: 5 | BU15: - | BV15: 10 | BW15: 1
P16: 10 | Q16: 5 | R16: - | S16: 6 | T16: 4 | U16: 12 | V16: 4 | W16: - | X16: 7 | Y16: 2 | Z16: 11 | AA16: 7 | AB16: - | AC16: 5 | AD16: 3 | AE16: 12 | AF16: 3 | AG16: - | AH16: 9 | AI16: 2 | AJ16: 11 | AK16: 3 | AL16: - | AM16: 4 | AN16: 3 | AO16: 12 | AP16: 4 | AQ16: - | AR16: 6 | AS16: 2 | AT16: 12 | AU16: 1 | AV16: - | AW16: 11 | AX16: 2 | AY16: 13 | AZ16: 1 | BA16: - | BB16: 11 | BC16: 1 | BD16: 12 | BE16: 2 | BF16: - | BG16: 11 | BH16: 2 | BI16: 13 | BJ16: 9 | BK16: - | BL16: 14 | BM16: 1 | BN16: 12 | BO16: 4 | BP16: - | BQ16: 11 | BR16: 2 | BS16: 13 | BT16: 7 | BU16: - | BV16: 12 | BW16: 1
P17: 11 | Q17: 4 | R17: - | S17: 2 | T17: 4 | U17: 13 | V17: 2 | W17: - | X17: 5 | Y17: 2 | Z17: 12 | AA17: 1 | AB17: - | AC17: 6 | AD17: 3 | AE17: 13 | AF17: 5 | AG17: - | AH17: 7 | AI17: 2 | AJ17: 12 | AK17: 2 | AL17: - | AM17: 5 | AN17: 3 | AO17: 13 | AP17: 2 | AQ17: - | AR17: 8 | AS17: 2 | AU17: 三節 | AX17: 3 | AZ17: 二節 | BC17: 2 | BD17: 13 | BE17: 14 | BF17: - | BG17: 12 | BH17: 2 | BI17: 14 | BJ17: 11 | BK17: - | BL17: 15 | BM17: 1 | BN17: 13 | BO17: 3 | BP17: - | BQ17: 12 | BR17: 2 | BS17: 14 | BT17: 9 | BU17: - | BV17: 14 | BW17: 1
P18: 12 | Q18: 1 | R18: - | S18: 3 | T18: 4 | U18: 14 | V18: 1 | W18: - | X18: 3 | Y18: 2 | AA18: 四節 | AD18: 4 | AE18: 14 | AF18: 6 | AG18: - | AH18: 1 | AI18: 2 | AJ18: 13 | AK18: 10 | AL18: - | AM18: 6 | AN18: 3 | AO18: 14 | AP18: 3 | AQ18: - | AR18: 10 | AS18: 2 | AT18: 13 | AU18: 4 | AV18: - | AW18: 5 | AX18: 3 | AY18: 14 | AZ18: 4 | BA18: - | BB18: 6 | BC18: 2 | BD18: 14 | BE18: 1 | BF18: - | BG18: 13 | BH18: 2 | BI18: 15 | BJ18: 1 | BK18: - | BL18: 13 | BM18: 1 | BN18: 14 | BO18: 2 | BP18: - | BQ18: 13 | BR18: 2 | BS18: 15 | BT18: 11 | BU18: - | BV18: 16 | BW18: 1
Q19: 五節 | T19: 5 | V19: 三節 | Y19: 3 | Z19: 13 | AA19: 8 | AB19: - | AC19: 2 | AD19: 4 | AE19: 15 | AF19: 4 | AG19: - | AH19: 8 | AI19: 2 | AJ19: 14 | AK19: 9 | AL19: - | AM19: 7 | AN19: 3 | AO19: 15 | AP19: 5 | AQ19: - | AR19: 11 | AS19: 2 | AT19: 14 | AU19: 3 | AV19: - | AW19: 6 | AX19: 3 | AY19: 15 | AZ19: 2 | BA19: - | BB19: 8 | BC19: 2 | BE19: 三節 | BH19: 3 | BJ19: 二節 | BM19: 2 | BN19: 15 | BO19: 16 | BP19: - | BQ19: 14 | BR19: 2 | BS19: 16 | BT19: 13 | BU19: - | BV19: 17 | BW19: 1
P20: 13 | Q20: 4 | R20: - | S20: 5 | T20: 5 | U20: 15 | V20: 6 | W20: - | X20: 7 | Y20: 3 | Z20: 14 | AA20: 7 | AB20: - | AC20: 3 | AD20: 4 | AE20: 16 | AF20: 2 | AG20: - | AH20: 9 | AI20: 2 | AJ20: 15 | AK20: 1 | AL20: - | AM20: 8 | AN20: 3 | AO20: 16 | AP20: 7 | AQ20: - | AR20: 9 | AS20: 2 | AT20: 15 | AU20: 2 | AV20: - | AW20: 7 | AX20: 3 | AY20: 16 | AZ20: 3 | BA20: - | BB20: 10 | BC20: 2 | BD20: 15 | BE20: 5 | BF20: - | BG20: 6 | BH20: 3 | BI20: 16 | BJ20: 4 | BK20: - | BL20: 6 | BM20: 2 | BN20: 16 | BO20: 1 | BP20: - | BQ20: 15 | BR20: 2 | BS20: 17 | BT20: 1 | BU20: - | BV20: 15 | BW20: 1
P21: 14 | Q21: 3 | R21: - | S21: 6 | T21: 5 | U21: 16 | V21: 4 | W21: - | X21: 5 | Y21: 3 | Z21: 15 | AA21: 6 | AB21: - | AC21: 4 | AD21: 4 | AE21: 17 | AF21: 3 | AG21: - | AH21: 7 | AI21: 2 | AK21: 四節 | AN21: 4 | AO21: 17 | AP21: 6 | AQ21: - | AR21: 1 | AS21: 2 | AT21: 16 | AU21: 12 | AV21: - | AW21: 8 | AX21: 3 | AY21: 17 | AZ21: 5 | BA21: - | BB21: 12 | BC21: 2 | BD21: 16 | BE21: 4 | BF21: - | BG21: 7 | BH21: 3 | BI21: 17 | BJ21: 2 | BK21: - | BL21: 8 | BM21: 2 | BO21: 三節 | BR21: 3 | BT21: 二節 | BW21: 2
P22: 15 | Q22: 1 | R22: - | S22: 2 | T22: 5 | U22: 17 | V22: 2 | W22: - | X22: 3 | Y22: 3 | Z22: 16 | AA22: 1 | AB22: - | AC22: 5 | AD22: 4 | AE22: 18 | AF22: 1 | AG22: - | AH22: 5 | AI22: 2 | AJ22: 16 | AK22: 2 | AL22: - | AM22: 3 | AN22: 4 | AO22: 18 | AP22: 4 | AQ22: - | AR22: 8 | AS22: 2 | AT22: 17 | AU22: 11 | AV22: - | AW22: 9 | AX22: 3 | AY22: 18 | AZ22: 7 | BA22: - | BB22: 13 | BC22: 2 | BD22: 17 | BE22: 3 | BF22: - | BG22: 8 | BH22: 3 | BI22: 18 | BJ22: 3 | BK22: - | BL22: 10 | BM22: 2 | BN22: 17 | BO22: 6 | BP22: - | BQ22: 7 | BR22: 3 | BS22: 18 | BT22: 4 | BU22: - | BV22: 6 | BW22: 2
U23: 18 | V23: 1 | W23: - | X23: 7 | Y23: 3 | AA23: 五節 | AD23: 5 | AF23: 三節 | AI23: 3 | AJ23: 17 | AK23: 10 | AL23: - | AM23: 4 | AN23: 4 | AO23: 19 | AP23: 2 | AQ23: - | AR23: 10 | AS23: 2 | AT23: 18 | AU23: 1 | AV23: - | AW23: 10 | AX23: 3 | AY23: 19 | AZ23: 9 | BA23: - | BB23: 11 | BC23: 2 | BD23: 18 | BE23: 2 | BF23: - | BG23: 9 | BH23: 3 | BI23: 19 | BJ23: 5 | BK23: - | BL23: 12 | BM23: 2 | BN23: 18 | BO23: 5 | BP23: - | BQ23: 8 | BR23: 3 | BS23: 19 | BT23: 2 | BU23: - | BV23: 8 | BW23: 2
U24: 19 | V24: 5 | W24: - | X24: 6 | Y24: 3 | Z24: 17 | AA24: 7 | AB24: - | AC24: 8 | AD24: 5 | AE24: 19 | AF24: 6 | AG24: - | AH24: 8 | AI24: 3 | AJ24: 18 | AK24: 9 | AL24: - | AM24: 5 | AN24: 4 | AO24: 20 | AP24: 3 | AQ24: - | AR24: 11 | AS24: 2 | AU24: 四節 | AX24: 4 | AY24: 20 | AZ24: 6 | BA24: - | BB24: 1 | BC24: 2 | BD24: 19 | BE24: 14 | BF24: - | BG24: 10 | BH24: 3 | BI24: 20 | BJ24: 7 | BK24: - | BL24: 14 | BM24: 2 | BN24: 19 | BO24: 4 | BP24: - | BQ24: 9 | BR24: 3 | BS24: 20 | BT24: 3 | BU24: - | BV24: 10 | BW24: 2
U25: 20 | V25: 3 | W25: - | X25: 4 | Y25: 3 | Z25: 18 | AA25: 6 | AB25: - | AC25: 2 | AD25: 5 | AE25: 20 | AF25: 4 | AG25: - | AH25: 9 | AI25: 3 | AJ25: 19 | AK25: 8 | AL25: - | AM25: 6 | AN25: 4 | AO25: 21 | AP25: 5 | AQ25: - | AR25: 9 | AS25: 2 | AT25: 19 | AU25: 3 | AV25: - | AW25: 4 | AX25: 4 | AY25: 21 | AZ25: 4 | BA25: - | BB25: 8 | BC25: 2 | BD25: 20 | BE25: 13 | BF25: - | BG25: 11 | BH25: 3 | BI25: 21 | BJ25: 9 | BK25: - | BL25: 15 | BM25: 2 | BN25: 20 | BO25: 3 | BP25: - | BQ25: 10 | BR25: 3 | BS25: 21 | BT25: 5 | BU25: - | BV25: 12 | BW25: 2
A26: ラウンドテーブル表 | U26: 21 | V26: 1 | W26: - | X26: 2 | Y26: 3 | Z26: 19 | AA26: 5 | AB26: - | AC26: 3 | AD26: 5 | AE26: 21 | AF26: 2 | AG26: - | AH26: 7 | AI26: 3 | AJ26: 20 | AK26: 1 | AL26: - | AM26: 7 | AN26: 4 | AO26: 22 | AP26: 1 | AQ26: - | AR26: 7 | AS26: 2 | AT26: 20 | AU26: 2 | AV26: - | AW26: 5 | AX26: 4 | AY26: 22 | AZ26: 2 | BA26: - | BB26: 10 | BC26: 2 | BD26: 21 | BE26: 1 | BF26: - | BG26: 12 | BH26: 3 | BI26: 22 | BJ26: 11 | BK26: - | BL26: 13 | BM26: 2 | BN26: 21 | BO26: 2 | BP26: - | BQ26: 11 | BR26: 3 | BS26: 22 | BT26: 7 | BU26: - | BV26: 14 | BW26: 2
B27: 人 | C27: 数 | Z27: 20 | AA27: 1 | AB27: - | AC27: 4 | AD27: 5 | AE27: 22 | AF27: 3 | AG27: - | AH27: 5 | AI27: 3 | AK27: 五節 | AN27: 5 | AP27: 三節 | AS27: 3 | AT27: 21 | AU27: 12 | AV27: - | AW27: 6 | AX27: 4 | AY27: 23 | AZ27: 3 | BA27: - | BB27: 12 | BC27: 2 | BE27: 四節 | BH27: 4 | BI27: 23 | BJ27: 6 | BK27: - | BL27: 1 | BM27: 2 | BN27: 22 | BO27: 16 | BP27: - | BQ27: 12 | BR27: 3 | BS27: 23 | BT27: 9 | BU27: - | BV27: 16 | BW27: 2
B28: 列セル数 | AA28: 六節 | AD28: 6 | AE28: 23 | AF28: 8 | AG28: - | AH28: 1 | AI28: 3 | AJ28: 21 | AK28: 10 | AL28: - | AM28: 2 | AN28: 5 | AO28: 23 | AP28: 6 | AQ28: - | AR28: 8 | AS28: 3 | AT28: 22 | AU28: 11 | AV28: - | AW28: 7 | AX28: 4 | AY28: 24 | AZ28: 5 | BA28: - | BB28: 13 | BC28: 2 | BD28: 22 | BE28: 4 | BF28: - | BG28: 5 | BH28: 4 | BI28: 24 | BJ28: 4 | BK28: - | BL28: 8 | BM28: 2 | BN28: 23 | BO28: 15 | BP28: - | BQ28: 13 | BR28: 3 | BS28: 24 | BT28: 11 | BU28: - | BV28: 17 | BW28: 2
B29: 節タイトル | Z29: 21 | AA29: 6 | AB29: - | AC29: 7 | AD29: 6 | AE29: 24 | AF29: 6 | AG29: - | AH29: 9 | AI29: 3 | AJ29: 22 | AK29: 9 | AL29: - | AM29: 3 | AN29: 5 | AO29: 24 | AP29: 4 | AQ29: - | AR29: 10 | AS29: 3 | AT29: 23 | AU29: 10 | AV29: - | AW29: 8 | AX29: 4 | AY29: 25 | AZ29: 7 | BA29: - | BB29: 11 | BC29: 2 | BD29: 23 | BE29: 3 | BF29: - | BG29: 6 | BH29: 4 | BI29: 25 | BJ29: 2 | BK29: - | BL29: 10 | BM29: 2 | BN29: 24 | BO29: 1 | BP29: - | BQ29: 14 | BR29: 3 | BS29: 25 | BT29: 13 | BU29: - | BV29: 15 | BW29: 2
A30: 試合数 | B30: 左Ｎｏ | C30: - | D30: 右Ｎｏ | E30: 節 数 | Z30: 22 | AA30: 5 | AB30: - | AC30: 8 | AD30: 6 | AE30: 25 | AF30: 4 | AG30: - | AH30: 7 | AI30: 3 | AJ30: 23 | AK30: 8 | AL30: - | AM30: 4 | AN30: 5 | AO30: 25 | AP30: 2 | AQ30: - | AR30: 11 | AS30: 3 | AT30: 24 | AU30: 1 | AV30: - | AW30: 9 | AX30: 4 | AY30: 26 | AZ30: 1 | BA30: - | BB30: 9 | BC30: 2 | BD30: 24 | BE30: 2 | BF30: - | BG30: 7 | BH30: 4 | BI30: 26 | BJ30: 3 | BK30: - | BL30: 12 | BM30: 2 | BO30: 四節 | BR30: 4 | BS30: 26 | BT30: 6 | BU30: - | BV30: 1 | BW30: 2
Z31: 23 | AA31: 4 | AB31: - | AC31: 2 | AD31: 6 | AE31: 26 | AF31: 2 | AG31: - | AH31: 5 | AI31: 3 | AJ31: 24 | AK31: 7 | AL31: - | AM31: 5 | AN31: 5 | AO31: 26 | AP31: 3 | AQ31: - | AR31: 9 | AS31: 3 | AU31: 五節 | AX31: 5 | AZ31: 三節 | BC31: 3 | BD31: 25 | BE31: 14 | BF31: - | BG31: 8 | BH31: 4 | BI31: 27 | BJ31: 5 | BK31: - | BL31: 14 | BM31: 2 | BN31: 25 | BO31: 5 | BP31: - | BQ31: 6 | BR31: 4 | BS31: 27 | BT31: 4 | BU31: - | BV31: 8 | BW31: 2
Z32: 24 | AA32: 1 | AB32: - | AC32: 3 | AD32: 6 | AE32: 27 | AF32: 1 | AG32: - | AH32: 3 | AI32: 3 | AJ32: 25 | AK32: 1 | AL32: - | AM32: 6 | AN32: 5 | AO32: 27 | AP32: 5 | AQ32: - | AR32: 7 | AS32: 3 | AT32: 25 | AU32: 2 | AV32: - | AW32: 3 | AX32: 5 | AY32: 27 | AZ32: 6 | BA32: - | BB32: 8 | BC32: 3 | BD32: 26 | BE32: 13 | BF32: - | BG32: 9 | BH32: 4 | BI32: 28 | BJ32: 7 | BK32: - | BL32: 15 | BM32: 2 | BN32: 26 | BO32: 4 | BP32: - | BQ32: 7 | BR32: 4 | BS32: 28 | BT32: 2 | BU32: - | BV32: 10 | BW32: 2
AA33: 七節 | AD33: 7 | AF33: 四節 | AI33: 4 | AK33: 六節 | AN33: 6 | AO33: 28 | AP33: 8 | AQ33: - | AR33: 1 | AS33: 3 | AT33: 26 | AU33: 12 | AV33: - | AW33: 4 | AX33: 5 | AY33: 28 | AZ33: 4 | BA33: - | BB33: 10 | BC33: 3 | BD33: 27 | BE33: 12 | BF33: - | BG33: 10 | BH33: 4 | BI33: 29 | BJ33: 9 | BK33: - | BL33: 13 | BM33: 2 | BN33: 27 | BO33: 3 | BP33: - | BQ33: 8 | BR33: 4 | BS33: 29 | BT33: 3 | BU33: - | BV33: 12 | BW33: 2
Z34: 25 | AA34: 5 | AB34: - | AC34: 6 | AD34: 7 | AE34: 28 | AF34: 8 | AG34: - | AH34: 9 | AI34: 4 | AJ34: 26 | AK34: 9 | AL34: - | AM34: 10 | AN34: 6 | AO34: 29 | AP34: 6 | AQ34: - | AR34: 10 | AS34: 3 | AT34: 27 | AU34: 11 | AV34: - | AW34: 5 | AX34: 5 | AY34: 29 | AZ34: 2 | BA34: - | BB34: 12 | BC34: 3 | BD34: 28 | BE34: 1 | BF34: - | BG34: 11 | BH34: 4 | BI34: 30 | BJ34: 1 | BK34: - | BL34: 11 | BM34: 2 | BN34: 28 | BO34: 2 | BP34: - | BQ34: 9 | BR34: 4 | BS34: 30 | BT34: 5 | BU34: - | BV34: 14 | BW34: 2
A35: 出場人員＊（出場人員－１）＊２＝総試合数 | Z35: 26 | AA35: 4 | AB35: - | AC35: 7 | AD35: 7 | AE35: 29 | AF35: 6 | AG35: - | AH35: 7 | AI35: 4 | AJ35: 27 | AK35: 8 | AL35: - | AM35: 2 | AN35: 6 | AO35: 30 | AP35: 4 | AQ35: - | AR35: 11 | AS35: 3 | AT35: 28 | AU35: 10 | AV35: - | AW35: 6 | AX35: 5 | AY35: 30 | AZ35: 3 | BA35: - | BB35: 13 | BC35: 3 | BE35: 五節 | BH35: 5 | BJ35: 三節 | BM35: 3 | BN35: 29 | BO35: 16 | BP35: - | BQ35: 10 | BR35: 4 | BS35: 31 | BT35: 7 | BU35: - | BV35: 16 | BW35: 2
A36: 奇数の場合：節を抜く毎に２ゲームずつ減る | Z36: 27 | AA36: 3 | AB36: - | AC36: 8 | AD36: 7 | AE36: 30 | AF36: 4 | AG36: - | AH36: 5 | AI36: 4 | AJ36: 28 | AK36: 7 | AL36: - | AM36: 3 | AN36: 6 | AO36: 31 | AP36: 2 | AQ36: - | AR36: 9 | AS36: 3 | AT36: 29 | AU36: 9 | AV36: - | AW36: 7 | AX36: 5 | AY36: 31 | AZ36: 5 | BA36: - | BB36: 11 | BC36: 3 | BD36: 29 | BE36: 3 | BF36: - | BG36: 4 | BH36: 5 | BI36: 31 | BJ36: 6 | BK36: - | BL36: 8 | BM36: 3 | BN36: 30 | BO36: 15 | BP36: - | BQ36: 11 | BR36: 4 | BS36: 32 | BT36: 9 | BU36: - | BV36: 17 | BW36: 2
A37: 偶数の場合：節を抜く毎に１ゲームずつ減る | Z37: 28 | AA37: 1 | AB37: - | AC37: 2 | AD37: 7 | AE37: 31 | AF37: 2 | AG37: - | AH37: 3 | AI37: 4 | AJ37: 29 | AK37: 6 | AL37: - | AM37: 4 | AN37: 6 | AO37: 32 | AP37: 3 | AQ37: - | AR37: 7 | AS37: 3 | AT37: 30 | AU37: 1 | AV37: - | AW37: 8 | AX37: 5 | AY37: 32 | AZ37: 7 | BA37: - | BB37: 9 | BC37: 3 | BD37: 30 | BE37: 2 | BF37: - | BG37: 5 | BH37: 5 | BI37: 32 | BJ37: 4 | BK37: - | BL37: 10 | BM37: 3 | BN37: 31 | BO37: 14 | BP37: - | BQ37: 12 | BR37: 4 | BS37: 33 | BT37: 11 | BU37: - | BV37: 15 | BW37: 2
AE38: 32 | AF38: 9 | AG38: - | AH38: 1 | AI38: 4 | AJ38: 30 | AK38: 1 | AL38: - | AM38: 5 | AN38: 6 | AO38: 33 | AP38: 1 | AQ38: - | AR38: 5 | AS38: 3 | AU38: 六節 | AX38: 6 | AY38: 33 | AZ38: 8 | BA38: - | BB38: 1 | BC38: 3 | BD38: 31 | BE38: 14 | BF38: - | BG38: 6 | BH38: 5 | BI38: 33 | BJ38: 2 | BK38: - | BL38: 12 | BM38: 3 | BN38: 32 | BO38: 1 | BP38: - | BQ38: 13 | BR38: 4 | BS38: 34 | BT38: 1 | BU38: - | BV38: 13 | BW38: 2
A39: 例）出場人員が７人の場合（奇数人） | AE39: 33 | AF39: 7 | AG39: - | AH39: 8 | AI39: 4 | AK39: 七節 | AN39: 7 | AP39: 四節 | AS39: 4 | AT39: 31 | AU39: 12 | AV39: - | AW39: 2 | AX39: 6 | AY39: 34 | AZ39: 6 | BA39: - | BB39: 10 | BC39: 3 | BD39: 32 | BE39: 13 | BF39: - | BG39: 7 | BH39: 5 | BI39: 34 | BJ39: 3 | BK39: - | BL39: 14 | BM39: 3 | BO39: 五節 | BR39: 5 | BT39: 三節 | BW39: 3
A40: ７人＊（７人－１人）＊２＝全２１試合 | AE40: 34 | AF40: 5 | AG40: - | AH40: 6 | AI40: 4 | AJ40: 31 | AK40: 8 | AL40: - | AM40: 9 | AN40: 7 | AO40: 34 | AP40: 8 | AQ40: - | AR40: 10 | AS40: 4 | AT40: 32 | AU40: 11 | AV40: - | AW40: 3 | AX40: 6 | AY40: 35 | AZ40: 4 | BA40: - | BB40: 12 | BC40: 3 | BD40: 33 | BE40: 12 | BF40: - | BG40: 8 | BH40: 5 | BI40: 35 | BJ40: 5 | BK40: - | BL40: 15 | BM40: 3 | BN40: 33 | BO40: 4 | BP40: - | BQ40: 5 | BR40: 5 | BS40: 35 | BT40: 6 | BU40: - | BV40: 8 | BW40: 3
A41: ７人で三節を１つ抜くと全節一人に対して６ゲームですが、４ゲームとなる | AE41: 35 | AF41: 3 | AG41: - | AH41: 4 | AI41: 4 | AJ41: 32 | AK41: 7 | AL41: - | AM41: 10 | AN41: 7 | AO41: 35 | AP41: 6 | AQ41: - | AR41: 11 | AS41: 4 | AT41: 33 | AU41: 10 | AV41: - | AW41: 4 | AX41: 6 | AY41: 36 | AZ41: 2 | BA41: - | BB41: 13 | BC41: 3 | BD41: 34 | BE41: 11 | BF41: - | BG41: 9 | BH41: 5 | BI41: 36 | BJ41: 7 | BK41: - | BL41: 13 | BM41: 3 | BN41: 34 | BO41: 3 | BP41: - | BQ41: 6 | BR41: 5 | BS41: 36 | BT41: 4 | BU41: - | BV41: 10 | BW41: 3
A42: 例）出場人員が８人の場合（偶数人） | AE42: 36 | AF42: 1 | AG42: - | AH42: 2 | AI42: 4 | AJ42: 33 | AK42: 6 | AL42: - | AM42: 2 | AN42: 7 | AO42: 36 | AP42: 4 | AQ42: - | AR42: 9 | AS42: 4 | AT42: 34 | AU42: 9 | AV42: - | AW42: 5 | AX42: 6 | AY42: 37 | AZ42: 3 | BA42: - | BB42: 11 | BC42: 3 | BD42: 35 | BE42: 1 | BF42: - | BG42: 10 | BH42: 5 | BI42: 37 | BJ42: 9 | BK42: - | BL42: 11 | BM42: 3 | BN42: 35 | BO42: 2 | BP42: - | BQ42: 7 | BR42: 5 | BS42: 37 | BT42: 2 | BU42: - | BV42: 12 | BW42: 3
A43: ８人＊（８人－１人）＊２＝全２８試合 | AJ43: 34 | AK43: 5 | AL43: - | AM43: 3 | AN43: 7 | AO43: 37 | AP43: 2 | AQ43: - | AR43: 7 | AS43: 4 | AT43: 35 | AU43: 8 | AV43: - | AW43: 6 | AX43: 6 | AY43: 38 | AZ43: 5 | BA43: - | BB43: 9 | BC43: 3 | BE43: 六節 | BH43: 6 | BI43: 38 | BJ43: 8 | BK43: - | BL43: 1 | BM43: 3 | BN43: 36 | BO43: 16 | BP43: - | BQ43: 8 | BR43: 5 | BS43: 38 | BT43: 3 | BU43: - | BV43: 14 | BW43: 3
A44: ８人で六・七節を２つ抜くと全節一人に対して７ゲームですが、５ゲームとなる | AJ44: 35 | AK44: 1 | AL44: - | AM44: 4 | AN44: 7 | AO44: 38 | AP44: 3 | AQ44: - | AR44: 5 | AS44: 4 | AT44: 36 | AU44: 1 | AV44: - | AW44: 7 | AX44: 6 | AY44: 39 | AZ44: 1 | BA44: - | BB44: 7 | BC44: 3 | BD44: 36 | BE44: 2 | BF44: - | BG44: 3 | BH44: 6 | BI44: 39 | BJ44: 6 | BK44: - | BL44: 10 | BM44: 3 | BN44: 37 | BO44: 15 | BP44: - | BQ44: 9 | BR44: 5 | BS44: 39 | BT44: 5 | BU44: - | BV44: 16 | BW44: 3
AK45: 八節 | AN45: 8 | AO45: 39 | AP45: 10 | AQ45: - | AR45: 1 | AS45: 4 | AU45: 七節 | AX45: 7 | AZ45: 四節 | BC45: 4 | BD45: 37 | BE45: 14 | BF45: - | BG45: 4 | BH45: 6 | BI45: 40 | BJ45: 4 | BK45: - | BL45: 12 | BM45: 3 | BN45: 38 | BO45: 14 | BP45: - | BQ45: 10 | BR45: 5 | BS45: 40 | BT45: 7 | BU45: - | BV45: 17 | BW45: 3
AJ46: 36 | AK46: 7 | AL46: - | AM46: 8 | AN46: 8 | AO46: 40 | AP46: 8 | AQ46: - | AR46: 11 | AS46: 4 | AT46: 37 | AU46: 11 | AV46: - | AW46: 12 | AX46: 7 | AY46: 40 | AZ46: 8 | BA46: - | BB46: 10 | BC46: 4 | BD46: 38 | BE46: 13 | BF46: - | BG46: 5 | BH46: 6 | BI46: 41 | BJ46: 2 | BK46: - | BL46: 14 | BM46: 3 | BN46: 39 | BO46: 13 | BP46: - | BQ46: 11 | BR46: 5 | BS46: 41 | BT46: 9 | BU46: - | BV46: 15 | BW46: 3
AJ47: 37 | AK47: 6 | AL47: - | AM47: 9 | AN47: 8 | AO47: 41 | AP47: 6 | AQ47: - | AR47: 9 | AS47: 4 | AT47: 38 | AU47: 10 | AV47: - | AW47: 2 | AX47: 7 | AY47: 41 | AZ47: 6 | BA47: - | BB47: 12 | BC47: 4 | BD47: 39 | BE47: 12 | BF47: - | BG47: 6 | BH47: 6 | BI47: 42 | BJ47: 3 | BK47: - | BL47: 15 | BM47: 3 | BN47: 40 | BO47: 1 | BP47: - | BQ47: 12 | BR47: 5 | BS47: 42 | BT47: 11 | BU47: - | BV47: 13 | BW47: 3
AJ48: 38 | AK48: 5 | AL48: - | AM48: 10 | AN48: 8 | AO48: 42 | AP48: 4 | AQ48: - | AR48: 7 | AS48: 4 | AT48: 39 | AU48: 9 | AV48: - | AW48: 3 | AX48: 7 | AY48: 42 | AZ48: 4 | BA48: - | BB48: 13 | BC48: 4 | BD48: 40 | BE48: 11 | BF48: - | BG48: 7 | BH48: 6 | BI48: 43 | BJ48: 5 | BK48: - | BL48: 13 | BM48: 3 | BO48: 六節 | BR48: 6 | BS48: 43 | BT48: 8 | BU48: - | BV48: 1 | BW48: 3
AJ49: 39 | AK49: 4 | AL49: - | AM49: 2 | AN49: 8 | AO49: 43 | AP49: 2 | AQ49: - | AR49: 5 | AS49: 4 | AT49: 40 | AU49: 8 | AV49: - | AW49: 4 | AX49: 7 | AY49: 43 | AZ49: 2 | BA49: - | BB49: 11 | BC49: 4 | BD49: 41 | BE49: 10 | BF49: - | BG49: 8 | BH49: 6 | BI49: 44 | BJ49: 7 | BK49: - | BL49: 11 | BM49: 3 | BN49: 41 | BO49: 3 | BP49: - | BQ49: 4 | BR49: 6 | BS49: 44 | BT49: 6 | BU49: - | BV49: 10 | BW49: 3
AJ50: 40 | AK50: 1 | AL50: - | AM50: 3 | AN50: 8 | AO50: 44 | AP50: 1 | AQ50: - | AR50: 3 | AS50: 4 | AT50: 41 | AU50: 7 | AV50: - | AW50: 5 | AX50: 7 | AY50: 44 | AZ50: 3 | BA50: - | BB50: 9 | BC50: 4 | BD50: 42 | BE50: 1 | BF50: - | BG50: 9 | BH50: 6 | BI50: 45 | BJ50: 1 | BK50: - | BL50: 9 | BM50: 3 | BN50: 42 | BO50: 2 | BP50: - | BQ50: 5 | BR50: 6 | BS50: 45 | BT50: 4 | BU50: - | BV50: 12 | BW50: 3
AK51: 九節 | AN51: 9 | AP51: 五節 | AS51: 5 | AT51: 42 | AU51: 1 | AV51: - | AW51: 6 | AX51: 7 | AY51: 45 | AZ51: 5 | BA51: - | BB51: 7 | BC51: 4 | BE51: 七節 | BH51: 7 | BJ51: 四節 | BM51: 4 | BN51: 43 | BO51: 16 | BP51: - | BQ51: 6 | BR51: 6 | BS51: 46 | BT51: 2 | BU51: - | BV51: 14 | BW51: 3
AJ52: 41 | AK52: 6 | AL52: - | AM52: 7 | AN52: 9 | AO52: 45 | AP52: 10 | AQ52: - | AR52: 11 | AS52: 5 | AU52: 八節 | AX52: 8 | AY52: 46 | AZ52: 10 | BA52: - | BB52: 1 | BC52: 4 | BD52: 43 | BE52: 14 | BF52: - | BG52: 2 | BH52: 7 | BI52: 46 | BJ52: 8 | BK52: - | BL52: 10 | BM52: 4 | BN52: 44 | BO52: 15 | BP52: - | BQ52: 7 | BR52: 6 | BS52: 47 | BT52: 3 | BU52: - | BV52: 16 | BW52: 3
AJ53: 42 | AK53: 5 | AL53: - | AM53: 8 | AN53: 9 | AO53: 46 | AP53: 8 | AQ53: - | AR53: 9 | AS53: 5 | AT53: 43 | AU53: 10 | AV53: - | AW53: 11 | AX53: 8 | AY53: 47 | AZ53: 8 | BA53: - | BB53: 12 | BC53: 4 | BD53: 44 | BE53: 13 | BF53: - | BG53: 3 | BH53: 7 | BI53: 47 | BJ53: 6 | BK53: - | BL53: 12 | BM53: 4 | BN53: 45 | BO53: 14 | BP53: - | BQ53: 8 | BR53: 6 | BS53: 48 | BT53: 5 | BU53: - | BV53: 17 | BW53: 3
AJ54: 43 | AK54: 4 | AL54: - | AM54: 9 | AN54: 9 | AO54: 47 | AP54: 6 | AQ54: - | AR54: 7 | AS54: 5 | AT54: 44 | AU54: 9 | AV54: - | AW54: 12 | AX54: 8 | AY54: 48 | AZ54: 6 | BA54: - | BB54: 13 | BC54: 4 | BD54: 45 | BE54: 12 | BF54: - | BG54: 4 | BH54: 7 | BI54: 48 | BJ54: 4 | BK54: - | BL54: 14 | BM54: 4 | BN54: 46 | BO54: 13 | BP54: - | BQ54: 9 | BR54: 6 | BS54: 49 | BT54: 7 | BU54: - | BV54: 15 | BW54: 3
AJ55: 44 | AK55: 3 | AL55: - | AM55: 10 | AN55: 9 | AO55: 48 | AP55: 4 | AQ55: - | AR55: 5 | AS55: 5 | AT55: 45 | AU55: 8 | AV55: - | AW55: 2 | AX55: 8 | AY55: 49 | AZ55: 4 | BA55: - | BB55: 11 | BC55: 4 | BD55: 46 | BE55: 11 | BF55: - | BG55: 5 | BH55: 7 | BI55: 49 | BJ55: 2 | BK55: - | BL55: 15 | BM55: 4 | BN55: 47 | BO55: 12 | BP55: - | BQ55: 10 | BR55: 6 | BS55: 50 | BT55: 9 | BU55: - | BV55: 13 | BW55: 3
AJ56: 45 | AK56: 1 | AL56: - | AM56: 2 | AN56: 9 | AO56: 49 | AP56: 2 | AQ56: - | AR56: 3 | AS56: 5 | AT56: 46 | AU56: 7 | AV56: - | AW56: 3 | AX56: 8 | AY56: 50 | AZ56: 2 | BA56: - | BB56: 9 | BC56: 4 | BD56: 47 | BE56: 10 | BF56: - | BG56: 6 | BH56: 7 | BI56: 50 | BJ56: 3 | BK56: - | BL56: 13 | BM56: 4 | BN56: 48 | BO56: 1 | BP56: - | BQ56: 11 | BR56: 6 | BS56: 51 | BT56: 1 | BU56: - | BV56: 11 | BW56: 3
AO57: 50 | AP57: 11 | AQ57: - | AR57: 1 | AS57: 5 | AT57: 47 | AU57: 6 | AV57: - | AW57: 4 | AX57: 8 | AY57: 51 | AZ57: 3 | BA57: - | BB57: 7 | BC57: 4 | BD57: 48 | BE57: 9 | BF57: - | BG57: 7 | BH57: 7 | BI57: 51 | BJ57: 5 | BK57: - | BL57: 11 | BM57: 4 | BO57: 七節 | BR57: 7 | BT57: 四節 | BW57: 4
AO58: 51 | AP58: 9 | AQ58: - | AR58: 10 | AS58: 5 | AT58: 48 | AU58: 1 | AV58: - | AW58: 5 | AX58: 8 | AY58: 52 | AZ58: 1 | BA58: - | BB58: 5 | BC58: 4 | BD58: 49 | BE58: 1 | BF58: - | BG58: 8 | BH58: 7 | BI58: 52 | BJ58: 7 | BK58: - | BL58: 9 | BM58: 4 | BN58: 49 | BO58: 2 | BP58: - | BQ58: 3 | BR58: 7 | BS58: 52 | BT58: 8 | BU58: - | BV58: 10 | BW58: 4
AO59: 52 | AP59: 7 | AQ59: - | AR59: 8 | AS59: 5 | AU59: 九節 | AX59: 9 | AZ59: 五節 | BC59: 5 | BE59: 八節 | BH59: 8 | BI59: 53 | BJ59: 10 | BK59: - | BL59: 1 | BM59: 4 | BN59: 50 | BO59: 16 | BP59: - | BQ59: 4 | BR59: 7 | BS59: 53 | BT59: 6 | BU59: - | BV59: 12 | BW59: 4
AO60: 53 | AP60: 5 | AQ60: - | AR60: 6 | AS60: 5 | AT60: 49 | AU60: 9 | AV60: - | AW60: 10 | AX60: 9 | AY60: 53 | AZ60: 10 | BA60: - | BB60: 12 | BC60: 5 | BD60: 50 | BE60: 13 | BF60: - | BG60: 14 | BH60: 8 | BI60: 54 | BJ60: 8 | BK60: - | BL60: 12 | BM60: 4 | BN60: 51 | BO60: 15 | BP60: - | BQ60: 5 | BR60: 7 | BS60: 54 | BT60: 4 | BU60: - | BV60: 14 | BW60: 4
AO61: 54 | AP61: 3 | AQ61: - | AR61: 4 | AS61: 5 | AT61: 50 | AU61: 8 | AV61: - | AW61: 11 | AX61: 9 | AY61: 54 | AZ61: 8 | BA61: - | BB61: 13 | BC61: 5 | BD61: 51 | BE61: 12 | BF61: - | BG61: 2 | BH61: 8 | BI61: 55 | BJ61: 6 | BK61: - | BL61: 14 | BM61: 4 | BN61: 52 | BO61: 14 | BP61: - | BQ61: 6 | BR61: 7 | BS61: 55 | BT61: 2 | BU61: - | BV61: 16 | BW61: 4
AO62: 55 | AP62: 1 | AQ62: - | AR62: 2 | AS62: 5 | AT62: 51 | AU62: 7 | AV62: - | AW62: 12 | AX62: 9 | AY62: 55 | AZ62: 6 | BA62: - | BB62: 11 | BC62: 5 | BD62: 52 | BE62: 11 | BF62: - | BG62: 3 | BH62: 8 | BI62: 56 | BJ62: 4 | BK62: - | BL62: 15 | BM62: 4 | BN62: 53 | BO62: 13 | BP62: - | BQ62: 7 | BR62: 7 | BS62: 56 | BT62: 3 | BU62: - | BV62: 17 | BW62: 4
AT63: 52 | AU63: 6 | AV63: - | AW63: 2 | AX63: 9 | AY63: 56 | AZ63: 4 | BA63: - | BB63: 9 | BC63: 5 | BD63: 53 | BE63: 10 | BF63: - | BG63: 4 | BH63: 8 | BI63: 57 | BJ63: 2 | BK63: - | BL63: 13 | BM63: 4 | BN63: 54 | BO63: 12 | BP63: - | BQ63: 8 | BR63: 7 | BS63: 57 | BT63: 5 | BU63: - | BV63: 15 | BW63: 4
AT64: 53 | AU64: 5 | AV64: - | AW64: 3 | AX64: 9 | AY64: 57 | AZ64: 2 | BA64: - | BB64: 7 | BC64: 5 | BD64: 54 | BE64: 9 | BF64: - | BG64: 5 | BH64: 8 | BI64: 58 | BJ64: 3 | BK64: - | BL64: 11 | BM64: 4 | BN64: 55 | BO64: 11 | BP64: - | BQ64: 9 | BR64: 7 | BS64: 58 | BT64: 7 | BU64: - | BV64: 13 | BW64: 4
AT65: 54 | AU65: 1 | AV65: - | AW65: 4 | AX65: 9 | AY65: 58 | AZ65: 3 | BA65: - | BB65: 5 | BC65: 5 | BD65: 55 | BE65: 8 | BF65: - | BG65: 6 | BH65: 8 | BI65: 59 | BJ65: 5 | BK65: - | BL65: 9 | BM65: 4 | BN65: 56 | BO65: 1 | BP65: - | BQ65: 10 | BR65: 7 | BS65: 59 | BT65: 9 | BU65: - | BV65: 11 | BW65: 4
AU66: 十節 | AX66: 10 | AY66: 59 | AZ66: 12 | BA66: - | BB66: 1 | BC66: 5 | BD66: 56 | BE66: 1 | BF66: - | BG66: 7 | BH66: 8 | BI66: 60 | BJ66: 1 | BK66: - | BL66: 7 | BM66: 4 | BO66: 八節 | BR66: 8 | BS66: 60 | BT66: 10 | BU66: - | BV66: 1 | BW66: 4
AT67: 55 | AU67: 8 | AV67: - | AW67: 9 | AX67: 10 | AY67: 60 | AZ67: 10 | BA67: - | BB67: 13 | BC67: 5 | BE67: 九節 | BH67: 9 | BJ67: 五節 | BM67: 5 | BN67: 57 | BO67: 16 | BP67: - | BQ67: 2 | BR67: 8 | BS67: 61 | BT67: 8 | BU67: - | BV67: 12 | BW67: 4
AT68: 56 | AU68: 7 | AV68: - | AW68: 10 | AX68: 10 | AY68: 61 | AZ68: 8 | BA68: - | BB68: 11 | BC68: 5 | BD68: 57 | BE68: 12 | BF68: - | BG68: 13 | BH68: 9 | BI68: 61 | BJ68: 10 | BK68: - | BL68: 12 | BM68: 5 | BN68: 58 | BO68: 15 | BP68: - | BQ68: 3 | BR68: 8 | BS68: 62 | BT68: 6 | BU68: - | BV68: 14 | BW68: 4
AT69: 57 | AU69: 6 | AV69: - | AW69: 11 | AX69: 10 | AY69: 62 | AZ69: 6 | BA69: - | BB69: 9 | BC69: 5 | BD69: 58 | BE69: 11 | BF69: - | BG69: 14 | BH69: 9 | BI69: 62 | BJ69: 8 | BK69: - | BL69: 14 | BM69: 5 | BN69: 59 | BO69: 14 | BP69: - | BQ69: 4 | BR69: 8 | BS69: 63 | BT69: 4 | BU69: - | BV69: 16 | BW69: 4
AT70: 58 | AU70: 5 | AV70: - | AW70: 12 | AX70: 10 | AY70: 63 | AZ70: 4 | BA70: - | BB70: 7 | BC70: 5 | BD70: 59 | BE70: 10 | BF70: - | BG70: 2 | BH70: 9 | BI70: 63 | BJ70: 6 | BK70: - | BL70: 15 | BM70: 5 | BN70: 60 | BO70: 13 | BP70: - | BQ70: 5 | BR70: 8 | BS70: 64 | BT70: 2 | BU70: - | BV70: 17 | BW70: 4
AT71: 59 | AU71: 4 | AV71: - | AW71: 2 | AX71: 10 | AY71: 64 | AZ71: 2 | BA71: - | BB71: 5 | BC71: 5 | BD71: 60 | BE71: 9 | BF71: - | BG71: 3 | BH71: 9 | BI71: 64 | BJ71: 4 | BK71: - | BL71: 13 | BM71: 5 | BN71: 61 | BO71: 12 | BP71: - | BQ71: 6 | BR71: 8 | BS71: 65 | BT71: 3 | BU71: - | BV71: 15 | BW71: 4
AT72: 60 | AU72: 1 | AV72: - | AW72: 3 | AX72: 10 | AY72: 65 | AZ72: 1 | BA72: - | BB72: 3 | BC72: 5 | BD72: 61 | BE72: 8 | BF72: - | BG72: 4 | BH72: 9 | BI72: 65 | BJ72: 2 | BK72: - | BL72: 11 | BM72: 5 | BN72: 62 | BO72: 11 | BP72: - | BQ72: 7 | BR72: 8 | BS72: 66 | BT72: 5 | BU72: - | BV72: 13 | BW72: 4
AU73: 十一節 | AX73: 11 | AZ73: 六節 | BC73: 6 | BD73: 62 | BE73: 7 | BF73: - | BG73: 5 | BH73: 9 | BI73: 66 | BJ73: 3 | BK73: - | BL73: 9 | BM73: 5 | BN73: 63 | BO73: 10 | BP73: - | BQ73: 8 | BR73: 8 | BS73: 67 | BT73: 7 | BU73: - | BV73: 11 | BW73: 4
AT74: 61 | AU74: 7 | AV74: - | AW74: 8 | AX74: 11 | AY74: 66 | AZ74: 12 | BA74: - | BB74: 13 | BC74: 6 | BD74: 63 | BE74: 1 | BF74: - | BG74: 6 | BH74: 9 | BI74: 67 | BJ74: 5 | BK74: - | BL74: 7 | BM74: 5 | BN74: 64 | BO74: 1 | BP74: - | BQ74: 9 | BR74: 8 | BS74: 68 | BT74: 1 | BU74: - | BV74: 9 | BW74: 4
AT75: 62 | AU75: 6 | AV75: - | AW75: 9 | AX75: 11 | AY75: 67 | AZ75: 10 | BA75: - | BB75: 11 | BC75: 6 | BE75: 十節 | BH75: 10 | BI75: 68 | BJ75: 12 | BK75: - | BL75: 1 | BM75: 5 | BO75: 九節 | BR75: 9 | BT75: 五節 | BW75: 5
AT76: 63 | AU76: 5 | AV76: - | AW76: 10 | AX76: 11 | AY76: 68 | AZ76: 8 | BA76: - | BB76: 9 | BC76: 6 | BD76: 64 | BE76: 11 | BF76: - | BG76: 12 | BH76: 10 | BI76: 69 | BJ76: 10 | BK76: - | BL76: 14 | BM76: 5 | BN76: 65 | BO76: 15 | BP76: - | BQ76: 16 | BR76: 9 | BS76: 69 | BT76: 10 | BU76: - | BV76: 12 | BW76: 5
AT77: 64 | AU77: 4 | AV77: - | AW77: 11 | AX77: 11 | AY77: 69 | AZ77: 6 | BA77: - | BB77: 7 | BC77: 6 | BD77: 65 | BE77: 10 | BF77: - | BG77: 13 | BH77: 10 | BI77: 70 | BJ77: 8 | BK77: - | BL77: 15 | BM77: 5 | BN77: 66 | BO77: 14 | BP77: - | BQ77: 2 | BR77: 9 | BS77: 70 | BT77: 8 | BU77: - | BV77: 14 | BW77: 5
AT78: 65 | AU78: 3 | AV78: - | AW78: 12 | AX78: 11 | AY78: 70 | AZ78: 4 | BA78: - | BB78: 5 | BC78: 6 | BD78: 66 | BE78: 9 | BF78: - | BG78: 14 | BH78: 10 | BI78: 71 | BJ78: 6 | BK78: - | BL78: 13 | BM78: 5 | BN78: 67 | BO78: 13 | BP78: - | BQ78: 3 | BR78: 9 | BS78: 71 | BT78: 6 | BU78: - | BV78: 16 | BW78: 5
AT79: 66 | AU79: 1 | AV79: - | AW79: 2 | AX79: 11 | AY79: 71 | AZ79: 2 | BA79: - | BB79: 3 | BC79: 6 | BD79: 67 | BE79: 8 | BF79: - | BG79: 2 | BH79: 10 | BI79: 72 | BJ79: 4 | BK79: - | BL79: 11 | BM79: 5 | BN79: 68 | BO79: 12 | BP79: - | BQ79: 4 | BR79: 9 | BS79: 72 | BT79: 4 | BU79: - | BV79: 17 | BW79: 5
AY80: 72 | AZ80: 13 | BA80: - | BB80: 1 | BC80: 6 | BD80: 68 | BE80: 7 | BF80: - | BG80: 3 | BH80: 10 | BI80: 73 | BJ80: 2 | BK80: - | BL80: 9 | BM80: 5 | BN80: 69 | BO80: 11 | BP80: - | BQ80: 5 | BR80: 9 | BS80: 73 | BT80: 2 | BU80: - | BV80: 15 | BW80: 5
AY81: 73 | AZ81: 11 | BA81: - | BB81: 12 | BC81: 6 | BD81: 69 | BE81: 6 | BF81: - | BG81: 4 | BH81: 10 | BI81: 74 | BJ81: 3 | BK81: - | BL81: 7 | BM81: 5 | BN81: 70 | BO81: 10 | BP81: - | BQ81: 6 | BR81: 9 | BS81: 74 | BT81: 3 | BU81: - | BV81: 13 | BW81: 5
AY82: 74 | AZ82: 9 | BA82: - | BB82: 10 | BC82: 6 | BD82: 70 | BE82: 1 | BF82: - | BG82: 5 | BH82: 10 | BI82: 75 | BJ82: 1 | BK82: - | BL82: 5 | BM82: 5 | BN82: 71 | BO82: 9 | BP82: - | BQ82: 7 | BR82: 9 | BS82: 75 | BT82: 5 | BU82: - | BV82: 11 | BW82: 5
AY83: 75 | AZ83: 7 | BA83: - | BB83: 8 | BC83: 6 | BE83: 十一節 | BH83: 11 | BJ83: 六節 | BM83: 6 | BN83: 72 | BO83: 1 | BP83: - | BQ83: 8 | BR83: 9 | BS83: 76 | BT83: 7 | BU83: - | BV83: 9 | BW83: 5
AY84: 76 | AZ84: 5 | BA84: - | BB84: 6 | BC84: 6 | BD84: 71 | BE84: 10 | BF84: - | BG84: 11 | BH84: 11 | BI84: 76 | BJ84: 12 | BK84: - | BL84: 14 | BM84: 6 | BO84: 十節 | BR84: 10 | BS84: 77 | BT84: 12 | BU84: - | BV84: 1 | BW84: 5
AY85: 77 | AZ85: 3 | BA85: - | BB85: 4 | BC85: 6 | BD85: 72 | BE85: 9 | BF85: - | BG85: 12 | BH85: 11 | BI85: 77 | BJ85: 10 | BK85: - | BL85: 15 | BM85: 6 | BN85: 73 | BO85: 14 | BP85: - | BQ85: 15 | BR85: 10 | BS85: 78 | BT85: 10 | BU85: - | BV85: 14 | BW85: 5
AY86: 78 | AZ86: 1 | BA86: - | BB86: 2 | BC86: 6 | BD86: 73 | BE86: 8 | BF86: - | BG86: 13 | BH86: 11 | BI86: 78 | BJ86: 8 | BK86: - | BL86: 13 | BM86: 6 | BN86: 74 | BO86: 13 | BP86: - | BQ86: 16 | BR86: 10 | BS86: 79 | BT86: 8 | BU86: - | BV86: 16 | BW86: 5
BD87: 74 | BE87: 7 | BF87: - | BG87: 14 | BH87: 11 | BI87: 79 | BJ87: 6 | BK87: - | BL87: 11 | BM87: 6 | BN87: 75 | BO87: 12 | BP87: - | BQ87: 2 | BR87: 10 | BS87: 80 | BT87: 6 | BU87: - | BV87: 17 | BW87: 5
BD88: 75 | BE88: 6 | BF88: - | BG88: 2 | BH88: 11 | BI88: 80 | BJ88: 4 | BK88: - | BL88: 9 | BM88: 6 | BN88: 76 | BO88: 11 | BP88: - | BQ88: 3 | BR88: 10 | BS88: 81 | BT88: 4 | BU88: - | BV88: 15 | BW88: 5
BD89: 76 | BE89: 5 | BF89: - | BG89: 3 | BH89: 11 | BI89: 81 | BJ89: 2 | BK89: - | BL89: 7 | BM89: 6 | BN89: 77 | BO89: 10 | BP89: - | BQ89: 4 | BR89: 10 | BS89: 82 | BT89: 2 | BU89: - | BV89: 13 | BW89: 5
BD90: 77 | BE90: 1 | BF90: - | BG90: 4 | BH90: 11 | BI90: 82 | BJ90: 3 | BK90: - | BL90: 5 | BM90: 6 | BN90: 78 | BO90: 9 | BP90: - | BQ90: 5 | BR90: 10 | BS90: 83 | BT90: 3 | BU90: - | BV90: 11 | BW90: 5
BE91: 十二節 | BH91: 12 | BI91: 83 | BJ91: 14 | BK91: - | BL91: 1 | BM91: 6 | BN91: 79 | BO91: 8 | BP91: - | BQ91: 6 | BR91: 10 | BS91: 84 | BT91: 5 | BU91: - | BV91: 9 | BW91: 5
BD92: 78 | BE92: 9 | BF92: - | BG92: 10 | BH92: 12 | BI92: 84 | BJ92: 12 | BK92: - | BL92: 15 | BM92: 6 | BN92: 80 | BO92: 1 | BP92: - | BQ92: 7 | BR92: 10 | BS92: 85 | BT92: 1 | BU92: - | BV92: 7 | BW92: 5
BD93: 79 | BE93: 8 | BF93: - | BG93: 11 | BH93: 12 | BI93: 85 | BJ93: 10 | BK93: - | BL93: 13 | BM93: 6 | BO93: 十一節 | BR93: 11 | BT93: 六節 | BW93: 6
BD94: 80 | BE94: 7 | BF94: - | BG94: 12 | BH94: 12 | BI94: 86 | BJ94: 8 | BK94: - | BL94: 11 | BM94: 6 | BN94: 81 | BO94: 13 | BP94: - | BQ94: 14 | BR94: 11 | BS94: 86 | BT94: 12 | BU94: - | BV94: 14 | BW94: 6
BD95: 81 | BE95: 6 | BF95: - | BG95: 13 | BH95: 12 | BI95: 87 | BJ95: 6 | BK95: - | BL95: 9 | BM95: 6 | BN95: 82 | BO95: 12 | BP95: - | BQ95: 15 | BR95: 11 | BS95: 87 | BT95: 10 | BU95: - | BV95: 16 | BW95: 6
BD96: 82 | BE96: 5 | BF96: - | BG96: 14 | BH96: 12 | BI96: 88 | BJ96: 4 | BK96: - | BL96: 7 | BM96: 6 | BN96: 83 | BO96: 11 | BP96: - | BQ96: 16 | BR96: 11 | BS96: 88 | BT96: 8 | BU96: - | BV96: 17 | BW96: 6
BD97: 83 | BE97: 4 | BF97: - | BG97: 2 | BH97: 12 | BI97: 89 | BJ97: 2 | BK97: - | BL97: 5 | BM97: 6 | BN97: 84 | BO97: 10 | BP97: - | BQ97: 2 | BR97: 11 | BS97: 89 | BT97: 6 | BU97: - | BV97: 15 | BW97: 6
BD98: 84 | BE98: 1 | BF98: - | BG98: 3 | BH98: 12 | BI98: 90 | BJ98: 1 | BK98: - | BL98: 3 | BM98: 6 | BN98: 85 | BO98: 9 | BP98: - | BQ98: 3 | BR98: 11 | BS98: 90 | BT98: 4 | BU98: - | BV98: 13 | BW98: 6
BE99: 十三節 | BH99: 13 | BJ99: 七節 | BM99: 7 | BN99: 86 | BO99: 8 | BP99: - | BQ99: 4 | BR99: 11 | BS99: 91 | BT99: 2 | BU99: - | BV99: 11 | BW99: 6
BD100: 85 | BE100: 8 | BF100: - | BG100: 9 | BH100: 13 | BI100: 91 | BJ100: 14 | BK100: - | BL100: 15 | BM100: 7 | BN100: 87 | BO100: 7 | BP100: - | BQ100: 5 | BR100: 11 | BS100: 92 | BT100: 3 | BU100: - | BV100: 9 | BW100: 6
BD101: 86 | BE101: 7 | BF101: - | BG101: 10 | BH101: 13 | BI101: 92 | BJ101: 12 | BK101: - | BL101: 13 | BM101: 7 | BN101: 88 | BO101: 1 | BP101: - | BQ101: 6 | BR101: 11 | BS101: 93 | BT101: 5 | BU101: - | BV101: 7 | BW101: 6
BD102: 87 | BE102: 6 | BF102: - | BG102: 11 | BH102: 13 | BI102: 93 | BJ102: 10 | BK102: - | BL102: 11 | BM102: 7 | BO102: 十二節 | BR102: 12 | BS102: 94 | BT102: 14 | BU102: - | BV102: 1 | BW102: 6
BD103: 88 | BE103: 5 | BF103: - | BG103: 12 | BH103: 13 | BI103: 94 | BJ103: 8 | BK103: - | BL103: 9 | BM103: 7 | BN103: 89 | BO103: 12 | BP103: - | BQ103: 13 | BR103: 12 | BS103: 95 | BT103: 12 | BU103: - | BV103: 16 | BW103: 6
BD104: 89 | BE104: 4 | BF104: - | BG104: 13 | BH104: 13 | BI104: 95 | BJ104: 6 | BK104: - | BL104: 7 | BM104: 7 | BN104: 90 | BO104: 11 | BP104: - | BQ104: 14 | BR104: 12 | BS104: 96 | BT104: 10 | BU104: - | BV104: 17 | BW104: 6
BD105: 90 | BE105: 3 | BF105: - | BG105: 14 | BH105: 13 | BI105: 96 | BJ105: 4 | BK105: - | BL105: 5 | BM105: 7 | BN105: 91 | BO105: 10 | BP105: - | BQ105: 15 | BR105: 12 | BS105: 97 | BT105: 8 | BU105: - | BV105: 15 | BW105: 6
BD106: 91 | BE106: 1 | BF106: - | BG106: 2 | BH106: 13 | BI106: 97 | BJ106: 2 | BK106: - | BL106: 3 | BM106: 7 | BN106: 92 | BO106: 9 | BP106: - | BQ106: 16 | BR106: 12 | BS106: 98 | BT106: 6 | BU106: - | BV106: 13 | BW106: 6
BI107: 98 | BJ107: 15 | BK107: - | BL107: 1 | BM107: 7 | BN107: 93 | BO107: 8 | BP107: - | BQ107: 2 | BR107: 12 | BS107: 99 | BT107: 4 | BU107: - | BV107: 11 | BW107: 6
BI108: 99 | BJ108: 13 | BK108: - | BL108: 14 | BM108: 7 | BN108: 94 | BO108: 7 | BP108: - | BQ108: 3 | BR108: 12 | BS108: 100 | BT108: 2 | BU108: - | BV108: 9 | BW108: 6
BI109: 100 | BJ109: 11 | BK109: - | BL109: 12 | BM109: 7 | BN109: 95 | BO109: 6 | BP109: - | BQ109: 4 | BR109: 12 | BS109: 101 | BT109: 3 | BU109: - | BV109: 7 | BW109: 6
BI110: 101 | BJ110: 9 | BK110: - | BL110: 10 | BM110: 7 | BN110: 96 | BO110: 1 | BP110: - | BQ110: 5 | BR110: 12 | BS110: 102 | BT110: 1 | BU110: - | BV110: 5 | BW110: 6
BI111: 102 | BJ111: 7 | BK111: - | BL111: 8 | BM111: 7 | BO111: 十三節 | BR111: 13 | BT111: 七節 | BW111: 7
BI112: 103 | BJ112: 5 | BK112: - | BL112: 6 | BM112: 7 | BN112: 97 | BO112: 11 | BP112: - | BQ112: 12 | BR112: 13 | BS112: 103 | BT112: 14 | BU112: - | BV112: 16 | BW112: 7
BI113: 104 | BJ113: 3 | BK113: - | BL113: 4 | BM113: 7 | BN113: 98 | BO113: 10 | BP113: - | BQ113: 13 | BR113: 13 | BS113: 104 | BT113: 12 | BU113: - | BV113: 17 | BW113: 7
BI114: 105 | BJ114: 1 | BK114: - | BL114: 2 | BM114: 7 | BN114: 99 | BO114: 9 | BP114: - | BQ114: 14 | BR114: 13 | BS114: 105 | BT114: 10 | BU114: - | BV114: 15 | BW114: 7
BN115: 100 | BO115: 8 | BP115: - | BQ115: 15 | BR115: 13 | BS115: 106 | BT115: 8 | BU115: - | BV115: 13 | BW115: 7
BN116: 101 | BO116: 7 | BP116: - | BQ116: 16 | BR116: 13 | BS116: 107 | BT116: 6 | BU116: - | BV116: 11 | BW116: 7
BN117: 102 | BO117: 6 | BP117: - | BQ117: 2 | BR117: 13 | BS117: 108 | BT117: 4 | BU117: - | BV117: 9 | BW117: 7
BN118: 103 | BO118: 5 | BP118: - | BQ118: 3 | BR118: 13 | BS118: 109 | BT118: 2 | BU118: - | BV118: 7 | BW118: 7
BN119: 104 | BO119: 1 | BP119: - | BQ119: 4 | BR119: 13 | BS119: 110 | BT119: 3 | BU119: - | BV119: 5 | BW119: 7
BO120: 十四節 | BR120: 14 | BS120: 111 | BT120: 16 | BU120: - | BV120: 1 | BW120: 7
BN121: 105 | BO121: 10 | BP121: - | BQ121: 11 | BR121: 14 | BS121: 112 | BT121: 14 | BU121: - | BV121: 17 | BW121: 7
BN122: 106 | BO122: 9 | BP122: - | BQ122: 12 | BR122: 14 | BS122: 113 | BT122: 12 | BU122: - | BV122: 15 | BW122: 7
BN123: 107 | BO123: 8 | BP123: - | BQ123: 13 | BR123: 14 | BS123: 114 | BT123: 10 | BU123: - | BV123: 13 | BW123: 7
BN124: 108 | BO124: 7 | BP124: - | BQ124: 14 | BR124: 14 | BS124: 115 | BT124: 8 | BU124: - | BV124: 11 | BW124: 7
BN125: 109 | BO125: 6 | BP125: - | BQ125: 15 | BR125: 14 | BS125: 116 | BT125: 6 | BU125: - | BV125: 9 | BW125: 7
BN126: 110 | BO126: 5 | BP126: - | BQ126: 16 | BR126: 14 | BS126: 117 | BT126: 4 | BU126: - | BV126: 7 | BW126: 7
BN127: 111 | BO127: 4 | BP127: - | BQ127: 2 | BR127: 14 | BS127: 118 | BT127: 2 | BU127: - | BV127: 5 | BW127: 7
BN128: 112 | BO128: 1 | BP128: - | BQ128: 3 | BR128: 14 | BS128: 119 | BT128: 1 | BU128: - | BV128: 3 | BW128: 7
BO129: 十五節 | BR129: 15 | BT129: 八節 | BW129: 8
BN130: 113 | BO130: 9 | BP130: - | BQ130: 10 | BR130: 15 | BS130: 120 | BT130: 16 | BU130: - | BV130: 17 | BW130: 8
BN131: 114 | BO131: 8 | BP131: - | BQ131: 11 | BR131: 15 | BS131: 121 | BT131: 14 | BU131: - | BV131: 15 | BW131: 8
BN132: 115 | BO132: 7 | BP132: - | BQ132: 12 | BR132: 15 | BS132: 122 | BT132: 12 | BU132: - | BV132: 13 | BW132: 8
BN133: 116 | BO133: 6 | BP133: - | BQ133: 13 | BR133: 15 | BS133: 123 | BT133: 10 | BU133: - | BV133: 11 | BW133: 8
BN134: 117 | BO134: 5 | BP134: - | BQ134: 14 | BR134: 15 | BS134: 124 | BT134: 8 | BU134: - | BV134: 9 | BW134: 8
BN135: 118 | BO135: 4 | BP135: - | BQ135: 15 | BR135: 15 | BS135: 125 | BT135: 6 | BU135: - | BV135: 7 | BW135: 8
BN136: 119 | BO136: 3 | BP136: - | BQ136: 16 | BR136: 15 | BS136: 126 | BT136: 4 | BU136: - | BV136: 5 | BW136: 8
BN137: 120 | BO137: 1 | BP137: - | BQ137: 2 | BR137: 15 | BS137: 127 | BT137: 2 | BU137: - | BV137: 3 | BW137: 8
BS138: 128 | BT138: 17 | BU138: - | BV138: 1 | BW138: 8
BS139: 129 | BT139: 15 | BU139: - | BV139: 16 | BW139: 8
BS140: 130 | BT140: 13 | BU140: - | BV140: 14 | BW140: 8
BS141: 131 | BT141: 11 | BU141: - | BV141: 12 | BW141: 8
BS142: 132 | BT142: 9 | BU142: - | BV142: 10 | BW142: 8
BS143: 133 | BT143: 7 | BU143: - | BV143: 8 | BW143: 8
BS144: 134 | BT144: 5 | BU144: - | BV144: 6 | BW144: 8
BS145: 135 | BT145: 3 | BU145: - | BV145: 4 | BW145: 8
BS146: 136 | BT146: 1 | BU146: - | BV146: 2 | BW146: 8

Sheet 1組
E1: =概要設定!B2 -> 2016 | F1: 年 | I1: =概要設定!D2 -> 3 | J1: 月 | L1: 例会 | P1: =概要設定!B4 -> 京奈対抗戦
H2: =COUNTA(E6:E29) -> 12 | I2: 人 | K2: =概要設定!B6 -> 180 | L2: 点コールショット | T2: 開催日： | V2: =E1&"/"&I1&"/"&概要設定!F2 -> 2016/3/13 | AN2: 会場： | AO2: =概要設定!B8 -> キングスポット
B4: No | C4: ハンデ | D4: ハンデ | E4: No. | F4: 1 | H4: 2 | J4: 3 | L4: 4 | N4: 5 | P4: 6 | R4: 7 | T4: 8 | V4: 9 | X4: 10 | Z4: 11 | AB4: 12 | AD4: 13 | AF4: 14 | AH4: 15 | AJ4: 16 | AL4: 17
C5: 得点 | F5: =IF($E6="","",$E6) -> 白戸 | H5: =IF($E8="","",$E8) -> 近藤 | J5: =IF($E10="","",$E10) -> 吉向 | L5: =IF($E12="","",$E12) -> 山田 晋之 | N5: =IF($E14="","",$E14) -> 山田晃司 | P5: =IF($E16="","",$E16) -> 長谷川 | R5: =IF($E18="","",$E18) -> 植田 | T5: =IF($E20="","",$E20) -> 金澤 | V5: =IF($E22="","",$E22) -> 宮野 | X5: =IF($E24="","",$E24) -> 岩本 | Z5: =IF($E26="","",$E26) -> 水田 | AB5: =IF($E28="","",$E28) -> 斎藤裕児 | AD5: =IF($E30="","",$E30) -> 鷲尾 | AF5: =IF($E32="","",$E32) ->  | AH5: =IF($E34="","",$E34) ->  | AJ5: =IF($E36="","",$E36) ->  | AL5: =IF($E38="","",$E38) ->  | AN5: W | AO5: L | AP5: TP | AQ5: LP | AR5: R_POINT | AS5: R | AT5: HR
B6: 1 | C6: =IF($E6="","",INDEX(概要設定!$J$2:$K$21,MATCH($E6, 概要設定!$J$2:$J$21,0),2)) -> 0 | D6: =IF($C6="-","△","") ->  | E6: 白戸 | Q6: 110 | U6: 108 | AN6: =IF(E6="","",COUNTIF($F7:AL7,"w")) -> 5 | AO6: =IF(E6="","",COUNTIF(F7:AL7,">=0")) -> 1 | AP6: =IF(E6="","",INT((SUM(F7:AM7)+($C7*AN6))*$K$2/$C7)) -> 1073 | AQ6: =IF($E6="","",SUM(F$7:F$39)) -> 263 | AR6: =IF(E6="","",AN6*100000000+AP6*10000-AQ6) -> 510729737 | AS6: =IF(E6="","",RANK(AR6,$AR$6:$AR$39)+COUNTIF($AR$6:AR6,AR6)-1) -> 1 | AT6: =MAX($G6:$AM6) -> 110
C7: =IF($E6="","",IF($C6<>"-",概要設定!$B$6,INDEX(概要設定!$L$2:$M$6,MATCH(概要設定!$B$6, 概要設定!$L$2:$L$6,0),2))) -> 180 | L7: w | P7: w | R7: 173 | T7: w | V7: w | Z7: w
B8: 2 | C8: =IF($E8="","",INDEX(概要設定!$J$2:$K$21,MATCH($E8, 概要設定!$J$2:$J$21,0),2)) -> 0 | D8: =IF($C8="-","△","") ->  | E8: 近藤 | AN8: =IF(E8="","",COUNTIF($F9:AL9,"w")) -> 4 | AO8: =IF(E8="","",COUNTIF(F9:AL9,">=0")) -> 2 | AP8: =IF(E8="","",INT((SUM(F9:AM9)+($C9*AN8))*$K$2/$C9)) -> 829 | AQ8: =IF($E8="","",SUM(H$7:H$39)) -> 343 | AR8: =IF(E8="","",AN8*100000000+AP8*10000-AQ8) -> 408289657 | AS8: =IF(E8="","",RANK(AR8,$AR$6:$AR$39)+COUNTIF($AR$6:AR8,AR8)-1) -> 5 | AT8: =MAX($G8:$AM8) -> 0
C9: =IF($E8="","",IF($C8<>"-",概要設定!$B$6,INDEX(概要設定!$L$2:$M$6,MATCH(概要設定!$B$6, 概要設定!$L$2:$L$6,0),2))) -> 180 | L9: w | P9: w | T9: 34 | X9: w | AB9: 75 | AD9: w
B10: 3 | C10: =IF($E10="","",INDEX(概要設定!$J$2:$K$21,MATCH($E10, 概要設定!$J$2:$J$21,0),2)) -> 0 | D10: =IF($C10="-","△","") ->  | E10: 吉向 | Q10: 105 | U10: 104 | AN10: =IF(E10="","",COUNTIF($F11:AL11,"w")) -> 5 | AO10: =IF(E10="","",COUNTIF(F11:AL11,">=0")) -> 1 | AP10: =IF(E10="","",INT((SUM(F11:AM11)+($C11*AN10))*$K$2/$C11)) -> 1065 | AQ10: =IF($E10="","",SUM(J$7:J$39)) -> 316 | AR10: =IF(E10="","",AN10*100000000+AP10*10000-AQ10) -> 510649684 | AS10: =IF(E10="","",RANK(AR10,$AR$6:$AR$39)+COUNTIF($AR$6:AR10,AR10)-1) -> 2 | AT10: =MAX($G10:$AM10) -> 105
C11: =IF($E10="","",IF($C10<>"-",概要設定!$B$6,INDEX(概要設定!$L$2:$M$6,MATCH(概要設定!$B$6, 概要設定!$L$2:$L$6,0),2))) -> 180 | P11: w | T11: w | X11: w | Z11: w | AB11: w | AD11: 165
B12: 4 | C12: =IF($E12="","",INDEX(概要設定!$J$2:$K$21,MATCH($E12, 概要設定!$J$2:$J$21,0),2)) -> 0 | D12: =IF($C12="-","△","") ->  | E12: 山田 晋之 | AN12: =IF(E12="","",COUNTIF($F13:AL13,"w")) -> 2 | AO12: =IF(E12="","",COUNTIF(F13:AL13,">=0")) -> 4 | AP12: =IF(E12="","",INT((SUM(F13:AM13)+($C13*AN12))*$K$2/$C13)) -> 757 | AQ12: =IF($E12="","",SUM(L$7:L$39)) -> 293 | AR12: =IF(E12="","",AN12*100000000+AP12*10000-AQ12) -> 207569707 | AS12: =IF(E12="","",RANK(AR12,$AR$6:$AR$39)+COUNTIF($AR$6:AR12,AR12)-1) -> 10 | AT12: =MAX($G12:$AM12) -> 0
C13: =IF($E12="","",IF($C12<>"-",概要設定!$B$6,INDEX(概要設定!$L$2:$M$6,MATCH(概要設定!$B$6, 概要設定!$L$2:$L$6,0),2))) -> 180 | F13: 95 | H13: 100 | P13: w | T13: w | X13: 59 | AB13: 143
B14: 5 | C14: =IF($E14="","",INDEX(概要設定!$J$2:$K$21,MATCH($E14, 概要設定!$J$2:$J$21,0),2)) -> 0 | D14: =IF($C14="-","△","") ->  | E14: 山田晃司 | AN14: =IF(E14="","",COUNTIF($F15:AL15,"w")) -> 5 | AO14: =IF(E14="","",COUNTIF(F15:AL15,">=0")) -> 1 | AP14: =IF(E14="","",INT((SUM(F15:AM15)+($C15*AN14))*$K$2/$C15)) -> 1018 | AQ14: =IF($E14="","",SUM(N$7:N$39)) -> 648 | AR14: =IF(E14="","",AN14*100000000+AP14*10000-AQ14) -> 510179352 | AS14: =IF(E14="","",RANK(AR14,$AR$6:$AR$39)+COUNTIF($AR$6:AR14,AR14)-1) -> 3 | AT14: =MAX($G14:$AM14) -> 0
C15: =IF($E14="","",IF($C14<>"-",概要設定!$B$6,INDEX(概要設定!$L$2:$M$6,MATCH(概要設定!$B$6, 概要設定!$L$2:$L$6,0),2))) -> 180 | T15: w | V15: w | X15: w | Z15: w | AB15: 118 | AD15: w
B16: 6 | C16: =IF($E16="","",INDEX(概要設定!$J$2:$K$21,MATCH($E16, 概要設定!$J$2:$J$21,0),2)) -> 0 | D16: =IF($C16="-","△","") ->  | E16: 長谷川 | AN16: =IF(E16="","",COUNTIF($F17:AL17,"w")) -> 1 | AO16: =IF(E16="","",COUNTIF(F17:AL17,">=0")) -> 5 | AP16: =IF(E16="","",INT((SUM(F17:AM17)+($C17*AN16))*$K$2/$C17)) -> 518 | AQ16: =IF($E16="","",SUM(P$7:P$39)) -> 102 | AR16: =IF(E16="","",AN16*100000000+AP16*10000-AQ16) -> 105179898 | AS16: =IF(E16="","",RANK(AR16,$AR$6:$AR$39)+COUNTIF($AR$6:AR16,AR16)-1) -> 13 | AT16: =MAX($G16:$AM16) -> 0
C17: =IF($E16="","",IF($C16<>"-",概要設定!$B$6,INDEX(概要設定!$L$2:$M$6,MATCH(概要設定!$B$6, 概要設定!$L$2:$L$6,0),2))) -> 180 | F17: 16 | H17: 69 | J17: 26 | L17: 162 | T17: 65 | X17: w
B18: 7 | C18: =IF($E18="","",INDEX(概要設定!$J$2:$K$21,MATCH($E18, 概要設定!$J$2:$J$21,0),2)) -> 0 | D18: =IF($C18="-","△","") ->  | E18: 植田 | AN18: =IF(E18="","",COUNTIF($F19:AL19,"w")) -> 3 | AO18: =IF(E18="","",COUNTIF(F19:AL19,">=0")) -> 3 | AP18: =IF(E18="","",INT((SUM(F19:AM19)+($C19*AN18))*$K$2/$C19)) -> 902 | AQ18: =IF($E18="","",SUM(R$7:R$39)) -> 393 | AR18: =IF(E18="","",AN18*100000000+AP18*10000-AQ18) -> 309019607 | AS18: =IF(E18="","",RANK(AR18,$AR$6:$AR$39)+COUNTIF($AR$6:AR18,AR18)-1) -> 6 | AT18: =MAX($G18:$AM18) -> 0
C19: =IF($E18="","",IF($C18<>"-",概要設定!$B$6,INDEX(概要設定!$L$2:$M$6,MATCH(概要設定!$B$6, 概要設定!$L$2:$L$6,0),2))) -> 180 | F19: w | V19: w | X19: 170 | Z19: 122 | AB19: 70 | AD19: w
B20: 8 | C20: =IF($E20="","",INDEX(概要設定!$J$2:$K$21,MATCH($E20, 概要設定!$J$2:$J$21,0),2)) -> 0 | D20: =IF($C20="-","△","") ->  | E20: 金澤 | I20: 120 | AN20: =IF(E20="","",COUNTIF($F21:AL21,"w")) -> 2 | AO20: =IF(E20="","",COUNTIF(F21:AL21,">=0")) -> 4 | AP20: =IF(E20="","",INT((SUM(F21:AM21)+($C21*AN20))*$K$2/$C21)) -> 804 | AQ20: =IF($E20="","",SUM(T$7:T$39)) -> 99 | AR20: =IF(E20="","",AN20*100000000+AP20*10000-AQ20) -> 208039901 | AS20: =IF(E20="","",RANK(AR20,$AR$6:$AR$39)+COUNTIF($AR$6:AR20,AR20)-1) -> 8 | AT20: =MAX($G20:$AM20) -> 120
C21: =IF($E20="","",IF($C20<>"-",概要設定!$B$6,INDEX(概要設定!$L$2:$M$6,MATCH(概要設定!$B$6, 概要設定!$L$2:$L$6,0),2))) -> 180 | F21: 45 | H21: w | J21: 124 | L21: 131 | N21: 144 | P21: w
B22: 9 | C22: =IF($E22="","",INDEX(概要設定!$J$2:$K$21,MATCH($E22, 概要設定!$J$2:$J$21,0),2)) -> - | D22: =IF($C22="-","△","") -> △ | E22: 宮野 | AN22: =IF(E22="","",COUNTIF($F23:AL23,"w")) -> 1 | AO22: =IF(E22="","",COUNTIF(F23:AL23,">=0")) -> 5 | AP22: =IF(E22="","",INT((SUM(F23:AM23)+($C23*AN22))*$K$2/$C23)) -> 528 | AQ22: =IF($E22="","",SUM(V$7:V$39)) -> 141 | AR22: =IF(E22="","",AN22*100000000+AP22*10000-AQ22) -> 105279859 | AS22: =IF(E22="","",RANK(AR22,$AR$6:$AR$39)+COUNTIF($AR$6:AR22,AR22)-1) -> 12 | AT22: =MAX($G22:$AM22) -> 0
C23: =IF($E22="","",IF($C22<>"-",概要設定!$B$6,INDEX(概要設定!$L$2:$M$6,MATCH(概要設定!$B$6, 概要設定!$L$2:$L$6,0),2))) -> 140 | F23: 0 | N23: 122 | R23: 95 | Z23: 54 | AB23: 0 | AD23: w
B24: 10 | C24: =IF($E24="","",INDEX(概要設定!$J$2:$K$21,MATCH($E24, 概要設定!$J$2:$J$21,0),2)) -> 0 | D24: =IF($C24="-","△","") ->  | E24: 岩本 | AN24: =IF(E24="","",COUNTIF($F25:AL25,"w")) -> 2 | AO24: =IF(E24="","",COUNTIF(F25:AL25,">=0")) -> 4 | AP24: =IF(E24="","",INT((SUM(F25:AM25)+($C25*AN24))*$K$2/$C25)) -> 860 | AQ24: =IF($E24="","",SUM(X$7:X$39)) -> 229 | AR24: =IF(E24="","",AN24*100000000+AP24*10000-AQ24) -> 208599771 | AS24: =IF(E24="","",RANK(AR24,$AR$6:$AR$39)+COUNTIF($AR$6:AR24,AR24)-1) -> 7 | AT24: =MAX($G24:$AM24) -> 0
C25: =IF($E24="","",IF($C24<>"-",概要設定!$B$6,INDEX(概要設定!$L$2:$M$6,MATCH(概要設定!$B$6, 概要設定!$L$2:$L$6,0),2))) -> 180 | H25: 166 | J25: 60 | L25: w | N25: 172 | P25: 102 | R25: w
B26: 11 | C26: =IF($E26="","",INDEX(概要設定!$J$2:$K$21,MATCH($E26, 概要設定!$J$2:$J$21,0),2)) -> 0 | D26: =IF($C26="-","△","") ->  | E26: 水田 | AN26: =IF(E26="","",COUNTIF($F27:AL27,"w")) -> 2 | AO26: =IF(E26="","",COUNTIF(F27:AL27,">=0")) -> 4 | AP26: =IF(E26="","",INT((SUM(F27:AM27)+($C27*AN26))*$K$2/$C27)) -> 691 | AQ26: =IF($E26="","",SUM(Z$7:Z$39)) -> 176 | AR26: =IF(E26="","",AN26*100000000+AP26*10000-AQ26) -> 206909824 | AS26: =IF(E26="","",RANK(AR26,$AR$6:$AR$39)+COUNTIF($AR$6:AR26,AR26)-1) -> 11 | AT26: =MAX($G26:$AM26) -> 0
C27: =IF($E26="","",IF($C26<>"-",概要設定!$B$6,INDEX(概要設定!$L$2:$M$6,MATCH(概要設定!$B$6, 概要設定!$L$2:$L$6,0),2))) -> 180 | F27: 107 | J27: 42 | N27: 59 | R27: w | V27: w | AD27: 123
B28: 12 | C28: =IF($E28="","",INDEX(概要設定!$J$2:$K$21,MATCH($E28, 概要設定!$J$2:$J$21,0),2)) -> 0 | D28: =IF($C28="-","△","") ->  | E28: 斎藤裕児 | O28: 105 | S28: 106 | AN28: =IF(E28="","",COUNTIF($F29:AL29,"w")) -> 5 | AO28: =IF(E28="","",COUNTIF(F29:AL29,">=0")) -> 1 | AP28: =IF(E28="","",INT((SUM(F29:AM29)+($C29*AN28))*$K$2/$C29)) -> 964 | AQ28: =IF($E28="","",SUM(AB$7:AB$39)) -> 406 | AR28: =IF(E28="","",AN28*100000000+AP28*10000-AQ28) -> 509639594 | AS28: =IF(E28="","",RANK(AR28,$AR$6:$AR$39)+COUNTIF($AR$6:AR28,AR28)-1) -> 4
C29: =IF($E28="","",IF($C28<>"-",概要設定!$B$6,INDEX(概要設定!$L$2:$M$6,MATCH(概要設定!$B$6, 概要設定!$L$2:$L$6,0),2))) -> 180 | H29: w | J29: 64 | L29: w | N29: w | R29: w | V29: w
B30: 13 | C30: =IF($E30="","",INDEX(概要設定!$J$2:$K$21,MATCH($E30, 概要設定!$J$2:$J$21,0),2)) -> 0 | D30: =IF($C30="-","△","") ->  | E30: 鷲尾 | AA30: 103 | AN30: =IF(E30="","",COUNTIF($F31:AL31,"w")) -> 2 | AO30: =IF(E30="","",COUNTIF(F31:AL31,">=0")) -> 4 | AP30: =IF(E30="","",INT((SUM(F31:AM31)+($C31*AN30))*$K$2/$C31)) -> 785 | AQ30: =IF($E30="","",SUM(AD$7:AD$39)) -> 288 | AR30: =IF(E30="","",AN30*100000000+AP30*10000-AQ30) -> 207849712 | AS30: =IF(E30="","",RANK(AR30,$AR$6:$AR$39)+COUNTIF($AR$6:AR30,AR30)-1) -> 9 | AT30: =MAX($G30:$AM30) -> 103
C31: =IF($E30="","",IF($C30<>"-",概要設定!$B$6,INDEX(概要設定!$L$2:$M$6,MATCH(概要設定!$B$6, 概要設定!$L$2:$L$6,0),2))) -> 180 | H31: 8 | J31: w | N31: 151 | R31: 125 | V31: 141 | Z31: w
B32: 14 | C32: =IF($E32="","",INDEX(概要設定!$J$2:$K$21,MATCH($E32, 概要設定!$J$2:$J$21,0),2)) ->  | D32: =IF($C32="-","△","") ->  | AN32: =IF(E32="","",COUNTIF($F33:AL33,"w")) ->  | AO32: =IF(E32="","",COUNTIF(F33:AL33,">=0")) ->  | AP32: =IF(E32="","",INT((SUM(F33:AM33)+($C33*AN32))*$K$2/$C33)) ->  | AQ32: =IF($E32="","",SUM(AF$7:AF$39)) ->  | AR32: =IF(E32="","",AN32*100000000+AP32*10000-AQ32) ->  | AS32: =IF(E32="","",RANK(AR32,$AR$6:$AR$39)+COUNTIF($AR$6:AR32,AR32)-1) ->  | AT32: =MAX($G32:$AM32) -> 0
C33: =IF($E32="","",IF($C32<>"-",概要設定!$B$6,INDEX(概要設定!$L$2:$M$6,MATCH(概要設定!$B$6, 概要設定!$L$2:$L$6,0),2))) -> 
B34: 15 | C34: =IF($E34="","",INDEX(概要設定!$J$2:$K$21,MATCH($E34, 概要設定!$J$2:$J$21,0),2)) ->  | D34: =IF($C34="-","△","") ->  | AN34: =IF(E34="","",COUNTIF($F35:AL35,"w")) ->  | AO34: =IF(E34="","",COUNTIF(F35:AL35,">=0")) ->  | AP34: =IF(E34="","",INT((SUM(F35:AM35)+($C35*AN34))*$K$2/$C35)) ->  | AQ34: =IF($E34="","",SUM(AH$7:AH$39)) ->  | AR34: =IF(E34="","",AN34*100000000+AP34*10000-AQ34) ->  | AS34: =IF(E34="","",RANK(AR34,$AR$6:$AR$39)+COUNTIF($AR$6:AR34,AR34)-1) ->  | AT34: =MAX($G34:$AM34) -> 0
C35: =IF($E34="","",IF($C34<>"-",概要設定!$B$6,INDEX(概要設定!$L$2:$M$6,MATCH(概要設定!$B$6, 概要設定!$L$2:$L$6,0),2))) -> 
B36: 16 | C36: =IF($E36="","",INDEX(概要設定!$J$2:$K$21,MATCH($E36, 概要設定!$J$2:$J$21,0),2)) ->  | D36: =IF($C36="-","△","") ->  | AN36: =IF(E36="","",COUNTIF($F37:AL37,"w")) ->  | AO36: =IF(E36="","",COUNTIF(F37:AL37,">=0")) ->  | AP36: =IF(E36="","",INT((SUM(F37:AM37)+($C37*AN36))*$K$2/$C37)) ->  | AQ36: =IF($E36="","",SUM(AJ$7:AJ$39)) ->  | AR36: =IF(E36="","",AN36*100000000+AP36*10000-AQ36) ->  | AS36: =IF(E36="","",RANK(AR36,$AR$6:$AR$39)+COUNTIF($AR$6:AR36,AR36)-1) ->  | AT36: =MAX($G36:$AM36) -> 0
C37: =IF($E36="","",IF($C36<>"-",概要設定!$B$6,INDEX(概要設定!$L$2:$M$6,MATCH(概要設定!$B$6, 概要設定!$L$2:$L$6,0),2))) -> 
B38: 17 | C38: =IF($E38="","",INDEX(概要設定!$J$2:$K$21,MATCH($E38, 概要設定!$J$2:$J$21,0),2)) ->  | D38: =IF($C38="-","△","") ->  | AN38: =IF(E38="","",COUNTIF($F39:AL39,"w")) ->  | AO38: =IF(E38="","",COUNTIF(F39:AL39,">=0")) ->  | AP38: =IF(E38="","",INT((SUM(F39:AM39)+($C39*AN38))*$K$2/$C39)) ->  | AQ38: =IF($E38="","",SUM(AL$7:AL$39)) ->  | AR38: =IF(E38="","",AN38*100000000+AP38*10000-AQ38) ->  | AS38: =IF(E38="","",RANK(AR38,$AR$6:$AR$39)+COUNTIF($AR$6:AR38,AR38)-1) ->  | AT38: =MAX($G38:$AM38) -> 0
C39: =IF($E38="","",IF($C38<>"-",概要設定!$B$6,INDEX(概要設定!$L$2:$M$6,MATCH(概要設定!$B$6, 概要設定!$L$2:$L$6,0),2))) -> 
E40: ※注1）17人まで対応 ※注2）印刷する時はマス目以外の所でクリック（A1） ※注3）負けスコア入力後”w”が自動表示、Ctrl+qは自分相手クリア、Ctrl+f は全てクリア、Ctrl+k は対戦マス目のみクリア
F42: 記入例 | H42: A | I42: 120 | L42: B | M42: 120 | Q42: 115
H43: w | L43: w | P43: w

Sheet RT
D1: 人数により自動でRTを作成→ | J1: 人数は： | K1: =IF('1組'!$E6="","",34 - COUNTIF('1組'!$E$6:$E$39,"") ) -> 13 | L1: 人 | M1: 列数は： | N1: =IF($K$1="","",HLOOKUP($K$1,list!$A$1:$BW$2,2,FALSE)) -> 52 | O1: 列 | P1: (listセルの開始列数) | AC1: 3人～17人対応 RT作成ボタンで対戦相手が表示されラベルも同時に作成されます。 ※注）RT、一組で入力したスコアは消えます。
D2: ←スコアを1組セルに反映 | J2: 何節まで： | K2: 3 | L2: 節 | P2: １組側の行と列変換 | AC2: RT作成ボタンを押す前に、1組の選手を登録すると人数が自動表示されます。（人数は入力しないで下さい。）
A3: 試合数 | B3: 節数/No. | C3: 名 前 | D3: スコア | F3: スコア | H3: 名 前 | I3: No. | M3: スコアL行 | N3: スコアL列 | O3: ABL行 | P3: ABL列 | Q3: HRL行 | R3: HRL列 | S3: ハンデ左 | T3: スコアL行 | U3: スコアL列 | V3: ABR行 | W3: ABR列 | X3: HRR行 | Y3: HRR列 | Z3: ハンデ右 | AC3: 節数を入力しRT作成ボタンを押すと、入力節まで表示されます。（”９９”と入力すると全節が表示され”０”だと全節クリアされます。）
B5: 一節 | C5: =IF(AND($B5>=1,$B5<=17),INDEX('1組'!$B$6:$E$39,MATCH($B5,'1組'!$B$6:$B$39,0),4),"") ->  | H5: =IF(AND($I5>=1,$I5<=17),INDEX('1組'!$B$6:$E$39,MATCH($I5,'1組'!$B$6:$B$39,0),4),"") ->  | M5: =IF($A5="","",$B5+$B5+5) ->  | N5: =IF($A5="","",$I5+$I5+4) ->  | T5: =IF($A5="","",$I5+$I5+5) ->  | U5: =IF($A5="","",$B5+$B5+4) ->  | AC5: スコア入力後、1組へ反映ボタンを押すと、1組にスコアが反映されます。※注）１組で入力したスコアは消えます。
A7: 1 | B7: 2 | C7: =IF(AND($B7>=1,$B7<=17),INDEX('1組'!$B$6:$E$39,MATCH($B7,'1組'!$B$6:$B$39,0),4),"") -> 近藤 | D7: w | F7: 100 | H7: =IF(AND($I7>=1,$I7<=17),INDEX('1組'!$B$6:$E$39,MATCH($I7,'1組'!$B$6:$B$39,0),4),"") -> 山田 晋之 | I7: 4 | M7: =IF($A7="","",$B7+$B7+5) -> 9 | N7: =IF($A7="","",$I7+$I7+4) -> 12 | O7: =IF($A7="","",$M7-1) -> 8 | P7: =IF($A7="","",$N7) -> 12 | Q7: =IF($A7="","",$M7-1) -> 8 | R7: =IF($A7="","",$N7+1) -> 13 | S7: =IF(AND($B7>=1,$B7<=17),OFFSET(INDEX('1組'!$B$6:$E$39,MATCH($B7,'1組'!$B$6:$B$39,0),2),1,0),"") -> 180 | T7: =IF($A7="","",$I7+$I7+5) -> 13 | U7: =IF($A7="","",$B7+$B7+4) -> 8 | V7: =IF($A7="","",$T7-1) -> 12 | W7: =IF($A7="","",$U7) -> 8 | X7: =IF($A7="","",$T7-1) -> 12 | Y7: =IF($A7="","",$U7+1) -> 9 | Z7: =IF(AND($I7>=1,$I7<=17),OFFSET(INDEX('1組'!$B$6:$E$39,MATCH($I7,'1組'!$B$6:$B$39,0),2),1,0),"") -> 180 | AC7: １組からRTへの反映は出来ません。
E8: 105
A9: 2 | B9: 3 | C9: =IF(AND($B9>=1,$B9<=17),INDEX('1組'!$B$6:$E$39,MATCH($B9,'1組'!$B$6:$B$39,0),4),"") -> 吉向 | D9: w | F9: 26 | H9: =IF(AND($I9>=1,$I9<=17),INDEX('1組'!$B$6:$E$39,MATCH($I9,'1組'!$B$6:$B$39,0),4),"") -> 長谷川 | I9: 6 | M9: =IF($A9="","",$B9+$B9+5) -> 11 | N9: =IF($A9="","",$I9+$I9+4) -> 16 | O9: =IF($A9="","",$M9-1) -> 10 | P9: =IF($A9="","",$N9) -> 16 | Q9: =IF($A9="","",$M9-1) -> 10 | R9: =IF($A9="","",$N9+1) -> 17 | S9: =IF(AND($B9>=1,$B9<=17),OFFSET(INDEX('1組'!$B$6:$E$39,MATCH($B9,'1組'!$B$6:$B$39,0),2),1,0),"") -> 180 | T9: =IF($A9="","",$I9+$I9+5) -> 17 | U9: =IF($A9="","",$B9+$B9+4) -> 10 | V9: =IF($A9="","",$T9-1) -> 16 | W9: =IF($A9="","",$U9) -> 10 | X9: =IF($A9="","",$T9-1) -> 16 | Y9: =IF($A9="","",$U9+1) -> 11 | Z9: =IF(AND($I9>=1,$I9<=17),OFFSET(INDEX('1組'!$B$6:$E$39,MATCH($I9,'1組'!$B$6:$B$39,0),2),1,0),"") -> 180
AC10: 記入例 | AD10: A | AE10: 110 | AG10: B | AH10: 110 | AK10: 110
A11: 3 | B11: 5 | C11: =IF(AND($B11>=1,$B11<=17),INDEX('1組'!$B$6:$E$39,MATCH($B11,'1組'!$B$6:$B$39,0),4),"") -> 山田晃司 | D11: w | F11: 144 | H11: =IF(AND($I11>=1,$I11<=17),INDEX('1組'!$B$6:$E$39,MATCH($I11,'1組'!$B$6:$B$39,0),4),"") -> 金澤 | I11: 8 | M11: =IF($A11="","",$B11+$B11+5) -> 15 | N11: =IF($A11="","",$I11+$I11+4) -> 20 | O11: =IF($A11="","",$M11-1) -> 14 | P11: =IF($A11="","",$N11) -> 20 | Q11: =IF($A11="","",$M11-1) -> 14 | R11: =IF($A11="","",$N11+1) -> 21 | S11: =IF(AND($B11>=1,$B11<=17),OFFSET(INDEX('1組'!$B$6:$E$39,MATCH($B11,'1組'!$B$6:$B$39,0),2),1,0),"") -> 180 | T11: =IF($A11="","",$I11+$I11+5) -> 21 | U11: =IF($A11="","",$B11+$B11+4) -> 14 | V11: =IF($A11="","",$T11-1) -> 20 | W11: =IF($A11="","",$U11) -> 14 | X11: =IF($A11="","",$T11-1) -> 20 | Y11: =IF($A11="","",$U11+1) -> 15 | Z11: =IF(AND($I11>=1,$I11<=17),OFFSET(INDEX('1組'!$B$6:$E$39,MATCH($I11,'1組'!$B$6:$B$39,0),2),1,0),"") -> 180 | AD11: w | AG11: w | AJ11: 125
A13: 4 | B13: 10 | C13: =IF(AND($B13>=1,$B13<=17),INDEX('1組'!$B$6:$E$39,MATCH($B13,'1組'!$B$6:$B$39,0),4),"") -> 岩本 | D13: w | F13: 170 | H13: =IF(AND($I13>=1,$I13<=17),INDEX('1組'!$B$6:$E$39,MATCH($I13,'1組'!$B$6:$B$39,0),4),"") -> 植田 | I13: 7 | M13: =IF($A13="","",$B13+$B13+5) -> 25 | N13: =IF($A13="","",$I13+$I13+4) -> 18 | O13: =IF($A13="","",$M13-1) -> 24 | P13: =IF($A13="","",$N13) -> 18 | Q13: =IF($A13="","",$M13-1) -> 24 | R13: =IF($A13="","",$N13+1) -> 19 | S13: =IF(AND($B13>=1,$B13<=17),OFFSET(INDEX('1組'!$B$6:$E$39,MATCH($B13,'1組'!$B$6:$B$39,0),2),1,0),"") -> 180 | T13: =IF($A13="","",$I13+$I13+5) -> 19 | U13: =IF($A13="","",$B13+$B13+4) -> 24 | V13: =IF($A13="","",$T13-1) -> 18 | W13: =IF($A13="","",$U13) -> 24 | X13: =IF($A13="","",$T13-1) -> 18 | Y13: =IF($A13="","",$U13+1) -> 25 | Z13: =IF(AND($I13>=1,$I13<=17),OFFSET(INDEX('1組'!$B$6:$E$39,MATCH($I13,'1組'!$B$6:$B$39,0),2),1,0),"") -> 180 | AD13: 勝者は"w"半角小文字で入力して下さい。
A15: 5 | B15: 9 | C15: =IF(AND($B15>=1,$B15<=17),INDEX('1組'!$B$6:$E$39,MATCH($B15,'1組'!$B$6:$B$39,0),4),"") -> 宮野 | D15: 0 | F15: w | H15: =IF(AND($I15>=1,$I15<=17),INDEX('1組'!$B$6:$E$39,MATCH($I15,'1組'!$B$6:$B$39,0),4),"") -> 斎藤裕児 | I15: 12 | M15: =IF($A15="","",$B15+$B15+5) -> 23 | N15: =IF($A15="","",$I15+$I15+4) -> 28 | O15: =IF($A15="","",$M15-1) -> 22 | P15: =IF($A15="","",$N15) -> 28 | Q15: =IF($A15="","",$M15-1) -> 22 | R15: =IF($A15="","",$N15+1) -> 29 | S15: =IF(AND($B15>=1,$B15<=17),OFFSET(INDEX('1組'!$B$6:$E$39,MATCH($B15,'1組'!$B$6:$B$39,0),2),1,0),"") -> 140 | T15: =IF($A15="","",$I15+$I15+5) -> 29 | U15: =IF($A15="","",$B15+$B15+4) -> 22 | V15: =IF($A15="","",$T15-1) -> 28 | W15: =IF($A15="","",$U15) -> 22 | X15: =IF($A15="","",$T15-1) -> 28 | Y15: =IF($A15="","",$U15+1) -> 23 | Z15: =IF(AND($I15>=1,$I15<=17),OFFSET(INDEX('1組'!$B$6:$E$39,MATCH($I15,'1組'!$B$6:$B$39,0),2),1,0),"") -> 180 | AD15: 敗者側のスコアを入力すると相手側に”ｗ”が自動表示されます。
G16: 103
A17: 6 | B17: 11 | C17: =IF(AND($B17>=1,$B17<=17),INDEX('1組'!$B$6:$E$39,MATCH($B17,'1組'!$B$6:$B$39,0),4),"") -> 水田 | D17: 123 | F17: w | H17: =IF(AND($I17>=1,$I17<=17),INDEX('1組'!$B$6:$E$39,MATCH($I17,'1組'!$B$6:$B$39,0),4),"") -> 鷲尾 | I17: 13 | M17: =IF($A17="","",$B17+$B17+5) -> 27 | N17: =IF($A17="","",$I17+$I17+4) -> 30 | O17: =IF($A17="","",$M17-1) -> 26 | P17: =IF($A17="","",$N17) -> 30 | Q17: =IF($A17="","",$M17-1) -> 26 | R17: =IF($A17="","",$N17+1) -> 31 | S17: =IF(AND($B17>=1,$B17<=17),OFFSET(INDEX('1組'!$B$6:$E$39,MATCH($B17,'1組'!$B$6:$B$39,0),2),1,0),"") -> 180 | T17: =IF($A17="","",$I17+$I17+5) -> 31 | U17: =IF($A17="","",$B17+$B17+4) -> 26 | V17: =IF($A17="","",$T17-1) -> 30 | W17: =IF($A17="","",$U17) -> 26 | X17: =IF($A17="","",$T17-1) -> 30 | Y17: =IF($A17="","",$U17+1) -> 27 | Z17: =IF(AND($I17>=1,$I17<=17),OFFSET(INDEX('1組'!$B$6:$E$39,MATCH($I17,'1組'!$B$6:$B$39,0),2),1,0),"") -> 180
A19: 7 | B19: 4 | C19: =IF(AND($B19>=1,$B19<=17),INDEX('1組'!$B$6:$E$39,MATCH($B19,'1組'!$B$6:$B$39,0),4),"") -> 山田 晋之 | D19: 95 | F19: w | H19: =IF(AND($I19>=1,$I19<=17),INDEX('1組'!$B$6:$E$39,MATCH($I19,'1組'!$B$6:$B$39,0),4),"") -> 白戸 | I19: 1 | M19: =IF($A19="","",$B19+$B19+5) -> 13 | N19: =IF($A19="","",$I19+$I19+4) -> 6 | O19: =IF($A19="","",$M19-1) -> 12 | P19: =IF($A19="","",$N19) -> 6 | Q19: =IF($A19="","",$M19-1) -> 12 | R19: =IF($A19="","",$N19+1) -> 7 | S19: =IF(AND($B19>=1,$B19<=17),OFFSET(INDEX('1組'!$B$6:$E$39,MATCH($B19,'1組'!$B$6:$B$39,0),2),1,0),"") -> 180 | T19: =IF($A19="","",$I19+$I19+5) -> 7 | U19: =IF($A19="","",$B19+$B19+4) -> 12 | V19: =IF($A19="","",$T19-1) -> 6 | W19: =IF($A19="","",$U19) -> 12 | X19: =IF($A19="","",$T19-1) -> 6 | Y19: =IF($A19="","",$U19+1) -> 13 | Z19: =IF(AND($I19>=1,$I19<=17),OFFSET(INDEX('1組'!$B$6:$E$39,MATCH($I19,'1組'!$B$6:$B$39,0),2),1,0),"") -> 180
A21: 8 | B21: 2 | C21: =IF(AND($B21>=1,$B21<=17),INDEX('1組'!$B$6:$E$39,MATCH($B21,'1組'!$B$6:$B$39,0),4),"") -> 近藤 | D21: w | F21: 69 | H21: =IF(AND($I21>=1,$I21<=17),INDEX('1組'!$B$6:$E$39,MATCH($I21,'1組'!$B$6:$B$39,0),4),"") -> 長谷川 | I21: 6 | M21: =IF($A21="","",$B21+$B21+5) -> 9 | N21: =IF($A21="","",$I21+$I21+4) -> 16 | O21: =IF($A21="","",$M21-1) -> 8 | P21: =IF($A21="","",$N21) -> 16 | Q21: =IF($A21="","",$M21-1) -> 8 | R21: =IF($A21="","",$N21+1) -> 17 | S21: =IF(AND($B21>=1,$B21<=17),OFFSET(INDEX('1組'!$B$6:$E$39,MATCH($B21,'1組'!$B$6:$B$39,0),2),1,0),"") -> 180 | T21: =IF($A21="","",$I21+$I21+5) -> 17 | U21: =IF($A21="","",$B21+$B21+4) -> 8 | V21: =IF($A21="","",$T21-1) -> 16 | W21: =IF($A21="","",$U21) -> 8 | X21: =IF($A21="","",$T21-1) -> 16 | Y21: =IF($A21="","",$U21+1) -> 9 | Z21: =IF(AND($I21>=1,$I21<=17),OFFSET(INDEX('1組'!$B$6:$E$39,MATCH($I21,'1組'!$B$6:$B$39,0),2),1,0),"") -> 180
E22: 104
A23: 9 | B23: 3 | C23: =IF(AND($B23>=1,$B23<=17),INDEX('1組'!$B$6:$E$39,MATCH($B23,'1組'!$B$6:$B$39,0),4),"") -> 吉向 | D23: w | F23: 124 | H23: =IF(AND($I23>=1,$I23<=17),INDEX('1組'!$B$6:$E$39,MATCH($I23,'1組'!$B$6:$B$39,0),4),"") -> 金澤 | I23: 8 | M23: =IF($A23="","",$B23+$B23+5) -> 11 | N23: =IF($A23="","",$I23+$I23+4) -> 20 | O23: =IF($A23="","",$M23-1) -> 10 | P23: =IF($A23="","",$N23) -> 20 | Q23: =IF($A23="","",$M23-1) -> 10 | R23: =IF($A23="","",$N23+1) -> 21 | S23: =IF(AND($B23>=1,$B23<=17),OFFSET(INDEX('1組'!$B$6:$E$39,MATCH($B23,'1組'!$B$6:$B$39,0),2),1,0),"") -> 180 | T23: =IF($A23="","",$I23+$I23+5) -> 21 | U23: =IF($A23="","",$B23+$B23+4) -> 10 | V23: =IF($A23="","",$T23-1) -> 20 | W23: =IF($A23="","",$U23) -> 10 | X23: =IF($A23="","",$T23-1) -> 20 | Y23: =IF($A23="","",$U23+1) -> 11 | Z23: =IF(AND($I23>=1,$I23<=17),OFFSET(INDEX('1組'!$B$6:$E$39,MATCH($I23,'1組'!$B$6:$B$39,0),2),1,0),"") -> 180
A25: 10 | B25: 5 | C25: =IF(AND($B25>=1,$B25<=17),INDEX('1組'!$B$6:$E$39,MATCH($B25,'1組'!$B$6:$B$39,0),4),"") -> 山田晃司 | D25: w | F25: 172 | H25: =IF(AND($I25>=1,$I25<=17),INDEX('1組'!$B$6:$E$39,MATCH($I25,'1組'!$B$6:$B$39,0),4),"") -> 岩本 | I25: 10 | M25: =IF($A25="","",$B25+$B25+5) -> 15 | N25: =IF($A25="","",$I25+$I25+4) -> 24 | O25: =IF($A25="","",$M25-1) -> 14 | P25: =IF($A25="","",$N25) -> 24 | Q25: =IF($A25="","",$M25-1) -> 14 | R25: =IF($A25="","",$N25+1) -> 25 | S25: =IF(AND($B25>=1,$B25<=17),OFFSET(INDEX('1組'!$B$6:$E$39,MATCH($B25,'1組'!$B$6:$B$39,0),2),1,0),"") -> 180 | T25: =IF($A25="","",$I25+$I25+5) -> 25 | U25: =IF($A25="","",$B25+$B25+4) -> 14 | V25: =IF($A25="","",$T25-1) -> 24 | W25: =IF($A25="","",$U25) -> 14 | X25: =IF($A25="","",$T25-1) -> 24 | Y25: =IF($A25="","",$U25+1) -> 15 | Z25: =IF(AND($I25>=1,$I25<=17),OFFSET(INDEX('1組'!$B$6:$E$39,MATCH($I25,'1組'!$B$6:$B$39,0),2),1,0),"") -> 180
G26: 106
A27: 11 | B27: 7 | C27: =IF(AND($B27>=1,$B27<=17),INDEX('1組'!$B$6:$E$39,MATCH($B27,'1組'!$B$6:$B$39,0),4),"") -> 植田 | D27: 70 | F27: w | H27: =IF(AND($I27>=1,$I27<=17),INDEX('1組'!$B$6:$E$39,MATCH($I27,'1組'!$B$6:$B$39,0),4),"") -> 斎藤裕児 | I27: 12 | M27: =IF($A27="","",$B27+$B27+5) -> 19 | N27: =IF($A27="","",$I27+$I27+4) -> 28 | O27: =IF($A27="","",$M27-1) -> 18 | P27: =IF($A27="","",$N27) -> 28 | Q27: =IF($A27="","",$M27-1) -> 18 | R27: =IF($A27="","",$N27+1) -> 29 | S27: =IF(AND($B27>=1,$B27<=17),OFFSET(INDEX('1組'!$B$6:$E$39,MATCH($B27,'1組'!$B$6:$B$39,0),2),1,0),"") -> 180 | T27: =IF($A27="","",$I27+$I27+5) -> 29 | U27: =IF($A27="","",$B27+$B27+4) -> 18 | V27: =IF($A27="","",$T27-1) -> 28 | W27: =IF($A27="","",$U27) -> 18 | X27: =IF($A27="","",$T27-1) -> 28 | Y27: =IF($A27="","",$U27+1) -> 19 | Z27: =IF(AND($I27>=1,$I27<=17),OFFSET(INDEX('1組'!$B$6:$E$39,MATCH($I27,'1組'!$B$6:$B$39,0),2),1,0),"") -> 180
A29: 12 | B29: 9 | C29: =IF(AND($B29>=1,$B29<=17),INDEX('1組'!$B$6:$E$39,MATCH($B29,'1組'!$B$6:$B$39,0),4),"") -> 宮野 | D29: w | F29: 141 | H29: =IF(AND($I29>=1,$I29<=17),INDEX('1組'!$B$6:$E$39,MATCH($I29,'1組'!$B$6:$B$39,0),4),"") -> 鷲尾 | I29: 13 | M29: =IF($A29="","",$B29+$B29+5) -> 23 | N29: =IF($A29="","",$I29+$I29+4) -> 30 | O29: =IF($A29="","",$M29-1) -> 22 | P29: =IF($A29="","",$N29) -> 30 | Q29: =IF($A29="","",$M29-1) -> 22 | R29: =IF($A29="","",$N29+1) -> 31 | S29: =IF(AND($B29>=1,$B29<=17),OFFSET(INDEX('1組'!$B$6:$E$39,MATCH($B29,'1組'!$B$6:$B$39,0),2),1,0),"") -> 140 | T29: =IF($A29="","",$I29+$I29+5) -> 31 | U29: =IF($A29="","",$B29+$B29+4) -> 22 | V29: =IF($A29="","",$T29-1) -> 30 | W29: =IF($A29="","",$U29) -> 22 | X29: =IF($A29="","",$T29-1) -> 30 | Y29: =IF($A29="","",$U29+1) -> 23 | Z29: =IF(AND($I29>=1,$I29<=17),OFFSET(INDEX('1組'!$B$6:$E$39,MATCH($I29,'1組'!$B$6:$B$39,0),2),1,0),"") -> 180
A31: 13 | B31: 1 | C31: =IF(AND($B31>=1,$B31<=17),INDEX('1組'!$B$6:$E$39,MATCH($B31,'1組'!$B$6:$B$39,0),4),"") -> 白戸 | D31: w | F31: 107 | H31: =IF(AND($I31>=1,$I31<=17),INDEX('1組'!$B$6:$E$39,MATCH($I31,'1組'!$B$6:$B$39,0),4),"") -> 水田 | I31: 11 | M31: =IF($A31="","",$B31+$B31+5) -> 7 | N31: =IF($A31="","",$I31+$I31+4) -> 26 | O31: =IF($A31="","",$M31-1) -> 6 | P31: =IF($A31="","",$N31) -> 26 | Q31: =IF($A31="","",$M31-1) -> 6 | R31: =IF($A31="","",$N31+1) -> 27 | S31: =IF(AND($B31>=1,$B31<=17),OFFSET(INDEX('1組'!$B$6:$E$39,MATCH($B31,'1組'!$B$6:$B$39,0),2),1,0),"") -> 180 | T31: =IF($A31="","",$I31+$I31+5) -> 27 | U31: =IF($A31="","",$B31+$B31+4) -> 6 | V31: =IF($A31="","",$T31-1) -> 26 | W31: =IF($A31="","",$U31) -> 6 | X31: =IF($A31="","",$T31-1) -> 26 | Y31: =IF($A31="","",$U31+1) -> 7 | Z31: =IF(AND($I31>=1,$I31<=17),OFFSET(INDEX('1組'!$B$6:$E$39,MATCH($I31,'1組'!$B$6:$B$39,0),2),1,0),"") -> 180
B33: 二節 | C33: =IF(AND($B33>=1,$B33<=17),INDEX('1組'!$B$6:$E$39,MATCH($B33,'1組'!$B$6:$B$39,0),4),"") ->  | H33: =IF(AND($I33>=1,$I33<=17),INDEX('1組'!$B$6:$E$39,MATCH($I33,'1組'!$B$6:$B$39,0),4),"") ->  | M33: =IF($A33="","",$B33+$B33+5) ->  | N33: =IF($A33="","",$I33+$I33+4) ->  | O33: =IF($A33="","",$M33-1) ->  | P33: =IF($A33="","",$N33) ->  | Q33: =IF($A33="","",$M33-1) ->  | R33: =IF($A33="","",$N33+1) ->  | S33: =IF(AND($B33>=1,$B33<=17),OFFSET(INDEX('1組'!$B$6:$E$39,MATCH($B33,'1組'!$B$6:$B$39,0),2),1,0),"") ->  | T33: =IF($A33="","",$I33+$I33+5) ->  | U33: =IF($A33="","",$B33+$B33+4) ->  | V33: =IF($A33="","",$T33-1) ->  | W33: =IF($A33="","",$U33) ->  | X33: =IF($A33="","",$T33-1) ->  | Y33: =IF($A33="","",$U33+1) ->  | Z33: =IF(AND($I33>=1,$I33<=17),OFFSET(INDEX('1組'!$B$6:$E$39,MATCH($I33,'1組'!$B$6:$B$39,0),2),1,0),"") -> 
A35: 14 | B35: 4 | C35: =IF(AND($B35>=1,$B35<=17),INDEX('1組'!$B$6:$E$39,MATCH($B35,'1組'!$B$6:$B$39,0),4),"") -> 山田 晋之 | D35: w | F35: 162 | H35: =IF(AND($I35>=1,$I35<=17),INDEX('1組'!$B$6:$E$39,MATCH($I35,'1組'!$B$6:$B$39,0),4),"") -> 長谷川 | I35: 6 | M35: =IF($A35="","",$B35+$B35+5) -> 13 | N35: =IF($A35="","",$I35+$I35+4) -> 16 | O35: =IF($A35="","",$M35-1) -> 12 | P35: =IF($A35="","",$N35) -> 16 | Q35: =IF($A35="","",$M35-1) -> 12 | R35: =IF($A35="","",$N35+1) -> 17 | S35: =IF(AND($B35>=1,$B35<=17),OFFSET(INDEX('1組'!$B$6:$E$39,MATCH($B35,'1組'!$B$6:$B$39,0),2),1,0),"") -> 180 | T35: =IF($A35="","",$I35+$I35+5) -> 17 | U35: =IF($A35="","",$B35+$B35+4) -> 12 | V35: =IF($A35="","",$T35-1) -> 16 | W35: =IF($A35="","",$U35) -> 12 | X35: =IF($A35="","",$T35-1) -> 16 | Y35: =IF($A35="","",$U35+1) -> 13 | Z35: =IF(AND($I35>=1,$I35<=17),OFFSET(INDEX('1組'!$B$6:$E$39,MATCH($I35,'1組'!$B$6:$B$39,0),2),1,0),"") -> 180
G36: 120
A37: 15 | B37: 2 | C37: =IF(AND($B37>=1,$B37<=17),INDEX('1組'!$B$6:$E$39,MATCH($B37,'1組'!$B$6:$B$39,0),4),"") -> 近藤 | D37: 34 | F37: w | H37: =IF(AND($I37>=1,$I37<=17),INDEX('1組'!$B$6:$E$39,MATCH($I37,'1組'!$B$6:$B$39,0),4),"") -> 金澤 | I37: 8 | M37: =IF($A37="","",$B37+$B37+5) -> 9 | N37: =IF($A37="","",$I37+$I37+4) -> 20 | O37: =IF($A37="","",$M37-1) -> 8 | P37: =IF($A37="","",$N37) -> 20 | Q37: =IF($A37="","",$M37-1) -> 8 | R37: =IF($A37="","",$N37+1) -> 21 | S37: =IF(AND($B37>=1,$B37<=17),OFFSET(INDEX('1組'!$B$6:$E$39,MATCH($B37,'1組'!$B$6:$B$39,0),2),1,0),"") -> 180 | T37: =IF($A37="","",$I37+$I37+5) -> 21 | U37: =IF($A37="","",$B37+$B37+4) -> 8 | V37: =IF($A37="","",$T37-1) -> 20 | W37: =IF($A37="","",$U37) -> 8 | X37: =IF($A37="","",$T37-1) -> 20 | Y37: =IF($A37="","",$U37+1) -> 9 | Z37: =IF(AND($I37>=1,$I37<=17),OFFSET(INDEX('1組'!$B$6:$E$39,MATCH($I37,'1組'!$B$6:$B$39,0),2),1,0),"") -> 180
A39: 16 | B39: 3 | C39: =IF(AND($B39>=1,$B39<=17),INDEX('1組'!$B$6:$E$39,MATCH($B39,'1組'!$B$6:$B$39,0),4),"") -> 吉向 | D39: w | F39: 60 | H39: =IF(AND($I39>=1,$I39<=17),INDEX('1組'!$B$6:$E$39,MATCH($I39,'1組'!$B$6:$B$39,0),4),"") -> 岩本 | I39: 10 | M39: =IF($A39="","",$B39+$B39+5) -> 11 | N39: =IF($A39="","",$I39+$I39+4) -> 24 | O39: =IF($A39="","",$M39-1) -> 10 | P39: =IF($A39="","",$N39) -> 24 | Q39: =IF($A39="","",$M39-1) -> 10 | R39: =IF($A39="","",$N39+1) -> 25 | S39: =IF(AND($B39>=1,$B39<=17),OFFSET(INDEX('1組'!$B$6:$E$39,MATCH($B39,'1組'!$B$6:$B$39,0),2),1,0),"") -> 180 | T39: =IF($A39="","",$I39+$I39+5) -> 25 | U39: =IF($A39="","",$B39+$B39+4) -> 10 | V39: =IF($A39="","",$T39-1) -> 24 | W39: =IF($A39="","",$U39) -> 10 | X39: =IF($A39="","",$T39-1) -> 24 | Y39: =IF($A39="","",$U39+1) -> 11 | Z39: =IF(AND($I39>=1,$I39<=17),OFFSET(INDEX('1組'!$B$6:$E$39,MATCH($I39,'1組'!$B$6:$B$39,0),2),1,0),"") -> 180
G40: 105
A41: 17 | B41: 5 | C41: =IF(AND($B41>=1,$B41<=17),INDEX('1組'!$B$6:$E$39,MATCH($B41,'1組'!$B$6:$B$39,0),4),"") -> 山田晃司 | D41: 118 | F41: w | H41: =IF(AND($I41>=1,$I41<=17),INDEX('1組'!$B$6:$E$39,MATCH($I41,'1組'!$B$6:$B$39,0),4),"") -> 斎藤裕児 | I41: 12 | M41: =IF($A41="","",$B41+$B41+5) -> 15 | N41: =IF($A41="","",$I41+$I41+4) -> 28 | O41: =IF($A41="","",$M41-1) -> 14 | P41: =IF($A41="","",$N41) -> 28 | Q41: =IF($A41="","",$M41-1) -> 14 | R41: =IF($A41="","",$N41+1) -> 29 | S41: =IF(AND($B41>=1,$B41<=17),OFFSET(INDEX('1組'!$B$6:$E$39,MATCH($B41,'1組'!$B$6:$B$39,0),2),1,0),"") -> 180 | T41: =IF($A41="","",$I41+$I41+5) -> 29 | U41: =IF($A41="","",$B41+$B41+4) -> 14 | V41: =IF($A41="","",$T41-1) -> 28 | W41: =IF($A41="","",$U41) -> 14 | X41: =IF($A41="","",$T41-1) -> 28 | Y41: =IF($A41="","",$U41+1) -> 15 | Z41: =IF(AND($I41>=1,$I41<=17),OFFSET(INDEX('1組'!$B$6:$E$39,MATCH($I41,'1組'!$B$6:$B$39,0),2),1,0),"") -> 180
A43: 18 | B43: 7 | C43: =IF(AND($B43>=1,$B43<=17),INDEX('1組'!$B$6:$E$39,MATCH($B43,'1組'!$B$6:$B$39,0),4),"") -> 植田 | D43: w | F43: 125 | H43: =IF(AND($I43>=1,$I43<=17),INDEX('1組'!$B$6:$E$39,MATCH($I43,'1組'!$B$6:$B$39,0),4),"") -> 鷲尾 | I43: 13 | M43: =IF($A43="","",$B43+$B43+5) -> 19 | N43: =IF($A43="","",$I43+$I43+4) -> 30 | O43: =IF($A43="","",$M43-1) -> 18 | P43: =IF($A43="","",$N43) -> 30 | Q43: =IF($A43="","",$M43-1) -> 18 | R43: =IF($A43="","",$N43+1) -> 31 | S43: =IF(AND($B43>=1,$B43<=17),OFFSET(INDEX('1組'!$B$6:$E$39,MATCH($B43,'1組'!$B$6:$B$39,0),2),1,0),"") -> 180 | T43: =IF($A43="","",$I43+$I43+5) -> 31 | U43: =IF($A43="","",$B43+$B43+4) -> 18 | V43: =IF($A43="","",$T43-1) -> 30 | W43: =IF($A43="","",$U43) -> 18 | X43: =IF($A43="","",$T43-1) -> 30 | Y43: =IF($A43="","",$U43+1) -> 19 | Z43: =IF(AND($I43>=1,$I43<=17),OFFSET(INDEX('1組'!$B$6:$E$39,MATCH($I43,'1組'!$B$6:$B$39,0),2),1,0),"") -> 180
A45: 19 | B45: 9 | C45: =IF(AND($B45>=1,$B45<=17),INDEX('1組'!$B$6:$E$39,MATCH($B45,'1組'!$B$6:$B$39,0),4),"") -> 宮野 | D45: 54 | F45: w | H45: =IF(AND($I45>=1,$I45<=17),INDEX('1組'!$B$6:$E$39,MATCH($I45,'1組'!$B$6:$B$39,0),4),"") -> 水田 | I45: 11 | M45: =IF($A45="","",$B45+$B45+5) -> 23 | N45: =IF($A45="","",$I45+$I45+4) -> 26 | O45: =IF($A45="","",$M45-1) -> 22 | P45: =IF($A45="","",$N45) -> 26 | Q45: =IF($A45="","",$M45-1) -> 22 | R45: =IF($A45="","",$N45+1) -> 27 | S45: =IF(AND($B45>=1,$B45<=17),OFFSET(INDEX('1組'!$B$6:$E$39,MATCH($B45,'1組'!$B$6:$B$39,0),2),1,0),"") -> 140 | T45: =IF($A45="","",$I45+$I45+5) -> 27 | U45: =IF($A45="","",$B45+$B45+4) -> 22 | V45: =IF($A45="","",$T45-1) -> 26 | W45: =IF($A45="","",$U45) -> 22 | X45: =IF($A45="","",$T45-1) -> 26 | Y45: =IF($A45="","",$U45+1) -> 23 | Z45: =IF(AND($I45>=1,$I45<=17),OFFSET(INDEX('1組'!$B$6:$E$39,MATCH($I45,'1組'!$B$6:$B$39,0),2),1,0),"") -> 180
G46: 110
A47: 20 | B47: 6 | C47: =IF(AND($B47>=1,$B47<=17),INDEX('1組'!$B$6:$E$39,MATCH($B47,'1組'!$B$6:$B$39,0),4),"") -> 長谷川 | D47: 16 | F47: w | H47: =IF(AND($I47>=1,$I47<=17),INDEX('1組'!$B$6:$E$39,MATCH($I47,'1組'!$B$6:$B$39,0),4),"") -> 白戸 | I47: 1 | M47: =IF($A47="","",$B47+$B47+5) -> 17 | N47: =IF($A47="","",$I47+$I47+4) -> 6 | O47: =IF($A47="","",$M47-1) -> 16 | P47: =IF($A47="","",$N47) -> 6 | Q47: =IF($A47="","",$M47-1) -> 16 | R47: =IF($A47="","",$N47+1) -> 7 | S47: =IF(AND($B47>=1,$B47<=17),OFFSET(INDEX('1組'!$B$6:$E$39,MATCH($B47,'1組'!$B$6:$B$39,0),2),1,0),"") -> 180 | T47: =IF($A47="","",$I47+$I47+5) -> 7 | U47: =IF($A47="","",$B47+$B47+4) -> 16 | V47: =IF($A47="","",$T47-1) -> 6 | W47: =IF($A47="","",$U47) -> 16 | X47: =IF($A47="","",$T47-1) -> 6 | Y47: =IF($A47="","",$U47+1) -> 17 | Z47: =IF(AND($I47>=1,$I47<=17),OFFSET(INDEX('1組'!$B$6:$E$39,MATCH($I47,'1組'!$B$6:$B$39,0),2),1,0),"") -> 180
A49: 21 | B49: 4 | C49: =IF(AND($B49>=1,$B49<=17),INDEX('1組'!$B$6:$E$39,MATCH($B49,'1組'!$B$6:$B$39,0),4),"") -> 山田 晋之 | D49: w | F49: 131 | H49: =IF(AND($I49>=1,$I49<=17),INDEX('1組'!$B$6:$E$39,MATCH($I49,'1組'!$B$6:$B$39,0),4),"") -> 金澤 | I49: 8 | M49: =IF($A49="","",$B49+$B49+5) -> 13 | N49: =IF($A49="","",$I49+$I49+4) -> 20 | O49: =IF($A49="","",$M49-1) -> 12 | P49: =IF($A49="","",$N49) -> 20 | Q49: =IF($A49="","",$M49-1) -> 12 | R49: =IF($A49="","",$N49+1) -> 21 | S49: =IF(AND($B49>=1,$B49<=17),OFFSET(INDEX('1組'!$B$6:$E$39,MATCH($B49,'1組'!$B$6:$B$39,0),2),1,0),"") -> 180 | T49: =IF($A49="","",$I49+$I49+5) -> 21 | U49: =IF($A49="","",$B49+$B49+4) -> 12 | V49: =IF($A49="","",$T49-1) -> 20 | W49: =IF($A49="","",$U49) -> 12 | X49: =IF($A49="","",$T49-1) -> 20 | Y49: =IF($A49="","",$U49+1) -> 13 | Z49: =IF(AND($I49>=1,$I49<=17),OFFSET(INDEX('1組'!$B$6:$E$39,MATCH($I49,'1組'!$B$6:$B$39,0),2),1,0),"") -> 180
A51: 22 | B51: 2 | C51: =IF(AND($B51>=1,$B51<=17),INDEX('1組'!$B$6:$E$39,MATCH($B51,'1組'!$B$6:$B$39,0),4),"") -> 近藤 | D51: w | F51: 166 | H51: =IF(AND($I51>=1,$I51<=17),INDEX('1組'!$B$6:$E$39,MATCH($I51,'1組'!$B$6:$B$39,0),4),"") -> 岩本 | I51: 10 | M51: =IF($A51="","",$B51+$B51+5) -> 9 | N51: =IF($A51="","",$I51+$I51+4) -> 24 | O51: =IF($A51="","",$M51-1) -> 8 | P51: =IF($A51="","",$N51) -> 24 | Q51: =IF($A51="","",$M51-1) -> 8 | R51: =IF($A51="","",$N51+1) -> 25 | S51: =IF(AND($B51>=1,$B51<=17),OFFSET(INDEX('1組'!$B$6:$E$39,MATCH($B51,'1組'!$B$6:$B$39,0),2),1,0),"") -> 180 | T51: =IF($A51="","",$I51+$I51+5) -> 25 | U51: =IF($A51="","",$B51+$B51+4) -> 8 | V51: =IF($A51="","",$T51-1) -> 24 | W51: =IF($A51="","",$U51) -> 8 | X51: =IF($A51="","",$T51-1) -> 24 | Y51: =IF($A51="","",$U51+1) -> 9 | Z51: =IF(AND($I51>=1,$I51<=17),OFFSET(INDEX('1組'!$B$6:$E$39,MATCH($I51,'1組'!$B$6:$B$39,0),2),1,0),"") -> 180
A53: 23 | B53: 3 | C53: =IF(AND($B53>=1,$B53<=17),INDEX('1組'!$B$6:$E$39,MATCH($B53,'1組'!$B$6:$B$39,0),4),"") -> 吉向 | D53: w | F53: 64 | H53: =IF(AND($I53>=1,$I53<=17),INDEX('1組'!$B$6:$E$39,MATCH($I53,'1組'!$B$6:$B$39,0),4),"") -> 斎藤裕児 | I53: 12 | M53: =IF($A53="","",$B53+$B53+5) -> 11 | N53: =IF($A53="","",$I53+$I53+4) -> 28 | O53: =IF($A53="","",$M53-1) -> 10 | P53: =IF($A53="","",$N53) -> 28 | Q53: =IF($A53="","",$M53-1) -> 10 | R53: =IF($A53="","",$N53+1) -> 29 | S53: =IF(AND($B53>=1,$B53<=17),OFFSET(INDEX('1組'!$B$6:$E$39,MATCH($B53,'1組'!$B$6:$B$39,0),2),1,0),"") -> 180 | T53: =IF($A53="","",$I53+$I53+5) -> 29 | U53: =IF($A53="","",$B53+$B53+4) -> 10 | V53: =IF($A53="","",$T53-1) -> 28 | W53: =IF($A53="","",$U53) -> 10 | X53: =IF($A53="","",$T53-1) -> 28 | Y53: =IF($A53="","",$U53+1) -> 11 | Z53: =IF(AND($I53>=1,$I53<=17),OFFSET(INDEX('1組'!$B$6:$E$39,MATCH($I53,'1組'!$B$6:$B$39,0),2),1,0),"") -> 180
A55: 24 | B55: 5 | C55: =IF(AND($B55>=1,$B55<=17),INDEX('1組'!$B$6:$E$39,MATCH($B55,'1組'!$B$6:$B$39,0),4),"") -> 山田晃司 | D55: w | F55: 151 | H55: =IF(AND($I55>=1,$I55<=17),INDEX('1組'!$B$6:$E$39,MATCH($I55,'1組'!$B$6:$B$39,0),4),"") -> 鷲尾 | I55: 13 | M55: =IF($A55="","",$B55+$B55+5) -> 15 | N55: =IF($A55="","",$I55+$I55+4) -> 30 | O55: =IF($A55="","",$M55-1) -> 14 | P55: =IF($A55="","",$N55) -> 30 | Q55: =IF($A55="","",$M55-1) -> 14 | R55: =IF($A55="","",$N55+1) -> 31 | S55: =IF(AND($B55>=1,$B55<=17),OFFSET(INDEX('1組'!$B$6:$E$39,MATCH($B55,'1組'!$B$6:$B$39,0),2),1,0),"") -> 180 | T55: =IF($A55="","",$I55+$I55+5) -> 31 | U55: =IF($A55="","",$B55+$B55+4) -> 14 | V55: =IF($A55="","",$T55-1) -> 30 | W55: =IF($A55="","",$U55) -> 14 | X55: =IF($A55="","",$T55-1) -> 30 | Y55: =IF($A55="","",$U55+1) -> 15 | Z55: =IF(AND($I55>=1,$I55<=17),OFFSET(INDEX('1組'!$B$6:$E$39,MATCH($I55,'1組'!$B$6:$B$39,0),2),1,0),"") -> 180
A57: 25 | B57: 7 | C57: =IF(AND($B57>=1,$B57<=17),INDEX('1組'!$B$6:$E$39,MATCH($B57,'1組'!$B$6:$B$39,0),4),"") -> 植田 | D57: 122 | F57: w | H57: =IF(AND($I57>=1,$I57<=17),INDEX('1組'!$B$6:$E$39,MATCH($I57,'1組'!$B$6:$B$39,0),4),"") -> 水田 | I57: 11 | M57: =IF($A57="","",$B57+$B57+5) -> 19 | N57: =IF($A57="","",$I57+$I57+4) -> 26 | O57: =IF($A57="","",$M57-1) -> 18 | P57: =IF($A57="","",$N57) -> 26 | Q57: =IF($A57="","",$M57-1) -> 18 | R57: =IF($A57="","",$N57+1) -> 27 | S57: =IF(AND($B57>=1,$B57<=17),OFFSET(INDEX('1組'!$B$6:$E$39,MATCH($B57,'1組'!$B$6:$B$39,0),2),1,0),"") -> 180 | T57: =IF($A57="","",$I57+$I57+5) -> 27 | U57: =IF($A57="","",$B57+$B57+4) -> 18 | V57: =IF($A57="","",$T57-1) -> 26 | W57: =IF($A57="","",$U57) -> 18 | X57: =IF($A57="","",$T57-1) -> 26 | Y57: =IF($A57="","",$U57+1) -> 19 | Z57: =IF(AND($I57>=1,$I57<=17),OFFSET(INDEX('1組'!$B$6:$E$39,MATCH($I57,'1組'!$B$6:$B$39,0),2),1,0),"") -> 180
A59: 26 | B59: 1 | C59: =IF(AND($B59>=1,$B59<=17),INDEX('1組'!$B$6:$E$39,MATCH($B59,'1組'!$B$6:$B$39,0),4),"") -> 白戸 | D59: w | F59: 0 | H59: =IF(AND($I59>=1,$I59<=17),INDEX('1組'!$B$6:$E$39,MATCH($I59,'1組'!$B$6:$B$39,0),4),"") -> 宮野 | I59: 9 | M59: =IF($A59="","",$B59+$B59+5) -> 7 | N59: =IF($A59="","",$I59+$I59+4) -> 22 | O59: =IF($A59="","",$M59-1) -> 6 | P59: =IF($A59="","",$N59) -> 22 | Q59: =IF($A59="","",$M59-1) -> 6 | R59: =IF($A59="","",$N59+1) -> 23 | S59: =IF(AND($B59>=1,$B59<=17),OFFSET(INDEX('1組'!$B$6:$E$39,MATCH($B59,'1組'!$B$6:$B$39,0),2),1,0),"") -> 180 | T59: =IF($A59="","",$I59+$I59+5) -> 23 | U59: =IF($A59="","",$B59+$B59+4) -> 6 | V59: =IF($A59="","",$T59-1) -> 22 | W59: =IF($A59="","",$U59) -> 6 | X59: =IF($A59="","",$T59-1) -> 22 | Y59: =IF($A59="","",$U59+1) -> 7 | Z59: =IF(AND($I59>=1,$I59<=17),OFFSET(INDEX('1組'!$B$6:$E$39,MATCH($I59,'1組'!$B$6:$B$39,0),2),1,0),"") -> 140
B61: 三節 | C61: =IF(AND($B61>=1,$B61<=17),INDEX('1組'!$B$6:$E$39,MATCH($B61,'1組'!$B$6:$B$39,0),4),"") ->  | H61: =IF(AND($I61>=1,$I61<=17),INDEX('1組'!$B$6:$E$39,MATCH($I61,'1組'!$B$6:$B$39,0),4),"") ->  | M61: =IF($A61="","",$B61+$B61+5) ->  | N61: =IF($A61="","",$I61+$I61+4) ->  | O61: =IF($A61="","",$M61-1) ->  | P61: =IF($A61="","",$N61) ->  | Q61: =IF($A61="","",$M61-1) ->  | R61: =IF($A61="","",$N61+1) ->  | S61: =IF(AND($B61>=1,$B61<=17),OFFSET(INDEX('1組'!$B$6:$E$39,MATCH($B61,'1組'!$B$6:$B$39,0),2),1,0),"") ->  | T61: =IF($A61="","",$I61+$I61+5) ->  | U61: =IF($A61="","",$B61+$B61+4) ->  | V61: =IF($A61="","",$T61-1) ->  | W61: =IF($A61="","",$U61) ->  | X61: =IF($A61="","",$T61-1) ->  | Y61: =IF($A61="","",$U61+1) ->  | Z61: =IF(AND($I61>=1,$I61<=17),OFFSET(INDEX('1組'!$B$6:$E$39,MATCH($I61,'1組'!$B$6:$B$39,0),2),1,0),"") -> 
A63: 27 | B63: 6 | C63: =IF(AND($B63>=1,$B63<=17),INDEX('1組'!$B$6:$E$39,MATCH($B63,'1組'!$B$6:$B$39,0),4),"") -> 長谷川 | D63: 65 | F63: w | H63: =IF(AND($I63>=1,$I63<=17),INDEX('1組'!$B$6:$E$39,MATCH($I63,'1組'!$B$6:$B$39,0),4),"") -> 金澤 | I63: 8 | M63: =IF($A63="","",$B63+$B63+5) -> 17 | N63: =IF($A63="","",$I63+$I63+4) -> 20 | O63: =IF($A63="","",$M63-1) -> 16 | P63: =IF($A63="","",$N63) -> 20 | Q63: =IF($A63="","",$M63-1) -> 16 | R63: =IF($A63="","",$N63+1) -> 21 | S63: =IF(AND($B63>=1,$B63<=17),OFFSET(INDEX('1組'!$B$6:$E$39,MATCH($B63,'1組'!$B$6:$B$39,0),2),1,0),"") -> 180 | T63: =IF($A63="","",$I63+$I63+5) -> 21 | U63: =IF($A63="","",$B63+$B63+4) -> 16 | V63: =IF($A63="","",$T63-1) -> 20 | W63: =IF($A63="","",$U63) -> 16 | X63: =IF($A63="","",$T63-1) -> 20 | Y63: =IF($A63="","",$U63+1) -> 17 | Z63: =IF(AND($I63>=1,$I63<=17),OFFSET(INDEX('1組'!$B$6:$E$39,MATCH($I63,'1組'!$B$6:$B$39,0),2),1,0),"") -> 180
A65: 28 | B65: 4 | C65: =IF(AND($B65>=1,$B65<=17),INDEX('1組'!$B$6:$E$39,MATCH($B65,'1組'!$B$6:$B$39,0),4),"") -> 山田 晋之 | D65: 59 | F65: w | H65: =IF(AND($I65>=1,$I65<=17),INDEX('1組'!$B$6:$E$39,MATCH($I65,'1組'!$B$6:$B$39,0),4),"") -> 岩本 | I65: 10 | M65: =IF($A65="","",$B65+$B65+5) -> 13 | N65: =IF($A65="","",$I65+$I65+4) -> 24 | O65: =IF($A65="","",$M65-1) -> 12 | P65: =IF($A65="","",$N65) -> 24 | Q65: =IF($A65="","",$M65-1) -> 12 | R65: =IF($A65="","",$N65+1) -> 25 | S65: =IF(AND($B65>=1,$B65<=17),OFFSET(INDEX('1組'!$B$6:$E$39,MATCH($B65,'1組'!$B$6:$B$39,0),2),1,0),"") -> 180 | T65: =IF($A65="","",$I65+$I65+5) -> 25 | U65: =IF($A65="","",$B65+$B65+4) -> 12 | V65: =IF($A65="","",$T65-1) -> 24 | W65: =IF($A65="","",$U65) -> 12 | X65: =IF($A65="","",$T65-1) -> 24 | Y65: =IF($A65="","",$U65+1) -> 13 | Z65: =IF(AND($I65>=1,$I65<=17),OFFSET(INDEX('1組'!$B$6:$E$39,MATCH($I65,'1組'!$B$6:$B$39,0),2),1,0),"") -> 180
A67: 29 | B67: 2 | C67: =IF(AND($B67>=1,$B67<=17),INDEX('1組'!$B$6:$E$39,MATCH($B67,'1組'!$B$6:$B$39,0),4),"") -> 近藤 | D67: 75 | F67: w | H67: =IF(AND($I67>=1,$I67<=17),INDEX('1組'!$B$6:$E$39,MATCH($I67,'1組'!$B$6:$B$39,0),4),"") -> 斎藤裕児 | I67: 12 | M67: =IF($A67="","",$B67+$B67+5) -> 9 | N67: =IF($A67="","",$I67+$I67+4) -> 28 | O67: =IF($A67="","",$M67-1) -> 8 | P67: =IF($A67="","",$N67) -> 28 | Q67: =IF($A67="","",$M67-1) -> 8 | R67: =IF($A67="","",$N67+1) -> 29 | S67: =IF(AND($B67>=1,$B67<=17),OFFSET(INDEX('1組'!$B$6:$E$39,MATCH($B67,'1組'!$B$6:$B$39,0),2),1,0),"") -> 180 | T67: =IF($A67="","",$I67+$I67+5) -> 29 | U67: =IF($A67="","",$B67+$B67+4) -> 8 | V67: =IF($A67="","",$T67-1) -> 28 | W67: =IF($A67="","",$U67) -> 8 | X67: =IF($A67="","",$T67-1) -> 28 | Y67: =IF($A67="","",$U67+1) -> 9 | Z67: =IF(AND($I67>=1,$I67<=17),OFFSET(INDEX('1組'!$B$6:$E$39,MATCH($I67,'1組'!$B$6:$B$39,0),2),1,0),"") -> 180
A69: 30 | B69: 3 | C69: =IF(AND($B69>=1,$B69<=17),INDEX('1組'!$B$6:$E$39,MATCH($B69,'1組'!$B$6:$B$39,0),4),"") -> 吉向 | D69: 165 | F69: w | H69: =IF(AND($I69>=1,$I69<=17),INDEX('1組'!$B$6:$E$39,MATCH($I69,'1組'!$B$6:$B$39,0),4),"") -> 鷲尾 | I69: 13 | M69: =IF($A69="","",$B69+$B69+5) -> 11 | N69: =IF($A69="","",$I69+$I69+4) -> 30 | O69: =IF($A69="","",$M69-1) -> 10 | P69: =IF($A69="","",$N69) -> 30 | Q69: =IF($A69="","",$M69-1) -> 10 | R69: =IF($A69="","",$N69+1) -> 31 | S69: =IF(AND($B69>=1,$B69<=17),OFFSET(INDEX('1組'!$B$6:$E$39,MATCH($B69,'1組'!$B$6:$B$39,0),2),1,0),"") -> 180 | T69: =IF($A69="","",$I69+$I69+5) -> 31 | U69: =IF($A69="","",$B69+$B69+4) -> 10 | V69: =IF($A69="","",$T69-1) -> 30 | W69: =IF($A69="","",$U69) -> 10 | X69: =IF($A69="","",$T69-1) -> 30 | Y69: =IF($A69="","",$U69+1) -> 11 | Z69: =IF(AND($I69>=1,$I69<=17),OFFSET(INDEX('1組'!$B$6:$E$39,MATCH($I69,'1組'!$B$6:$B$39,0),2),1,0),"") -> 180
A71: 31 | B71: 5 | C71: =IF(AND($B71>=1,$B71<=17),INDEX('1組'!$B$6:$E$39,MATCH($B71,'1組'!$B$6:$B$39,0),4),"") -> 山田晃司 | D71: w | F71: 59 | H71: =IF(AND($I71>=1,$I71<=17),INDEX('1組'!$B$6:$E$39,MATCH($I71,'1組'!$B$6:$B$39,0),4),"") -> 水田 | I71: 11 | M71: =IF($A71="","",$B71+$B71+5) -> 15 | N71: =IF($A71="","",$I71+$I71+4) -> 26 | O71: =IF($A71="","",$M71-1) -> 14 | P71: =IF($A71="","",$N71) -> 26 | Q71: =IF($A71="","",$M71-1) -> 14 | R71: =IF($A71="","",$N71+1) -> 27 | S71: =IF(AND($B71>=1,$B71<=17),OFFSET(INDEX('1組'!$B$6:$E$39,MATCH($B71,'1組'!$B$6:$B$39,0),2),1,0),"") -> 180 | T71: =IF($A71="","",$I71+$I71+5) -> 27 | U71: =IF($A71="","",$B71+$B71+4) -> 14 | V71: =IF($A71="","",$T71-1) -> 26 | W71: =IF($A71="","",$U71) -> 14 | X71: =IF($A71="","",$T71-1) -> 26 | Y71: =IF($A71="","",$U71+1) -> 15 | Z71: =IF(AND($I71>=1,$I71<=17),OFFSET(INDEX('1組'!$B$6:$E$39,MATCH($I71,'1組'!$B$6:$B$39,0),2),1,0),"") -> 180
A73: 32 | B73: 7 | C73: =IF(AND($B73>=1,$B73<=17),INDEX('1組'!$B$6:$E$39,MATCH($B73,'1組'!$B$6:$B$39,0),4),"") -> 植田 | D73: w | F73: 95 | H73: =IF(AND($I73>=1,$I73<=17),INDEX('1組'!$B$6:$E$39,MATCH($I73,'1組'!$B$6:$B$39,0),4),"") -> 宮野 | I73: 9 | M73: =IF($A73="","",$B73+$B73+5) -> 19 | N73: =IF($A73="","",$I73+$I73+4) -> 22 | O73: =IF($A73="","",$M73-1) -> 18 | P73: =IF($A73="","",$N73) -> 22 | Q73: =IF($A73="","",$M73-1) -> 18 | R73: =IF($A73="","",$N73+1) -> 23 | S73: =IF(AND($B73>=1,$B73<=17),OFFSET(INDEX('1組'!$B$6:$E$39,MATCH($B73,'1組'!$B$6:$B$39,0),2),1,0),"") -> 180 | T73: =IF($A73="","",$I73+$I73+5) -> 23 | U73: =IF($A73="","",$B73+$B73+4) -> 18 | V73: =IF($A73="","",$T73-1) -> 22 | W73: =IF($A73="","",$U73) -> 18 | X73: =IF($A73="","",$T73-1) -> 22 | Y73: =IF($A73="","",$U73+1) -> 19 | Z73: =IF(AND($I73>=1,$I73<=17),OFFSET(INDEX('1組'!$B$6:$E$39,MATCH($I73,'1組'!$B$6:$B$39,0),2),1,0),"") -> 140
G74: 108
A75: 33 | B75: 8 | C75: =IF(AND($B75>=1,$B75<=17),INDEX('1組'!$B$6:$E$39,MATCH($B75,'1組'!$B$6:$B$39,0),4),"") -> 金澤 | D75: 45 | F75: w | H75: =IF(AND($I75>=1,$I75<=17),INDEX('1組'!$B$6:$E$39,MATCH($I75,'1組'!$B$6:$B$39,0),4),"") -> 白戸 | I75: 1 | M75: =IF($A75="","",$B75+$B75+5) -> 21 | N75: =IF($A75="","",$I75+$I75+4) -> 6 | O75: =IF($A75="","",$M75-1) -> 20 | P75: =IF($A75="","",$N75) -> 6 | Q75: =IF($A75="","",$M75-1) -> 20 | R75: =IF($A75="","",$N75+1) -> 7 | S75: =IF(AND($B75>=1,$B75<=17),OFFSET(INDEX('1組'!$B$6:$E$39,MATCH($B75,'1組'!$B$6:$B$39,0),2),1,0),"") -> 180 | T75: =IF($A75="","",$I75+$I75+5) -> 7 | U75: =IF($A75="","",$B75+$B75+4) -> 20 | V75: =IF($A75="","",$T75-1) -> 6 | W75: =IF($A75="","",$U75) -> 20 | X75: =IF($A75="","",$T75-1) -> 6 | Y75: =IF($A75="","",$U75+1) -> 21 | Z75: =IF(AND($I75>=1,$I75<=17),OFFSET(INDEX('1組'!$B$6:$E$39,MATCH($I75,'1組'!$B$6:$B$39,0),2),1,0),"") -> 180
A77: 34 | B77: 6 | C77: =IF(AND($B77>=1,$B77<=17),INDEX('1組'!$B$6:$E$39,MATCH($B77,'1組'!$B$6:$B$39,0),4),"") -> 長谷川 | D77: w | F77: 102 | H77: =IF(AND($I77>=1,$I77<=17),INDEX('1組'!$B$6:$E$39,MATCH($I77,'1組'!$B$6:$B$39,0),4),"") -> 岩本 | I77: 10 | M77: =IF($A77="","",$B77+$B77+5) -> 17 | N77: =IF($A77="","",$I77+$I77+4) -> 24 | O77: =IF($A77="","",$M77-1) -> 16 | P77: =IF($A77="","",$N77) -> 24 | Q77: =IF($A77="","",$M77-1) -> 16 | R77: =IF($A77="","",$N77+1) -> 25 | S77: =IF(AND($B77>=1,$B77<=17),OFFSET(INDEX('1組'!$B$6:$E$39,MATCH($B77,'1組'!$B$6:$B$39,0),2),1,0),"") -> 180 | T77: =IF($A77="","",$I77+$I77+5) -> 25 | U77: =IF($A77="","",$B77+$B77+4) -> 16 | V77: =IF($A77="","",$T77-1) -> 24 | W77: =IF($A77="","",$U77) -> 16 | X77: =IF($A77="","",$T77-1) -> 24 | Y77: =IF($A77="","",$U77+1) -> 17 | Z77: =IF(AND($I77>=1,$I77<=17),OFFSET(INDEX('1組'!$B$6:$E$39,MATCH($I77,'1組'!$B$6:$B$39,0),2),1,0),"") -> 180
A79: 35 | B79: 4 | C79: =IF(AND($B79>=1,$B79<=17),INDEX('1組'!$B$6:$E$39,MATCH($B79,'1組'!$B$6:$B$39,0),4),"") -> 山田 晋之 | D79: 143 | F79: w | H79: =IF(AND($I79>=1,$I79<=17),INDEX('1組'!$B$6:$E$39,MATCH($I79,'1組'!$B$6:$B$39,0),4),"") -> 斎藤裕児 | I79: 12 | M79: =IF($A79="","",$B79+$B79+5) -> 13 | N79: =IF($A79="","",$I79+$I79+4) -> 28 | O79: =IF($A79="","",$M79-1) -> 12 | P79: =IF($A79="","",$N79) -> 28 | Q79: =IF($A79="","",$M79-1) -> 12 | R79: =IF($A79="","",$N79+1) -> 29 | S79: =IF(AND($B79>=1,$B79<=17),OFFSET(INDEX('1組'!$B$6:$E$39,MATCH($B79,'1組'!$B$6:$B$39,0),2),1,0),"") -> 180 | T79: =IF($A79="","",$I79+$I79+5) -> 29 | U79: =IF($A79="","",$B79+$B79+4) -> 12 | V79: =IF($A79="","",$T79-1) -> 28 | W79: =IF($A79="","",$U79) -> 12 | X79: =IF($A79="","",$T79-1) -> 28 | Y79: =IF($A79="","",$U79+1) -> 13 | Z79: =IF(AND($I79>=1,$I79<=17),OFFSET(INDEX('1組'!$B$6:$E$39,MATCH($I79,'1組'!$B$6:$B$39,0),2),1,0),"") -> 180
A81: 36 | B81: 2 | C81: =IF(AND($B81>=1,$B81<=17),INDEX('1組'!$B$6:$E$39,MATCH($B81,'1組'!$B$6:$B$39,0),4),"") -> 近藤 | D81: w | F81: 8 | H81: =IF(AND($I81>=1,$I81<=17),INDEX('1組'!$B$6:$E$39,MATCH($I81,'1組'!$B$6:$B$39,0),4),"") -> 鷲尾 | I81: 13 | M81: =IF($A81="","",$B81+$B81+5) -> 9 | N81: =IF($A81="","",$I81+$I81+4) -> 30 | O81: =IF($A81="","",$M81-1) -> 8 | P81: =IF($A81="","",$N81) -> 30 | Q81: =IF($A81="","",$M81-1) -> 8 | R81: =IF($A81="","",$N81+1) -> 31 | S81: =IF(AND($B81>=1,$B81<=17),OFFSET(INDEX('1組'!$B$6:$E$39,MATCH($B81,'1組'!$B$6:$B$39,0),2),1,0),"") -> 180 | T81: =IF($A81="","",$I81+$I81+5) -> 31 | U81: =IF($A81="","",$B81+$B81+4) -> 8 | V81: =IF($A81="","",$T81-1) -> 30 | W81: =IF($A81="","",$U81) -> 8 | X81: =IF($A81="","",$T81-1) -> 30 | Y81: =IF($A81="","",$U81+1) -> 9 | Z81: =IF(AND($I81>=1,$I81<=17),OFFSET(INDEX('1組'!$B$6:$E$39,MATCH($I81,'1組'!$B$6:$B$39,0),2),1,0),"") -> 180
A83: 37 | B83: 3 | C83: =IF(AND($B83>=1,$B83<=17),INDEX('1組'!$B$6:$E$39,MATCH($B83,'1組'!$B$6:$B$39,0),4),"") -> 吉向 | D83: w | F83: 42 | H83: =IF(AND($I83>=1,$I83<=17),INDEX('1組'!$B$6:$E$39,MATCH($I83,'1組'!$B$6:$B$39,0),4),"") -> 水田 | I83: 11 | M83: =IF($A83="","",$B83+$B83+5) -> 11 | N83: =IF($A83="","",$I83+$I83+4) -> 26 | O83: =IF($A83="","",$M83-1) -> 10 | P83: =IF($A83="","",$N83) -> 26 | Q83: =IF($A83="","",$M83-1) -> 10 | R83: =IF($A83="","",$N83+1) -> 27 | S83: =IF(AND($B83>=1,$B83<=17),OFFSET(INDEX('1組'!$B$6:$E$39,MATCH($B83,'1組'!$B$6:$B$39,0),2),1,0),"") -> 180 | T83: =IF($A83="","",$I83+$I83+5) -> 27 | U83: =IF($A83="","",$B83+$B83+4) -> 10 | V83: =IF($A83="","",$T83-1) -> 26 | W83: =IF($A83="","",$U83) -> 10 | X83: =IF($A83="","",$T83-1) -> 26 | Y83: =IF($A83="","",$U83+1) -> 11 | Z83: =IF(AND($I83>=1,$I83<=17),OFFSET(INDEX('1組'!$B$6:$E$39,MATCH($I83,'1組'!$B$6:$B$39,0),2),1,0),"") -> 180
A85: 38 | B85: 5 | C85: =IF(AND($B85>=1,$B85<=17),INDEX('1組'!$B$6:$E$39,MATCH($B85,'1組'!$B$6:$B$39,0),4),"") -> 山田晃司 | D85: w | F85: 122 | H85: =IF(AND($I85>=1,$I85<=17),INDEX('1組'!$B$6:$E$39,MATCH($I85,'1組'!$B$6:$B$39,0),4),"") -> 宮野 | I85: 9 | M85: =IF($A85="","",$B85+$B85+5) -> 15 | N85: =IF($A85="","",$I85+$I85+4) -> 22 | O85: =IF($A85="","",$M85-1) -> 14 | P85: =IF($A85="","",$N85) -> 22 | Q85: =IF($A85="","",$M85-1) -> 14 | R85: =IF($A85="","",$N85+1) -> 23 | S85: =IF(AND($B85>=1,$B85<=17),OFFSET(INDEX('1組'!$B$6:$E$39,MATCH($B85,'1組'!$B$6:$B$39,0),2),1,0),"") -> 180 | T85: =IF($A85="","",$I85+$I85+5) -> 23 | U85: =IF($A85="","",$B85+$B85+4) -> 14 | V85: =IF($A85="","",$T85-1) -> 22 | W85: =IF($A85="","",$U85) -> 14 | X85: =IF($A85="","",$T85-1) -> 22 | Y85: =IF($A85="","",$U85+1) -> 15 | Z85: =IF(AND($I85>=1,$I85<=17),OFFSET(INDEX('1組'!$B$6:$E$39,MATCH($I85,'1組'!$B$6:$B$39,0),2),1,0),"") -> 140
A87: 39 | B87: 1 | C87: =IF(AND($B87>=1,$B87<=17),INDEX('1組'!$B$6:$E$39,MATCH($B87,'1組'!$B$6:$B$39,0),4),"") -> 白戸 | D87: 173 | F87: w | H87: =IF(AND($I87>=1,$I87<=17),INDEX('1組'!$B$6:$E$39,MATCH($I87,'1組'!$B$6:$B$39,0),4),"") -> 植田 | I87: 7 | M87: =IF($A87="","",$B87+$B87+5) -> 7 | N87: =IF($A87="","",$I87+$I87+4) -> 18 | O87: =IF($A87="","",$M87-1) -> 6 | P87: =IF($A87="","",$N87) -> 18 | Q87: =IF($A87="","",$M87-1) -> 6 | R87: =IF($A87="","",$N87+1) -> 19 | S87: =IF(AND($B87>=1,$B87<=17),OFFSET(INDEX('1組'!$B$6:$E$39,MATCH($B87,'1組'!$B$6:$B$39,0),2),1,0),"") -> 180 | T87: =IF($A87="","",$I87+$I87+5) -> 19 | U87: =IF($A87="","",$B87+$B87+4) -> 6 | V87: =IF($A87="","",$T87-1) -> 18 | W87: =IF($A87="","",$U87) -> 6 | X87: =IF($A87="","",$T87-1) -> 18 | Y87: =IF($A87="","",$U87+1) -> 7 | Z87: =IF(AND($I87>=1,$I87<=17),OFFSET(INDEX('1組'!$B$6:$E$39,MATCH($I87,'1組'!$B$6:$B$39,0),2),1,0),"") -> 180
C89: =IF(AND($B89>=1,$B89<=17),INDEX('1組'!$B$6:$E$39,MATCH($B89,'1組'!$B$6:$B$39,0),4),"") ->  | H89: =IF(AND($I89>=1,$I89<=17),INDEX('1組'!$B$6:$E$39,MATCH($I89,'1組'!$B$6:$B$39,0),4),"") ->  | M89: =IF($A89="","",$B89+$B89+5) ->  | N89: =IF($A89="","",$I89+$I89+4) ->  | O89: =IF($A89="","",$M89-1) ->  | P89: =IF($A89="","",$N89) ->  | Q89: =IF($A89="","",$M89-1) ->  | R89: =IF($A89="","",$N89+1) ->  | S89: =IF(AND($B89>=1,$B89<=17),OFFSET(INDEX('1組'!$B$6:$E$39,MATCH($B89,'1組'!$B$6:$B$39,0),2),1,0),"") ->  | T89: =IF($A89="","",$I89+$I89+5) ->  | U89: =IF($A89="","",$B89+$B89+4) ->  | V89: =IF($A89="","",$T89-1) ->  | W89: =IF($A89="","",$U89) ->  | X89: =IF($A89="","",$T89-1) ->  | Y89: =IF($A89="","",$U89+1) ->  | Z89: =IF(AND($I89>=1,$I89<=17),OFFSET(INDEX('1組'!$B$6:$E$39,MATCH($I89,'1組'!$B$6:$B$39,0),2),1,0),"") -> 
C91: =IF(AND($B91>=1,$B91<=17),INDEX('1組'!$B$6:$E$39,MATCH($B91,'1組'!$B$6:$B$39,0),4),"") ->  | H91: =IF(AND($I91>=1,$I91<=17),INDEX('1組'!$B$6:$E$39,MATCH($I91,'1組'!$B$6:$B$39,0),4),"") ->  | M91: =IF($A91="","",$B91+$B91+5) ->  | N91: =IF($A91="","",$I91+$I91+4) ->  | O91: =IF($A91="","",$M91-1) ->  | P91: =IF($A91="","",$N91) ->  | Q91: =IF($A91="","",$M91-1) ->  | R91: =IF($A91="","",$N91+1) ->  | S91: =IF(AND($B91>=1,$B91<=17),OFFSET(INDEX('1組'!$B$6:$E$39,MATCH($B91,'1組'!$B$6:$B$39,0),2),1,0),"") ->  | T91: =IF($A91="","",$I91+$I91+5) ->  | U91: =IF($A91="","",$B91+$B91+4) ->  | V91: =IF($A91="","",$T91-1) ->  | W91: =IF($A91="","",$U91) ->  | X91: =IF($A91="","",$T91-1) ->  | Y91: =IF($A91="","",$U91+1) ->  | Z91: =IF(AND($I91>=1,$I91<=17),OFFSET(INDEX('1組'!$B$6:$E$39,MATCH($I91,'1組'!$B$6:$B$39,0),2),1,0),"") -> 
C93: =IF(AND($B93>=1,$B93<=17),INDEX('1組'!$B$6:$E$39,MATCH($B93,'1組'!$B$6:$B$39,0),4),"") ->  | H93: =IF(AND($I93>=1,$I93<=17),INDEX('1組'!$B$6:$E$39,MATCH($I93,'1組'!$B$6:$B$39,0),4),"") ->  | M93: =IF($A93="","",$B93+$B93+5) ->  | N93: =IF($A93="","",$I93+$I93+4) ->  | O93: =IF($A93="","",$M93-1) ->  | P93: =IF($A93="","",$N93) ->  | Q93: =IF($A93="","",$M93-1) ->  | R93: =IF($A93="","",$N93+1) ->  | S93: =IF(AND($B93>=1,$B93<=17),OFFSET(INDEX('1組'!$B$6:$E$39,MATCH($B93,'1組'!$B$6:$B$39,0),2),1,0),"") ->  | T93: =IF($A93="","",$I93+$I93+5) ->  | U93: =IF($A93="","",$B93+$B93+4) ->  | V93: =IF($A93="","",$T93-1) ->  | W93: =IF($A93="","",$U93) ->  | X93: =IF($A93="","",$T93-1) ->  | Y93: =IF($A93="","",$U93+1) ->  | Z93: =IF(AND($I93>=1,$I93<=17),OFFSET(INDEX('1組'!$B$6:$E$39,MATCH($I93,'1組'!$B$6:$B$39,0),2),1,0),"") -> 
C95: =IF(AND($B95>=1,$B95<=17),INDEX('1組'!$B$6:$E$39,MATCH($B95,'1組'!$B$6:$B$39,0),4),"") ->  | H95: =IF(AND($I95>=1,$I95<=17),INDEX('1組'!$B$6:$E$39,MATCH($I95,'1組'!$B$6:$B$39,0),4),"") ->  | M95: =IF($A95="","",$B95+$B95+5) ->  | N95: =IF($A95="","",$I95+$I95+4) ->  | O95: =IF($A95="","",$M95-1) ->  | P95: =IF($A95="","",$N95) ->  | Q95: =IF($A95="","",$M95-1) ->  | R95: =IF($A95="","",$N95+1) ->  | S95: =IF(AND($B95>=1,$B95<=17),OFFSET(INDEX('1組'!$B$6:$E$39,MATCH($B95,'1組'!$B$6:$B$39,0),2),1,0),"") ->  | T95: =IF($A95="","",$I95+$I95+5) ->  | U95: =IF($A95="","",$B95+$B95+4) ->  | V95: =IF($A95="","",$T95-1) ->  | W95: =IF($A95="","",$U95) ->  | X95: =IF($A95="","",$T95-1) ->  | Y95: =IF($A95="","",$U95+1) ->  | Z95: =IF(AND($I95>=1,$I95<=17),OFFSET(INDEX('1組'!$B$6:$E$39,MATCH($I95,'1組'!$B$6:$B$39,0),2),1,0),"") -> 
C97: =IF(AND($B97>=1,$B97<=17),INDEX('1組'!$B$6:$E$39,MATCH($B97,'1組'!$B$6:$B$39,0),4),"") ->  | H97: =IF(AND($I97>=1,$I97<=17),INDEX('1組'!$B$6:$E$39,MATCH($I97,'1組'!$B$6:$B$39,0),4),"") ->  | M97: =IF($A97="","",$B97+$B97+5) ->  | N97: =IF($A97="","",$I97+$I97+4) ->  | O97: =IF($A97="","",$M97-1) ->  | P97: =IF($A97="","",$N97) ->  | Q97: =IF($A97="","",$M97-1) ->  | R97: =IF($A97="","",$N97+1) ->  | S97: =IF(AND($B97>=1,$B97<=17),OFFSET(INDEX('1組'!$B$6:$E$39,MATCH($B97,'1組'!$B$6:$B$39,0),2),1,0),"") ->  | T97: =IF($A97="","",$I97+$I97+5) ->  | U97: =IF($A97="","",$B97+$B97+4) ->  | V97: =IF($A97="","",$T97-1) ->  | W97: =IF($A97="","",$U97) ->  | X97: =IF($A97="","",$T97-1) ->  | Y97: =IF($A97="","",$U97+1) ->  | Z97: =IF(AND($I97>=1,$I97<=17),OFFSET(INDEX('1組'!$B$6:$E$39,MATCH($I97,'1組'!$B$6:$B$39,0),2),1,0),"") -> 
C99: =IF(AND($B99>=1,$B99<=17),INDEX('1組'!$B$6:$E$39,MATCH($B99,'1組'!$B$6:$B$39,0),4),"") ->  | H99: =IF(AND($I99>=1,$I99<=17),INDEX('1組'!$B$6:$E$39,MATCH($I99,'1組'!$B$6:$B$39,0),4),"") ->  | M99: =IF($A99="","",$B99+$B99+5) ->  | N99: =IF($A99="","",$I99+$I99+4) ->  | O99: =IF($A99="","",$M99-1) ->  | P99: =IF($A99="","",$N99) ->  | Q99: =IF($A99="","",$M99-1) ->  | R99: =IF($A99="","",$N99+1) ->  | S99: =IF(AND($B99>=1,$B99<=17),OFFSET(INDEX('1組'!$B$6:$E$39,MATCH($B99,'1組'!$B$6:$B$39,0),2),1,0),"") ->  | T99: =IF($A99="","",$I99+$I99+5) ->  | U99: =IF($A99="","",$B99+$B99+4) ->  | V99: =IF($A99="","",$T99-1) ->  | W99: =IF($A99="","",$U99) ->  | X99: =IF($A99="","",$T99-1) ->  | Y99: =IF($A99="","",$U99+1) ->  | Z99: =IF(AND($I99>=1,$I99<=17),OFFSET(INDEX('1組'!$B$6:$E$39,MATCH($I99,'1組'!$B$6:$B$39,0),2),1,0),"") -> 
C101: =IF(AND($B101>=1,$B101<=17),INDEX('1組'!$B$6:$E$39,MATCH($B101,'1組'!$B$6:$B$39,0),4),"") ->  | H101: =IF(AND($I101>=1,$I101<=17),INDEX('1組'!$B$6:$E$39,MATCH($I101,'1組'!$B$6:$B$39,0),4),"") ->  | M101: =IF($A101="","",$B101+$B101+5) ->  | N101: =IF($A101="","",$I101+$I101+4) ->  | O101: =IF($A101="","",$M101-1) ->  | P101: =IF($A101="","",$N101) ->  | Q101: =IF($A101="","",$M101-1) ->  | R101: =IF($A101="","",$N101+1) ->  | S101: =IF(AND($B101>=1,$B101<=17),OFFSET(INDEX('1組'!$B$6:$E$39,MATCH($B101,'1組'!$B$6:$B$39,0),2),1,0),"") ->  | T101: =IF($A101="","",$I101+$I101+5) ->  | U101: =IF($A101="","",$B101+$B101+4) ->  | V101: =IF($A101="","",$T101-1) ->  | W101: =IF($A101="","",$U101) ->  | X101: =IF($A101="","",$T101-1) ->  | Y101: =IF($A101="","",$U101+1) ->  | Z101: =IF(AND($I101>=1,$I101<=17),OFFSET(INDEX('1組'!$B$6:$E$39,MATCH($I101,'1組'!$B$6:$B$39,0),2),1,0),"") -> 
C103: =IF(AND($B103>=1,$B103<=17),INDEX('1組'!$B$6:$E$39,MATCH($B103,'1組'!$B$6:$B$39,0),4),"") ->  | H103: =IF(AND($I103>=1,$I103<=17),INDEX('1組'!$B$6:$E$39,MATCH($I103,'1組'!$B$6:$B$39,0),4),"") ->  | M103: =IF($A103="","",$B103+$B103+5) ->  | N103: =IF($A103="","",$I103+$I103+4) ->  | O103: =IF($A103="","",$M103-1) ->  | P103: =IF($A103="","",$N103) ->  | Q103: =IF($A103="","",$M103-1) ->  | R103: =IF($A103="","",$N103+1) ->  | S103: =IF(AND($B103>=1,$B103<=17),OFFSET(INDEX('1組'!$B$6:$E$39,MATCH($B103,'1組'!$B$6:$B$39,0),2),1,0),"") ->  | T103: =IF($A103="","",$I103+$I103+5) ->  | U103: =IF($A103="","",$B103+$B103+4) ->  | V103: =IF($A103="","",$T103-1) ->  | W103: =IF($A103="","",$U103) ->  | X103: =IF($A103="","",$T103-1) ->  | Y103: =IF($A103="","",$U103+1) ->  | Z103: =IF(AND($I103>=1,$I103<=17),OFFSET(INDEX('1組'!$B$6:$E$39,MATCH($I103,'1組'!$B$6:$B$39,0),2),1,0),"") -> 
C105: =IF(AND($B105>=1,$B105<=17),INDEX('1組'!$B$6:$E$39,MATCH($B105,'1組'!$B$6:$B$39,0),4),"") ->  | H105: =IF(AND($I105>=1,$I105<=17),INDEX('1組'!$B$6:$E$39,MATCH($I105,'1組'!$B$6:$B$39,0),4),"") ->  | M105: =IF($A105="","",$B105+$B105+5) ->  | N105: =IF($A105="","",$I105+$I105+4) ->  | O105: =IF($A105="","",$M105-1) ->  | P105: =IF($A105="","",$N105) ->  | Q105: =IF($A105="","",$M105-1) ->  | R105: =IF($A105="","",$N105+1) ->  | S105: =IF(AND($B105>=1,$B105<=17),OFFSET(INDEX('1組'!$B$6:$E$39,MATCH($B105,'1組'!$B$6:$B$39,0),2),1,0),"") ->  | T105: =IF($A105="","",$I105+$I105+5) ->  | U105: =IF($A105="","",$B105+$B105+4) ->  | V105: =IF($A105="","",$T105-1) ->  | W105: =IF($A105="","",$U105) ->  | X105: =IF($A105="","",$T105-1) ->  | Y105: =IF($A105="","",$U105+1) ->  | Z105: =IF(AND($I105>=1,$I105<=17),OFFSET(INDEX('1組'!$B$6:$E$39,MATCH($I105,'1組'!$B$6:$B$39,0),2),1,0),"") -> 
C107: =IF(AND($B107>=1,$B107<=17),INDEX('1組'!$B$6:$E$39,MATCH($B107,'1組'!$B$6:$B$39,0),4),"") ->  | H107: =IF(AND($I107>=1,$I107<=17),INDEX('1組'!$B$6:$E$39,MATCH($I107,'1組'!$B$6:$B$39,0),4),"") ->  | M107: =IF($A107="","",$B107+$B107+5) ->  | N107: =IF($A107="","",$I107+$I107+4) ->  | O107: =IF($A107="","",$M107-1) ->  | P107: =IF($A107="","",$N107) ->  | Q107: =IF($A107="","",$M107-1) ->  | R107: =IF($A107="","",$N107+1) ->  | S107: =IF(AND($B107>=1,$B107<=17),OFFSET(INDEX('1組'!$B$6:$E$39,MATCH($B107,'1組'!$B$6:$B$39,0),2),1,0),"") ->  | T107: =IF($A107="","",$I107+$I107+5) ->  | U107: =IF($A107="","",$B107+$B107+4) ->  | V107: =IF($A107="","",$T107-1) ->  | W107: =IF($A107="","",$U107) ->  | X107: =IF($A107="","",$T107-1) ->  | Y107: =IF($A107="","",$U107+1) ->  | Z107: =IF(AND($I107>=1,$I107<=17),OFFSET(INDEX('1組'!$B$6:$E$39,MATCH($I107,'1組'!$B$6:$B$39,0),2),1,0),"") -> 
C109: =IF(AND($B109>=1,$B109<=17),INDEX('1組'!$B$6:$E$39,MATCH($B109,'1組'!$B$6:$B$39,0),4),"") ->  | H109: =IF(AND($I109>=1,$I109<=17),INDEX('1組'!$B$6:$E$39,MATCH($I109,'1組'!$B$6:$B$39,0),4),"") ->  | M109: =IF($A109="","",$B109+$B109+5) ->  | N109: =IF($A109="","",$I109+$I109+4) ->  | O109: =IF($A109="","",$M109-1) ->  | P109: =IF($A109="","",$N109) ->  | Q109: =IF($A109="","",$M109-1) ->  | R109: =IF($A109="","",$N109+1) ->  | S109: =IF(AND($B109>=1,$B109<=17),OFFSET(INDEX('1組'!$B$6:$E$39,MATCH($B109,'1組'!$B$6:$B$39,0),2),1,0),"") ->  | T109: =IF($A109="","",$I109+$I109+5) ->  | U109: =IF($A109="","",$B109+$B109+4) ->  | V109: =IF($A109="","",$T109-1) ->  | W109: =IF($A109="","",$U109) ->  | X109: =IF($A109="","",$T109-1) ->  | Y109: =IF($A109="","",$U109+1) ->  | Z109: =IF(AND($I109>=1,$I109<=17),OFFSET(INDEX('1組'!$B$6:$E$39,MATCH($I109,'1組'!$B$6:$B$39,0),2),1,0),"") -> 
C111: =IF(AND($B111>=1,$B111<=17),INDEX('1組'!$B$6:$E$39,MATCH($B111,'1組'!$B$6:$B$39,0),4),"") ->  | H111: =IF(AND($I111>=1,$I111<=17),INDEX('1組'!$B$6:$E$39,MATCH($I111,'1組'!$B$6:$B$39,0),4),"") ->  | M111: =IF($A111="","",$B111+$B111+5) ->  | N111: =IF($A111="","",$I111+$I111+4) ->  | O111: =IF($A111="","",$M111-1) ->  | P111: =IF($A111="","",$N111) ->  | Q111: =IF($A111="","",$M111-1) ->  | R111: =IF($A111="","",$N111+1) ->  | S111: =IF(AND($B111>=1,$B111<=17),OFFSET(INDEX('1組'!$B$6:$E$39,MATCH($B111,'1組'!$B$6:$B$39,0),2),1,0),"") ->  | T111: =IF($A111="","",$I111+$I111+5) ->  | U111: =IF($A111="","",$B111+$B111+4) ->  | V111: =IF($A111="","",$T111-1) ->  | W111: =IF($A111="","",$U111) ->  | X111: =IF($A111="","",$T111-1) ->  | Y111: =IF($A111="","",$U111+1) ->  | Z111: =IF(AND($I111>=1,$I111<=17),OFFSET(INDEX('1組'!$B$6:$E$39,MATCH($I111,'1組'!$B$6:$B$39,0),2),1,0),"") -> 
C113: =IF(AND($B113>=1,$B113<=17),INDEX('1組'!$B$6:$E$39,MATCH($B113,'1組'!$B$6:$B$39,0),4),"") ->  | H113: =IF(AND($I113>=1,$I113<=17),INDEX('1組'!$B$6:$E$39,MATCH($I113,'1組'!$B$6:$B$39,0),4),"") ->  | M113: =IF($A113="","",$B113+$B113+5) ->  | N113: =IF($A113="","",$I113+$I113+4) ->  | O113: =IF($A113="","",$M113-1) ->  | P113: =IF($A113="","",$N113) ->  | Q113: =IF($A113="","",$M113-1) ->  | R113: =IF($A113="","",$N113+1) ->  | S113: =IF(AND($B113>=1,$B113<=17),OFFSET(INDEX('1組'!$B$6:$E$39,MATCH($B113,'1組'!$B$6:$B$39,0),2),1,0),"") ->  | T113: =IF($A113="","",$I113+$I113+5) ->  | U113: =IF($A113="","",$B113+$B113+4) ->  | V113: =IF($A113="","",$T113-1) ->  | W113: =IF($A113="","",$U113) ->  | X113: =IF($A113="","",$T113-1) ->  | Y113: =IF($A113="","",$U113+1) ->  | Z113: =IF(AND($I113>=1,$I113<=17),OFFSET(INDEX('1組'!$B$6:$E$39,MATCH($I113,'1組'!$B$6:$B$39,0),2),1,0),"") -> 
C115: =IF(AND($B115>=1,$B115<=17),INDEX('1組'!$B$6:$E$39,MATCH($B115,'1組'!$B$6:$B$39,0),4),"") ->  | H115: =IF(AND($I115>=1,$I115<=17),INDEX('1組'!$B$6:$E$39,MATCH($I115,'1組'!$B$6:$B$39,0),4),"") ->  | M115: =IF($A115="","",$B115+$B115+5) ->  | N115: =IF($A115="","",$I115+$I115+4) ->  | O115: =IF($A115="","",$M115-1) ->  | P115: =IF($A115="","",$N115) ->  | Q115: =IF($A115="","",$M115-1) ->  | R115: =IF($A115="","",$N115+1) ->  | S115: =IF(AND($B115>=1,$B115<=17),OFFSET(INDEX('1組'!$B$6:$E$39,MATCH($B115,'1組'!$B$6:$B$39,0),2),1,0),"") ->  | T115: =IF($A115="","",$I115+$I115+5) ->  | U115: =IF($A115="","",$B115+$B115+4) ->  | V115: =IF($A115="","",$T115-1) ->  | W115: =IF($A115="","",$U115) ->  | X115: =IF($A115="","",$T115-1) ->  | Y115: =IF($A115="","",$U115+1) ->  | Z115: =IF(AND($I115>=1,$I115<=17),OFFSET(INDEX('1組'!$B$6:$E$39,MATCH($I115,'1組'!$B$6:$B$39,0),2),1,0),"") -> 
C117: =IF(AND($B117>=1,$B117<=17),INDEX('1組'!$B$6:$E$39,MATCH($B117,'1組'!$B$6:$B$39,0),4),"") ->  | H117: =IF(AND($I117>=1,$I117<=17),INDEX('1組'!$B$6:$E$39,MATCH($I117,'1組'!$B$6:$B$39,0),4),"") ->  | M117: =IF($A117="","",$B117+$B117+5) ->  | N117: =IF($A117="","",$I117+$I117+4) ->  | O117: =IF($A117="","",$M117-1) ->  | P117: =IF($A117="","",$N117) ->  | Q117: =IF($A117="","",$M117-1) ->  | R117: =IF($A117="","",$N117+1) ->  | S117: =IF(AND($B117>=1,$B117<=17),OFFSET(INDEX('1組'!$B$6:$E$39,MATCH($B117,'1組'!$B$6:$B$39,0),2),1,0),"") ->  | T117: =IF($A117="","",$I117+$I117+5) ->  | U117: =IF($A117="","",$B117+$B117+4) ->  | V117: =IF($A117="","",$T117-1) ->  | W117: =IF($A117="","",$U117) ->  | X117: =IF($A117="","",$T117-1) ->  | Y117: =IF($A117="","",$U117+1) ->  | Z117: =IF(AND($I117>=1,$I117<=17),OFFSET(INDEX('1組'!$B$6:$E$39,MATCH($I117,'1組'!$B$6:$B$39,0),2),1,0),"") -> 
C119: =IF(AND($B119>=1,$B119<=17),INDEX('1組'!$B$6:$E$39,MATCH($B119,'1組'!$B$6:$B$39,0),4),"") ->  | H119: =IF(AND($I119>=1,$I119<=17),INDEX('1組'!$B$6:$E$39,MATCH($I119,'1組'!$B$6:$B$39,0),4),"") ->  | M119: =IF($A119="","",$B119+$B119+5) ->  | N119: =IF($A119="","",$I119+$I119+4) ->  | O119: =IF($A119="","",$M119-1) ->  | P119: =IF($A119="","",$N119) ->  | Q119: =IF($A119="","",$M119-1) ->  | R119: =IF($A119="","",$N119+1) ->  | S119: =IF(AND($B119>=1,$B119<=17),OFFSET(INDEX('1組'!$B$6:$E$39,MATCH($B119,'1組'!$B$6:$B$39,0),2),1,0),"") ->  | T119: =IF($A119="","",$I119+$I119+5) ->  | U119: =IF($A119="","",$B119+$B119+4) ->  | V119: =IF($A119="","",$T119-1) ->  | W119: =IF($A119="","",$U119) ->  | X119: =IF($A119="","",$T119-1) ->  | Y119: =IF($A119="","",$U119+1) ->  | Z119: =IF(AND($I119>=1,$I119<=17),OFFSET(INDEX('1組'!$B$6:$E$39,MATCH($I119,'1組'!$B$6:$B$39,0),2),1,0),"") -> 
C121: =IF(AND($B121>=1,$B121<=17),INDEX('1組'!$B$6:$E$39,MATCH($B121,'1組'!$B$6:$B$39,0),4),"") ->  | H121: =IF(AND($I121>=1,$I121<=17),INDEX('1組'!$B$6:$E$39,MATCH($I121,'1組'!$B$6:$B$39,0),4),"") ->  | M121: =IF($A121="","",$B121+$B121+5) ->  | N121: =IF($A121="","",$I121+$I121+4) ->  | O121: =IF($A121="","",$M121-1) ->  | P121: =IF($A121="","",$N121) ->  | Q121: =IF($A121="","",$M121-1) ->  | R121: =IF($A121="","",$N121+1) ->  | S121: =IF(AND($B121>=1,$B121<=17),OFFSET(INDEX('1組'!$B$6:$E$39,MATCH($B121,'1組'!$B$6:$B$39,0),2),1,0),"") ->  | T121: =IF($A121="","",$I121+$I121+5) ->  | U121: =IF($A121="","",$B121+$B121+4) ->  | V121: =IF($A121="","",$T121-1) ->  | W121: =IF($A121="","",$U121) ->  | X121: =IF($A121="","",$T121-1) ->  | Y121: =IF($A121="","",$U121+1) ->  | Z121: =IF(AND($I121>=1,$I121<=17),OFFSET(INDEX('1組'!$B$6:$E$39,MATCH($I121,'1組'!$B$6:$B$39,0),2),1,0),"") -> 
C123: =IF(AND($B123>=1,$B123<=17),INDEX('1組'!$B$6:$E$39,MATCH($B123,'1組'!$B$6:$B$39,0),4),"") ->  | H123: =IF(AND($I123>=1,$I123<=17),INDEX('1組'!$B$6:$E$39,MATCH($I123,'1組'!$B$6:$B$39,0),4),"") ->  | M123: =IF($A123="","",$B123+$B123+5) ->  | N123: =IF($A123="","",$I123+$I123+4) ->  | O123: =IF($A123="","",$M123-1) ->  | P123: =IF($A123="","",$N123) ->  | Q123: =IF($A123="","",$M123-1) ->  | R123: =IF($A123="","",$N123+1) ->  | S123: =IF(AND($B123>=1,$B123<=17),OFFSET(INDEX('1組'!$B$6:$E$39,MATCH($B123,'1組'!$B$6:$B$39,0),2),1,0),"") ->  | T123: =IF($A123="","",$I123+$I123+5) ->  | U123: =IF($A123="","",$B123+$B123+4) ->  | V123: =IF($A123="","",$T123-1) ->  | W123: =IF($A123="","",$U123) ->  | X123: =IF($A123="","",$T123-1) ->  | Y123: =IF($A123="","",$U123+1) ->  | Z123: =IF(AND($I123>=1,$I123<=17),OFFSET(INDEX('1組'!$B$6:$E$39,MATCH($I123,'1組'!$B$6:$B$39,0),2),1,0),"") -> 
C125: =IF(AND($B125>=1,$B125<=17),INDEX('1組'!$B$6:$E$39,MATCH($B125,'1組'!$B$6:$B$39,0),4),"") ->  | H125: =IF(AND($I125>=1,$I125<=17),INDEX('1組'!$B$6:$E$39,MATCH($I125,'1組'!$B$6:$B$39,0),4),"") ->  | M125: =IF($A125="","",$B125+$B125+5) ->  | N125: =IF($A125="","",$I125+$I125+4) ->  | O125: =IF($A125="","",$M125-1) ->  | P125: =IF($A125="","",$N125) ->  | Q125: =IF($A125="","",$M125-1) ->  | R125: =IF($A125="","",$N125+1) ->  | S125: =IF(AND($B125>=1,$B125<=17),OFFSET(INDEX('1組'!$B$6:$E$39,MATCH($B125,'1組'!$B$6:$B$39,0),2),1,0),"") ->  | T125: =IF($A125="","",$I125+$I125+5) ->  | U125: =IF($A125="","",$B125+$B125+4) ->  | V125: =IF($A125="","",$T125-1) ->  | W125: =IF($A125="","",$U125) ->  | X125: =IF($A125="","",$T125-1) ->  | Y125: =IF($A125="","",$U125+1) ->  | Z125: =IF(AND($I125>=1,$I125<=17),OFFSET(INDEX('1組'!$B$6:$E$39,MATCH($I125,'1組'!$B$6:$B$39,0),2),1,0),"") -> 
C127: =IF(AND($B127>=1,$B127<=17),INDEX('1組'!$B$6:$E$39,MATCH($B127,'1組'!$B$6:$B$39,0),4),"") ->  | H127: =IF(AND($I127>=1,$I127<=17),INDEX('1組'!$B$6:$E$39,MATCH($I127,'1組'!$B$6:$B$39,0),4),"") ->  | M127: =IF($A127="","",$B127+$B127+5) ->  | N127: =IF($A127="","",$I127+$I127+4) ->  | O127: =IF($A127="","",$M127-1) ->  | P127: =IF($A127="","",$N127) ->  | Q127: =IF($A127="","",$M127-1) ->  | R127: =IF($A127="","",$N127+1) ->  | S127: =IF(AND($B127>=1,$B127<=17),OFFSET(INDEX('1組'!$B$6:$E$39,MATCH($B127,'1組'!$B$6:$B$39,0),2),1,0),"") ->  | T127: =IF($A127="","",$I127+$I127+5) ->  | U127: =IF($A127="","",$B127+$B127+4) ->  | V127: =IF($A127="","",$T127-1) ->  | W127: =IF($A127="","",$U127) ->  | X127: =IF($A127="","",$T127-1) ->  | Y127: =IF($A127="","",$U127+1) ->  | Z127: =IF(AND($I127>=1,$I127<=17),OFFSET(INDEX('1組'!$B$6:$E$39,MATCH($I127,'1組'!$B$6:$B$39,0),2),1,0),"") -> 
C129: =IF(AND($B129>=1,$B129<=17),INDEX('1組'!$B$6:$E$39,MATCH($B129,'1組'!$B$6:$B$39,0),4),"") ->  | H129: =IF(AND($I129>=1,$I129<=17),INDEX('1組'!$B$6:$E$39,MATCH($I129,'1組'!$B$6:$B$39,0),4),"") ->  | M129: =IF($A129="","",$B129+$B129+5) ->  | N129: =IF($A129="","",$I129+$I129+4) ->  | O129: =IF($A129="","",$M129-1) ->  | P129: =IF($A129="","",$N129) ->  | Q129: =IF($A129="","",$M129-1) ->  | R129: =IF($A129="","",$N129+1) ->  | S129: =IF(AND($B129>=1,$B129<=17),OFFSET(INDEX('1組'!$B$6:$E$39,MATCH($B129,'1組'!$B$6:$B$39,0),2),1,0),"") ->  | T129: =IF($A129="","",$I129+$I129+5) ->  | U129: =IF($A129="","",$B129+$B129+4) ->  | V129: =IF($A129="","",$T129-1) ->  | W129: =IF($A129="","",$U129) ->  | X129: =IF($A129="","",$T129-1) ->  | Y129: =IF($A129="","",$U129+1) ->  | Z129: =IF(AND($I129>=1,$I129<=17),OFFSET(INDEX('1組'!$B$6:$E$39,MATCH($I129,'1組'!$B$6:$B$39,0),2),1,0),"") -> 
C131: =IF(AND($B131>=1,$B131<=17),INDEX('1組'!$B$6:$E$39,MATCH($B131,'1組'!$B$6:$B$39,0),4),"") ->  | H131: =IF(AND($I131>=1,$I131<=17),INDEX('1組'!$B$6:$E$39,MATCH($I131,'1組'!$B$6:$B$39,0),4),"") ->  | M131: =IF($A131="","",$B131+$B131+5) ->  | N131: =IF($A131="","",$I131+$I131+4) ->  | O131: =IF($A131="","",$M131-1) ->  | P131: =IF($A131="","",$N131) ->  | Q131: =IF($A131="","",$M131-1) ->  | R131: =IF($A131="","",$N131+1) ->  | S131: =IF(AND($B131>=1,$B131<=17),OFFSET(INDEX('1組'!$B$6:$E$39,MATCH($B131,'1組'!$B$6:$B$39,0),2),1,0),"") ->  | T131: =IF($A131="","",$I131+$I131+5) ->  | U131: =IF($A131="","",$B131+$B131+4) ->  | V131: =IF($A131="","",$T131-1) ->  | W131: =IF($A131="","",$U131) ->  | X131: =IF($A131="","",$T131-1) ->  | Y131: =IF($A131="","",$U131+1) ->  | Z131: =IF(AND($I131>=1,$I131<=17),OFFSET(INDEX('1組'!$B$6:$E$39,MATCH($I131,'1組'!$B$6:$B$39,0),2),1,0),"") -> 
C133: =IF(AND($B133>=1,$B133<=17),INDEX('1組'!$B$6:$E$39,MATCH($B133,'1組'!$B$6:$B$39,0),4),"") ->  | H133: =IF(AND($I133>=1,$I133<=17),INDEX('1組'!$B$6:$E$39,MATCH($I133,'1組'!$B$6:$B$39,0),4),"") ->  | M133: =IF($A133="","",$B133+$B133+5) ->  | N133: =IF($A133="","",$I133+$I133+4) ->  | O133: =IF($A133="","",$M133-1) ->  | P133: =IF($A133="","",$N133) ->  | Q133: =IF($A133="","",$M133-1) ->  | R133: =IF($A133="","",$N133+1) ->  | S133: =IF(AND($B133>=1,$B133<=17),OFFSET(INDEX('1組'!$B$6:$E$39,MATCH($B133,'1組'!$B$6:$B$39,0),2),1,0),"") ->  | T133: =IF($A133="","",$I133+$I133+5) ->  | U133: =IF($A133="","",$B133+$B133+4) ->  | V133: =IF($A133="","",$T133-1) ->  | W133: =IF($A133="","",$U133) ->  | X133: =IF($A133="","",$T133-1) ->  | Y133: =IF($A133="","",$U133+1) ->  | Z133: =IF(AND($I133>=1,$I133<=17),OFFSET(INDEX('1組'!$B$6:$E$39,MATCH($I133,'1組'!$B$6:$B$39,0),2),1,0),"") -> 
C135: =IF(AND($B135>=1,$B135<=17),INDEX('1組'!$B$6:$E$39,MATCH($B135,'1組'!$B$6:$B$39,0),4),"") ->  | H135: =IF(AND($I135>=1,$I135<=17),INDEX('1組'!$B$6:$E$39,MATCH($I135,'1組'!$B$6:$B$39,0),4),"") ->  | M135: =IF($A135="","",$B135+$B135+5) ->  | N135: =IF($A135="","",$I135+$I135+4) ->  | O135: =IF($A135="","",$M135-1) ->  | P135: =IF($A135="","",$N135) ->  | Q135: =IF($A135="","",$M135-1) ->  | R135: =IF($A135="","",$N135+1) ->  | S135: =IF(AND($B135>=1,$B135<=17),OFFSET(INDEX('1組'!$B$6:$E$39,MATCH($B135,'1組'!$B$6:$B$39,0),2),1,0),"") ->  | T135: =IF($A135="","",$I135+$I135+5) ->  | U135: =IF($A135="","",$B135+$B135+4) ->  | V135: =IF($A135="","",$T135-1) ->  | W135: =IF($A135="","",$U135) ->  | X135: =IF($A135="","",$T135-1) ->  | Y135: =IF($A135="","",$U135+1) ->  | Z135: =IF(AND($I135>=1,$I135<=17),OFFSET(INDEX('1組'!$B$6:$E$39,MATCH($I135,'1組'!$B$6:$B$39,0),2),1,0),"") -> 
C137: =IF(AND($B137>=1,$B137<=17),INDEX('1組'!$B$6:$E$39,MATCH($B137,'1組'!$B$6:$B$39,0),4),"") ->  | H137: =IF(AND($I137>=1,$I137<=17),INDEX('1組'!$B$6:$E$39,MATCH($I137,'1組'!$B$6:$B$39,0),4),"") ->  | M137: =IF($A137="","",$B137+$B137+5) ->  | N137: =IF($A137="","",$I137+$I137+4) ->  | O137: =IF($A137="","",$M137-1) ->  | P137: =IF($A137="","",$N137) ->  | Q137: =IF($A137="","",$M137-1) ->  | R137: =IF($A137="","",$N137+1) ->  | S137: =IF(AND($B137>=1,$B137<=17),OFFSET(INDEX('1組'!$B$6:$E$39,MATCH($B137,'1組'!$B$6:$B$39,0),2),1,0),"") ->  | T137: =IF($A137="","",$I137+$I137+5) ->  | U137: =IF($A137="","",$B137+$B137+4) ->  | V137: =IF($A137="","",$T137-1) ->  | W137: =IF($A137="","",$U137) ->  | X137: =IF($A137="","",$T137-1) ->  | Y137: =IF($A137="","",$U137+1) ->  | Z137: =IF(AND($I137>=1,$I137<=17),OFFSET(INDEX('1組'!$B$6:$E$39,MATCH($I137,'1組'!$B$6:$B$39,0),2),1,0),"") -> 
C139: =IF(AND($B139>=1,$B139<=17),INDEX('1組'!$B$6:$E$39,MATCH($B139,'1組'!$B$6:$B$39,0),4),"") ->  | H139: =IF(AND($I139>=1,$I139<=17),INDEX('1組'!$B$6:$E$39,MATCH($I139,'1組'!$B$6:$B$39,0),4),"") ->  | M139: =IF($A139="","",$B139+$B139+5) ->  | N139: =IF($A139="","",$I139+$I139+4) ->  | O139: =IF($A139="","",$M139-1) ->  | P139: =IF($A139="","",$N139) ->  | Q139: =IF($A139="","",$M139-1) ->  | R139: =IF($A139="","",$N139+1) ->  | S139: =IF(AND($B139>=1,$B139<=17),OFFSET(INDEX('1組'!$B$6:$E$39,MATCH($B139,'1組'!$B$6:$B$39,0),2),1,0),"") ->  | T139: =IF($A139="","",$I139+$I139+5) ->  | U139: =IF($A139="","",$B139+$B139+4) ->  | V139: =IF($A139="","",$T139-1) ->  | W139: =IF($A139="","",$U139) ->  | X139: =IF($A139="","",$T139-1) ->  | Y139: =IF($A139="","",$U139+1) ->  | Z139: =IF(AND($I139>=1,$I139<=17),OFFSET(INDEX('1組'!$B$6:$E$39,MATCH($I139,'1組'!$B$6:$B$39,0),2),1,0),"") -> 
C141: =IF(AND($B141>=1,$B141<=17),INDEX('1組'!$B$6:$E$39,MATCH($B141,'1組'!$B$6:$B$39,0),4),"") ->  | H141: =IF(AND($I141>=1,$I141<=17),INDEX('1組'!$B$6:$E$39,MATCH($I141,'1組'!$B$6:$B$39,0),4),"") ->  | M141: =IF($A141="","",$B141+$B141+5) ->  | N141: =IF($A141="","",$I141+$I141+4) ->  | O141: =IF($A141="","",$M141-1) ->  | P141: =IF($A141="","",$N141) ->  | Q141: =IF($A141="","",$M141-1) ->  | R141: =IF($A141="","",$N141+1) ->  | S141: =IF(AND($B141>=1,$B141<=17),OFFSET(INDEX('1組'!$B$6:$E$39,MATCH($B141,'1組'!$B$6:$B$39,0),2),1,0),"") ->  | T141: =IF($A141="","",$I141+$I141+5) ->  | U141: =IF($A141="","",$B141+$B141+4) ->  | V141: =IF($A141="","",$T141-1) ->  | W141: =IF($A141="","",$U141) ->  | X141: =IF($A141="","",$T141-1) ->  | Y141: =IF($A141="","",$U141+1) ->  | Z141: =IF(AND($I141>=1,$I141<=17),OFFSET(INDEX('1組'!$B$6:$E$39,MATCH($I141,'1組'!$B$6:$B$39,0),2),1,0),"") -> 
C143: =IF(AND($B143>=1,$B143<=17),INDEX('1組'!$B$6:$E$39,MATCH($B143,'1組'!$B$6:$B$39,0),4),"") ->  | H143: =IF(AND($I143>=1,$I143<=17),INDEX('1組'!$B$6:$E$39,MATCH($I143,'1組'!$B$6:$B$39,0),4),"") ->  | M143: =IF($A143="","",$B143+$B143+5) ->  | N143: =IF($A143="","",$I143+$I143+4) ->  | O143: =IF($A143="","",$M143-1) ->  | P143: =IF($A143="","",$N143) ->  | Q143: =IF($A143="","",$M143-1) ->  | R143: =IF($A143="","",$N143+1) ->  | S143: =IF(AND($B143>=1,$B143<=17),OFFSET(INDEX('1組'!$B$6:$E$39,MATCH($B143,'1組'!$B$6:$B$39,0),2),1,0),"") ->  | T143: =IF($A143="","",$I143+$I143+5) ->  | U143: =IF($A143="","",$B143+$B143+4) ->  | V143: =IF($A143="","",$T143-1) ->  | W143: =IF($A143="","",$U143) ->  | X143: =IF($A143="","",$T143-1) ->  | Y143: =IF($A143="","",$U143+1) ->  | Z143: =IF(AND($I143>=1,$I143<=17),OFFSET(INDEX('1組'!$B$6:$E$39,MATCH($I143,'1組'!$B$6:$B$39,0),2),1,0),"") -> 
C145: =IF(AND($B145>=1,$B145<=17),INDEX('1組'!$B$6:$E$39,MATCH($B145,'1組'!$B$6:$B$39,0),4),"") ->  | H145: =IF(AND($I145>=1,$I145<=17),INDEX('1組'!$B$6:$E$39,MATCH($I145,'1組'!$B$6:$B$39,0),4),"") ->  | M145: =IF($A145="","",$B145+$B145+5) ->  | N145: =IF($A145="","",$I145+$I145+4) ->  | O145: =IF($A145="","",$M145-1) ->  | P145: =IF($A145="","",$N145) ->  | Q145: =IF($A145="","",$M145-1) ->  | R145: =IF($A145="","",$N145+1) ->  | S145: =IF(AND($B145>=1,$B145<=17),OFFSET(INDEX('1組'!$B$6:$E$39,MATCH($B145,'1組'!$B$6:$B$39,0),2),1,0),"") ->  | T145: =IF($A145="","",$I145+$I145+5) ->  | U145: =IF($A145="","",$B145+$B145+4) ->  | V145: =IF($A145="","",$T145-1) ->  | W145: =IF($A145="","",$U145) ->  | X145: =IF($A145="","",$T145-1) ->  | Y145: =IF($A145="","",$U145+1) ->  | Z145: =IF(AND($I145>=1,$I145<=17),OFFSET(INDEX('1組'!$B$6:$E$39,MATCH($I145,'1組'!$B$6:$B$39,0),2),1,0),"") -> 
C147: =IF(AND($B147>=1,$B147<=17),INDEX('1組'!$B$6:$E$39,MATCH($B147,'1組'!$B$6:$B$39,0),4),"") ->  | H147: =IF(AND($I147>=1,$I147<=17),INDEX('1組'!$B$6:$E$39,MATCH($I147,'1組'!$B$6:$B$39,0),4),"") ->  | M147: =IF($A147="","",$B147+$B147+5) ->  | N147: =IF($A147="","",$I147+$I147+4) ->  | O147: =IF($A147="","",$M147-1) ->  | P147: =IF($A147="","",$N147) ->  | Q147: =IF($A147="","",$M147-1) ->  | R147: =IF($A147="","",$N147+1) ->  | S147: =IF(AND($B147>=1,$B147<=17),OFFSET(INDEX('1組'!$B$6:$E$39,MATCH($B147,'1組'!$B$6:$B$39,0),2),1,0),"") ->  | T147: =IF($A147="","",$I147+$I147+5) ->  | U147: =IF($A147="","",$B147+$B147+4) ->  | V147: =IF($A147="","",$T147-1) ->  | W147: =IF($A147="","",$U147) ->  | X147: =IF($A147="","",$T147-1) ->  | Y147: =IF($A147="","",$U147+1) ->  | Z147: =IF(AND($I147>=1,$I147<=17),OFFSET(INDEX('1組'!$B$6:$E$39,MATCH($I147,'1組'!$B$6:$B$39,0),2),1,0),"") -> 
C149: =IF(AND($B149>=1,$B149<=17),INDEX('1組'!$B$6:$E$39,MATCH($B149,'1組'!$B$6:$B$39,0),4),"") ->  | H149: =IF(AND($I149>=1,$I149<=17),INDEX('1組'!$B$6:$E$39,MATCH($I149,'1組'!$B$6:$B$39,0),4),"") ->  | M149: =IF($A149="","",$B149+$B149+5) ->  | N149: =IF($A149="","",$I149+$I149+4) ->  | O149: =IF($A149="","",$M149-1) ->  | P149: =IF($A149="","",$N149) ->  | Q149: =IF($A149="","",$M149-1) ->  | R149: =IF($A149="","",$N149+1) ->  | S149: =IF(AND($B149>=1,$B149<=17),OFFSET(INDEX('1組'!$B$6:$E$39,MATCH($B149,'1組'!$B$6:$B$39,0),2),1,0),"") ->  | T149: =IF($A149="","",$I149+$I149+5) ->  | U149: =IF($A149="","",$B149+$B149+4) ->  | V149: =IF($A149="","",$T149-1) ->  | W149: =IF($A149="","",$U149) ->  | X149: =IF($A149="","",$T149-1) ->  | Y149: =IF($A149="","",$U149+1) ->  | Z149: =IF(AND($I149>=1,$I149<=17),OFFSET(INDEX('1組'!$B$6:$E$39,MATCH($I149,'1組'!$B$6:$B$39,0),2),1,0),"") -> 
C151: =IF(AND($B151>=1,$B151<=17),INDEX('1組'!$B$6:$E$39,MATCH($B151,'1組'!$B$6:$B$39,0),4),"") ->  | H151: =IF(AND($I151>=1,$I151<=17),INDEX('1組'!$B$6:$E$39,MATCH($I151,'1組'!$B$6:$B$39,0),4),"") ->  | M151: =IF($A151="","",$B151+$B151+5) ->  | N151: =IF($A151="","",$I151+$I151+4) ->  | O151: =IF($A151="","",$M151-1) ->  | P151: =IF($A151="","",$N151) ->  | Q151: =IF($A151="","",$M151-1) ->  | R151: =IF($A151="","",$N151+1) ->  | S151: =IF(AND($B151>=1,$B151<=17),OFFSET(INDEX('1組'!$B$6:$E$39,MATCH($B151,'1組'!$B$6:$B$39,0),2),1,0),"") ->  | T151: =IF($A151="","",$I151+$I151+5) ->  | U151: =IF($A151="","",$B151+$B151+4) ->  | V151: =IF($A151="","",$T151-1) ->  | W151: =IF($A151="","",$U151) ->  | X151: =IF($A151="","",$T151-1) ->  | Y151: =IF($A151="","",$U151+1) ->  | Z151: =IF(AND($I151>=1,$I151<=17),OFFSET(INDEX('1組'!$B$6:$E$39,MATCH($I151,'1組'!$B$6:$B$39,0),2),1,0),"") -> 
C153: =IF(AND($B153>=1,$B153<=17),INDEX('1組'!$B$6:$E$39,MATCH($B153,'1組'!$B$6:$B$39,0),4),"") ->  | H153: =IF(AND($I153>=1,$I153<=17),INDEX('1組'!$B$6:$E$39,MATCH($I153,'1組'!$B$6:$B$39,0),4),"") ->  | M153: =IF($A153="","",$B153+$B153+5) ->  | N153: =IF($A153="","",$I153+$I153+4) ->  | O153: =IF($A153="","",$M153-1) ->  | P153: =IF($A153="","",$N153) ->  | Q153: =IF($A153="","",$M153-1) ->  | R153: =IF($A153="","",$N153+1) ->  | S153: =IF(AND($B153>=1,$B153<=17),OFFSET(INDEX('1組'!$B$6:$E$39,MATCH($B153,'1組'!$B$6:$B$39,0),2),1,0),"") ->  | T153: =IF($A153="","",$I153+$I153+5) ->  | U153: =IF($A153="","",$B153+$B153+4) ->  | V153: =IF($A153="","",$T153-1) ->  | W153: =IF($A153="","",$U153) ->  | X153: =IF($A153="","",$T153-1) ->  | Y153: =IF($A153="","",$U153+1) ->  | Z153: =IF(AND($I153>=1,$I153<=17),OFFSET(INDEX('1組'!$B$6:$E$39,MATCH($I153,'1組'!$B$6:$B$39,0),2),1,0),"") -> 
C155: =IF(AND($B155>=1,$B155<=17),INDEX('1組'!$B$6:$E$39,MATCH($B155,'1組'!$B$6:$B$39,0),4),"") ->  | H155: =IF(AND($I155>=1,$I155<=17),INDEX('1組'!$B$6:$E$39,MATCH($I155,'1組'!$B$6:$B$39,0),4),"") ->  | M155: =IF($A155="","",$B155+$B155+5) ->  | N155: =IF($A155="","",$I155+$I155+4) ->  | O155: =IF($A155="","",$M155-1) ->  | P155: =IF($A155="","",$N155) ->  | Q155: =IF($A155="","",$M155-1) ->  | R155: =IF($A155="","",$N155+1) ->  | S155: =IF(AND($B155>=1,$B155<=17),OFFSET(INDEX('1組'!$B$6:$E$39,MATCH($B155,'1組'!$B$6:$B$39,0),2),1,0),"") ->  | T155: =IF($A155="","",$I155+$I155+5) ->  | U155: =IF($A155="","",$B155+$B155+4) ->  | V155: =IF($A155="","",$T155-1) ->  | W155: =IF($A155="","",$U155) ->  | X155: =IF($A155="","",$T155-1) ->  | Y155: =IF($A155="","",$U155+1) ->  | Z155: =IF(AND($I155>=1,$I155<=17),OFFSET(INDEX('1組'!$B$6:$E$39,MATCH($I155,'1組'!$B$6:$B$39,0),2),1,0),"") -> 
C157: =IF(AND($B157>=1,$B157<=17),INDEX('1組'!$B$6:$E$39,MATCH($B157,'1組'!$B$6:$B$39,0),4),"") ->  | H157: =IF(AND($I157>=1,$I157<=17),INDEX('1組'!$B$6:$E$39,MATCH($I157,'1組'!$B$6:$B$39,0),4),"") ->  | M157: =IF($A157="","",$B157+$B157+5) ->  | N157: =IF($A157="","",$I157+$I157+4) ->  | O157: =IF($A157="","",$M157-1) ->  | P157: =IF($A157="","",$N157) ->  | Q157: =IF($A157="","",$M157-1) ->  | R157: =IF($A157="","",$N157+1) ->  | S157: =IF(AND($B157>=1,$B157<=17),OFFSET(INDEX('1組'!$B$6:$E$39,MATCH($B157,'1組'!$B$6:$B$39,0),2),1,0),"") ->  | T157: =IF($A157="","",$I157+$I157+5) ->  | U157: =IF($A157="","",$B157+$B157+4) ->  | V157: =IF($A157="","",$T157-1) ->  | W157: =IF($A157="","",$U157) ->  | X157: =IF($A157="","",$T157-1) ->  | Y157: =IF($A157="","",$U157+1) ->  | Z157: =IF(AND($I157>=1,$I157<=17),OFFSET(INDEX('1組'!$B$6:$E$39,MATCH($I157,'1組'!$B$6:$B$39,0),2),1,0),"") -> 
C159: =IF(AND($B159>=1,$B159<=17),INDEX('1組'!$B$6:$E$39,MATCH($B159,'1組'!$B$6:$B$39,0),4),"") ->  | H159: =IF(AND($I159>=1,$I159<=17),INDEX('1組'!$B$6:$E$39,MATCH($I159,'1組'!$B$6:$B$39,0),4),"") ->  | M159: =IF($A159="","",$B159+$B159+5) ->  | N159: =IF($A159="","",$I159+$I159+4) ->  | O159: =IF($A159="","",$M159-1) ->  | P159: =IF($A159="","",$N159) ->  | Q159: =IF($A159="","",$M159-1) ->  | R159: =IF($A159="","",$N159+1) ->  | S159: =IF(AND($B159>=1,$B159<=17),OFFSET(INDEX('1組'!$B$6:$E$39,MATCH($B159,'1組'!$B$6:$B$39,0),2),1,0),"") ->  | T159: =IF($A159="","",$I159+$I159+5) ->  | U159: =IF($A159="","",$B159+$B159+4) ->  | V159: =IF($A159="","",$T159-1) ->  | W159: =IF($A159="","",$U159) ->  | X159: =IF($A159="","",$T159-1) ->  | Y159: =IF($A159="","",$U159+1) ->  | Z159: =IF(AND($I159>=1,$I159<=17),OFFSET(INDEX('1組'!$B$6:$E$39,MATCH($I159,'1組'!$B$6:$B$39,0),2),1,0),"") -> 
C161: =IF(AND($B161>=1,$B161<=17),INDEX('1組'!$B$6:$E$39,MATCH($B161,'1組'!$B$6:$B$39,0),4),"") ->  | H161: =IF(AND($I161>=1,$I161<=17),INDEX('1組'!$B$6:$E$39,MATCH($I161,'1組'!$B$6:$B$39,0),4),"") ->  | M161: =IF($A161="","",$B161+$B161+5) ->  | N161: =IF($A161="","",$I161+$I161+4) ->  | O161: =IF($A161="","",$M161-1) ->  | P161: =IF($A161="","",$N161) ->  | Q161: =IF($A161="","",$M161-1) ->  | R161: =IF($A161="","",$N161+1) ->  | S161: =IF(AND($B161>=1,$B161<=17),OFFSET(INDEX('1組'!$B$6:$E$39,MATCH($B161,'1組'!$B$6:$B$39,0),2),1,0),"") ->  | T161: =IF($A161="","",$I161+$I161+5) ->  | U161: =IF($A161="","",$B161+$B161+4) ->  | V161: =IF($A161="","",$T161-1) ->  | W161: =IF($A161="","",$U161) ->  | X161: =IF($A161="","",$T161-1) ->  | Y161: =IF($A161="","",$U161+1) ->  | Z161: =IF(AND($I161>=1,$I161<=17),OFFSET(INDEX('1組'!$B$6:$E$39,MATCH($I161,'1組'!$B$6:$B$39,0),2),1,0),"") -> 
C163: =IF(AND($B163>=1,$B163<=17),INDEX('1組'!$B$6:$E$39,MATCH($B163,'1組'!$B$6:$B$39,0),4),"") ->  | H163: =IF(AND($I163>=1,$I163<=17),INDEX('1組'!$B$6:$E$39,MATCH($I163,'1組'!$B$6:$B$39,0),4),"") ->  | M163: =IF($A163="","",$B163+$B163+5) ->  | N163: =IF($A163="","",$I163+$I163+4) ->  | O163: =IF($A163="","",$M163-1) ->  | P163: =IF($A163="","",$N163) ->  | Q163: =IF($A163="","",$M163-1) ->  | R163: =IF($A163="","",$N163+1) ->  | S163: =IF(AND($B163>=1,$B163<=17),OFFSET(INDEX('1組'!$B$6:$E$39,MATCH($B163,'1組'!$B$6:$B$39,0),2),1,0),"") ->  | T163: =IF($A163="","",$I163+$I163+5) ->  | U163: =IF($A163="","",$B163+$B163+4) ->  | V163: =IF($A163="","",$T163-1) ->  | W163: =IF($A163="","",$U163) ->  | X163: =IF($A163="","",$T163-1) ->  | Y163: =IF($A163="","",$U163+1) ->  | Z163: =IF(AND($I163>=1,$I163<=17),OFFSET(INDEX('1組'!$B$6:$E$39,MATCH($I163,'1組'!$B$6:$B$39,0),2),1,0),"") -> 
C165: =IF(AND($B165>=1,$B165<=17),INDEX('1組'!$B$6:$E$39,MATCH($B165,'1組'!$B$6:$B$39,0),4),"") ->  | H165: =IF(AND($I165>=1,$I165<=17),INDEX('1組'!$B$6:$E$39,MATCH($I165,'1組'!$B$6:$B$39,0),4),"") ->  | M165: =IF($A165="","",$B165+$B165+5) ->  | N165: =IF($A165="","",$I165+$I165+4) ->  | O165: =IF($A165="","",$M165-1) ->  | P165: =IF($A165="","",$N165) ->  | Q165: =IF($A165="","",$M165-1) ->  | R165: =IF($A165="","",$N165+1) ->  | S165: =IF(AND($B165>=1,$B165<=17),OFFSET(INDEX('1組'!$B$6:$E$39,MATCH($B165,'1組'!$B$6:$B$39,0),2),1,0),"") ->  | T165: =IF($A165="","",$I165+$I165+5) ->  | U165: =IF($A165="","",$B165+$B165+4) ->  | V165: =IF($A165="","",$T165-1) ->  | W165: =IF($A165="","",$U165) ->  | X165: =IF($A165="","",$T165-1) ->  | Y165: =IF($A165="","",$U165+1) ->  | Z165: =IF(AND($I165>=1,$I165<=17),OFFSET(INDEX('1組'!$B$6:$E$39,MATCH($I165,'1組'!$B$6:$B$39,0),2),1,0),"") -> 
C167: =IF(AND($B167>=1,$B167<=17),INDEX('1組'!$B$6:$E$39,MATCH($B167,'1組'!$B$6:$B$39,0),4),"") ->  | H167: =IF(AND($I167>=1,$I167<=17),INDEX('1組'!$B$6:$E$39,MATCH($I167,'1組'!$B$6:$B$39,0),4),"") ->  | M167: =IF($A167="","",$B167+$B167+5) ->  | N167: =IF($A167="","",$I167+$I167+4) ->  | O167: =IF($A167="","",$M167-1) ->  | P167: =IF($A167="","",$N167) ->  | Q167: =IF($A167="","",$M167-1) ->  | R167: =IF($A167="","",$N167+1) ->  | S167: =IF(AND($B167>=1,$B167<=17),OFFSET(INDEX('1組'!$B$6:$E$39,MATCH($B167,'1組'!$B$6:$B$39,0),2),1,0),"") ->  | T167: =IF($A167="","",$I167+$I167+5) ->  | U167: =IF($A167="","",$B167+$B167+4) ->  | V167: =IF($A167="","",$T167-1) ->  | W167: =IF($A167="","",$U167) ->  | X167: =IF($A167="","",$T167-1) ->  | Y167: =IF($A167="","",$U167+1) ->  | Z167: =IF(AND($I167>=1,$I167<=17),OFFSET(INDEX('1組'!$B$6:$E$39,MATCH($I167,'1組'!$B$6:$B$39,0),2),1,0),"") -> 
C169: =IF(AND($B169>=1,$B169<=17),INDEX('1組'!$B$6:$E$39,MATCH($B169,'1組'!$B$6:$B$39,0),4),"") ->  | H169: =IF(AND($I169>=1,$I169<=17),INDEX('1組'!$B$6:$E$39,MATCH($I169,'1組'!$B$6:$B$39,0),4),"") ->  | M169: =IF($A169="","",$B169+$B169+5) ->  | N169: =IF($A169="","",$I169+$I169+4) ->  | O169: =IF($A169="","",$M169-1) ->  | P169: =IF($A169="","",$N169) ->  | Q169: =IF($A169="","",$M169-1) ->  | R169: =IF($A169="","",$N169+1) ->  | S169: =IF(AND($B169>=1,$B169<=17),OFFSET(INDEX('1組'!$B$6:$E$39,MATCH($B169,'1組'!$B$6:$B$39,0),2),1,0),"") ->  | T169: =IF($A169="","",$I169+$I169+5) ->  | U169: =IF($A169="","",$B169+$B169+4) ->  | V169: =IF($A169="","",$T169-1) ->  | W169: =IF($A169="","",$U169) ->  | X169: =IF($A169="","",$T169-1) ->  | Y169: =IF($A169="","",$U169+1) ->  | Z169: =IF(AND($I169>=1,$I169<=17),OFFSET(INDEX('1組'!$B$6:$E$39,MATCH($I169,'1組'!$B$6:$B$39,0),2),1,0),"") -> 
C171: =IF(AND($B171>=1,$B171<=17),INDEX('1組'!$B$6:$E$39,MATCH($B171,'1組'!$B$6:$B$39,0),4),"") ->  | H171: =IF(AND($I171>=1,$I171<=17),INDEX('1組'!$B$6:$E$39,MATCH($I171,'1組'!$B$6:$B$39,0),4),"") ->  | M171: =IF($A171="","",$B171+$B171+5) ->  | N171: =IF($A171="","",$I171+$I171+4) ->  | O171: =IF($A171="","",$M171-1) ->  | P171: =IF($A171="","",$N171) ->  | Q171: =IF($A171="","",$M171-1) ->  | R171: =IF($A171="","",$N171+1) ->  | S171: =IF(AND($B171>=1,$B171<=17),OFFSET(INDEX('1組'!$B$6:$E$39,MATCH($B171,'1組'!$B$6:$B$39,0),2),1,0),"") ->  | T171: =IF($A171="","",$I171+$I171+5) ->  | U171: =IF($A171="","",$B171+$B171+4) ->  | V171: =IF($A171="","",$T171-1) ->  | W171: =IF($A171="","",$U171) ->  | X171: =IF($A171="","",$T171-1) ->  | Y171: =IF($A171="","",$U171+1) ->  | Z171: =IF(AND($I171>=1,$I171<=17),OFFSET(INDEX('1組'!$B$6:$E$39,MATCH($I171,'1組'!$B$6:$B$39,0),2),1,0),"") -> 
C173: =IF(AND($B173>=1,$B173<=17),INDEX('1組'!$B$6:$E$39,MATCH($B173,'1組'!$B$6:$B$39,0),4),"") ->  | H173: =IF(AND($I173>=1,$I173<=17),INDEX('1組'!$B$6:$E$39,MATCH($I173,'1組'!$B$6:$B$39,0),4),"") ->  | M173: =IF($A173="","",$B173+$B173+5) ->  | N173: =IF($A173="","",$I173+$I173+4) ->  | O173: =IF($A173="","",$M173-1) ->  | P173: =IF($A173="","",$N173) ->  | Q173: =IF($A173="","",$M173-1) ->  | R173: =IF($A173="","",$N173+1) ->  | S173: =IF(AND($B173>=1,$B173<=17),OFFSET(INDEX('1組'!$B$6:$E$39,MATCH($B173,'1組'!$B$6:$B$39,0),2),1,0),"") ->  | T173: =IF($A173="","",$I173+$I173+5) ->  | U173: =IF($A173="","",$B173+$B173+4) ->  | V173: =IF($A173="","",$T173-1) ->  | W173: =IF($A173="","",$U173) ->  | X173: =IF($A173="","",$T173-1) ->  | Y173: =IF($A173="","",$U173+1) ->  | Z173: =IF(AND($I173>=1,$I173<=17),OFFSET(INDEX('1組'!$B$6:$E$39,MATCH($I173,'1組'!$B$6:$B$39,0),2),1,0),"") -> 
C175: =IF(AND($B175>=1,$B175<=17),INDEX('1組'!$B$6:$E$39,MATCH($B175,'1組'!$B$6:$B$39,0),4),"") ->  | H175: =IF(AND($I175>=1,$I175<=17),INDEX('1組'!$B$6:$E$39,MATCH($I175,'1組'!$B$6:$B$39,0),4),"") ->  | M175: =IF($A175="","",$B175+$B175+5) ->  | N175: =IF($A175="","",$I175+$I175+4) ->  | O175: =IF($A175="","",$M175-1) ->  | P175: =IF($A175="","",$N175) ->  | Q175: =IF($A175="","",$M175-1) ->  | R175: =IF($A175="","",$N175+1) ->  | S175: =IF(AND($B175>=1,$B175<=17),OFFSET(INDEX('1組'!$B$6:$E$39,MATCH($B175,'1組'!$B$6:$B$39,0),2),1,0),"") ->  | T175: =IF($A175="","",$I175+$I175+5) ->  | U175: =IF($A175="","",$B175+$B175+4) ->  | V175: =IF($A175="","",$T175-1) ->  | W175: =IF($A175="","",$U175) ->  | X175: =IF($A175="","",$T175-1) ->  | Y175: =IF($A175="","",$U175+1) ->  | Z175: =IF(AND($I175>=1,$I175<=17),OFFSET(INDEX('1組'!$B$6:$E$39,MATCH($I175,'1組'!$B$6:$B$39,0),2),1,0),"") -> 
C177: =IF(AND($B177>=1,$B177<=17),INDEX('1組'!$B$6:$E$39,MATCH($B177,'1組'!$B$6:$B$39,0),4),"") ->  | H177: =IF(AND($I177>=1,$I177<=17),INDEX('1組'!$B$6:$E$39,MATCH($I177,'1組'!$B$6:$B$39,0),4),"") ->  | M177: =IF($A177="","",$B177+$B177+5) ->  | N177: =IF($A177="","",$I177+$I177+4) ->  | O177: =IF($A177="","",$M177-1) ->  | P177: =IF($A177="","",$N177) ->  | Q177: =IF($A177="","",$M177-1) ->  | R177: =IF($A177="","",$N177+1) ->  | S177: =IF(AND($B177>=1,$B177<=17),OFFSET(INDEX('1組'!$B$6:$E$39,MATCH($B177,'1組'!$B$6:$B$39,0),2),1,0),"") ->  | T177: =IF($A177="","",$I177+$I177+5) ->  | U177: =IF($A177="","",$B177+$B177+4) ->  | V177: =IF($A177="","",$T177-1) ->  | W177: =IF($A177="","",$U177) ->  | X177: =IF($A177="","",$T177-1) ->  | Y177: =IF($A177="","",$U177+1) ->  | Z177: =IF(AND($I177>=1,$I177<=17),OFFSET(INDEX('1組'!$B$6:$E$39,MATCH($I177,'1組'!$B$6:$B$39,0),2),1,0),"") -> 
C179: =IF(AND($B179>=1,$B179<=17),INDEX('1組'!$B$6:$E$39,MATCH($B179,'1組'!$B$6:$B$39,0),4),"") ->  | H179: =IF(AND($I179>=1,$I179<=17),INDEX('1組'!$B$6:$E$39,MATCH($I179,'1組'!$B$6:$B$39,0),4),"") ->  | M179: =IF($A179="","",$B179+$B179+5) ->  | N179: =IF($A179="","",$I179+$I179+4) ->  | O179: =IF($A179="","",$M179-1) ->  | P179: =IF($A179="","",$N179) ->  | Q179: =IF($A179="","",$M179-1) ->  | R179: =IF($A179="","",$N179+1) ->  | S179: =IF(AND($B179>=1,$B179<=17),OFFSET(INDEX('1組'!$B$6:$E$39,MATCH($B179,'1組'!$B$6:$B$39,0),2),1,0),"") ->  | T179: =IF($A179="","",$I179+$I179+5) ->  | U179: =IF($A179="","",$B179+$B179+4) ->  | V179: =IF($A179="","",$T179-1) ->  | W179: =IF($A179="","",$U179) ->  | X179: =IF($A179="","",$T179-1) ->  | Y179: =IF($A179="","",$U179+1) ->  | Z179: =IF(AND($I179>=1,$I179<=17),OFFSET(INDEX('1組'!$B$6:$E$39,MATCH($I179,'1組'!$B$6:$B$39,0),2),1,0),"") -> 
C181: =IF(AND($B181>=1,$B181<=17),INDEX('1組'!$B$6:$E$39,MATCH($B181,'1組'!$B$6:$B$39,0),4),"") ->  | H181: =IF(AND($I181>=1,$I181<=17),INDEX('1組'!$B$6:$E$39,MATCH($I181,'1組'!$B$6:$B$39,0),4),"") ->  | M181: =IF($A181="","",$B181+$B181+5) ->  | N181: =IF($A181="","",$I181+$I181+4) ->  | O181: =IF($A181="","",$M181-1) ->  | P181: =IF($A181="","",$N181) ->  | Q181: =IF($A181="","",$M181-1) ->  | R181: =IF($A181="","",$N181+1) ->  | S181: =IF(AND($B181>=1,$B181<=17),OFFSET(INDEX('1組'!$B$6:$E$39,MATCH($B181,'1組'!$B$6:$B$39,0),2),1,0),"") ->  | T181: =IF($A181="","",$I181+$I181+5) ->  | U181: =IF($A181="","",$B181+$B181+4) ->  | V181: =IF($A181="","",$T181-1) ->  | W181: =IF($A181="","",$U181) ->  | X181: =IF($A181="","",$T181-1) ->  | Y181: =IF($A181="","",$U181+1) ->  | Z181: =IF(AND($I181>=1,$I181<=17),OFFSET(INDEX('1組'!$B$6:$E$39,MATCH($I181,'1組'!$B$6:$B$39,0),2),1,0),"") -> 
C183: =IF(AND($B183>=1,$B183<=17),INDEX('1組'!$B$6:$E$39,MATCH($B183,'1組'!$B$6:$B$39,0),4),"") ->  | H183: =IF(AND($I183>=1,$I183<=17),INDEX('1組'!$B$6:$E$39,MATCH($I183,'1組'!$B$6:$B$39,0),4),"") ->  | M183: =IF($A183="","",$B183+$B183+5) ->  | N183: =IF($A183="","",$I183+$I183+4) ->  | O183: =IF($A183="","",$M183-1) ->  | P183: =IF($A183="","",$N183) ->  | Q183: =IF($A183="","",$M183-1) ->  | R183: =IF($A183="","",$N183+1) ->  | S183: =IF(AND($B183>=1,$B183<=17),OFFSET(INDEX('1組'!$B$6:$E$39,MATCH($B183,'1組'!$B$6:$B$39,0),2),1,0),"") ->  | T183: =IF($A183="","",$I183+$I183+5) ->  | U183: =IF($A183="","",$B183+$B183+4) ->  | V183: =IF($A183="","",$T183-1) ->  | W183: =IF($A183="","",$U183) ->  | X183: =IF($A183="","",$T183-1) ->  | Y183: =IF($A183="","",$U183+1) ->  | Z183: =IF(AND($I183>=1,$I183<=17),OFFSET(INDEX('1組'!$B$6:$E$39,MATCH($I183,'1組'!$B$6:$B$39,0),2),1,0),"") -> 
C185: =IF(AND($B185>=1,$B185<=17),INDEX('1組'!$B$6:$E$39,MATCH($B185,'1組'!$B$6:$B$39,0),4),"") ->  | H185: =IF(AND($I185>=1,$I185<=17),INDEX('1組'!$B$6:$E$39,MATCH($I185,'1組'!$B$6:$B$39,0),4),"") ->  | M185: =IF($A185="","",$B185+$B185+5) ->  | N185: =IF($A185="","",$I185+$I185+4) ->  | O185: =IF($A185="","",$M185-1) ->  | P185: =IF($A185="","",$N185) ->  | Q185: =IF($A185="","",$M185-1) ->  | R185: =IF($A185="","",$N185+1) ->  | S185: =IF(AND($B185>=1,$B185<=17),OFFSET(INDEX('1組'!$B$6:$E$39,MATCH($B185,'1組'!$B$6:$B$39,0),2),1,0),"") ->  | T185: =IF($A185="","",$I185+$I185+5) ->  | U185: =IF($A185="","",$B185+$B185+4) ->  | V185: =IF($A185="","",$T185-1) ->  | W185: =IF($A185="","",$U185) ->  | X185: =IF($A185="","",$T185-1) ->  | Y185: =IF($A185="","",$U185+1) ->  | Z185: =IF(AND($I185>=1,$I185<=17),OFFSET(INDEX('1組'!$B$6:$E$39,MATCH($I185,'1組'!$B$6:$B$39,0),2),1,0),"") -> 
C187: =IF(AND($B187>=1,$B187<=17),INDEX('1組'!$B$6:$E$39,MATCH($B187,'1組'!$B$6:$B$39,0),4),"") ->  | H187: =IF(AND($I187>=1,$I187<=17),INDEX('1組'!$B$6:$E$39,MATCH($I187,'1組'!$B$6:$B$39,0),4),"") ->  | M187: =IF($A187="","",$B187+$B187+5) ->  | N187: =IF($A187="","",$I187+$I187+4) ->  | O187: =IF($A187="","",$M187-1) ->  | P187: =IF($A187="","",$N187) ->  | Q187: =IF($A187="","",$M187-1) ->  | R187: =IF($A187="","",$N187+1) ->  | S187: =IF(AND($B187>=1,$B187<=17),OFFSET(INDEX('1組'!$B$6:$E$39,MATCH($B187,'1組'!$B$6:$B$39,0),2),1,0),"") ->  | T187: =IF($A187="","",$I187+$I187+5) ->  | U187: =IF($A187="","",$B187+$B187+4) ->  | V187: =IF($A187="","",$T187-1) ->  | W187: =IF($A187="","",$U187) ->  | X187: =IF($A187="","",$T187-1) ->  | Y187: =IF($A187="","",$U187+1) ->  | Z187: =IF(AND($I187>=1,$I187<=17),OFFSET(INDEX('1組'!$B$6:$E$39,MATCH($I187,'1組'!$B$6:$B$39,0),2),1,0),"") -> 
C189: =IF(AND($B189>=1,$B189<=17),INDEX('1組'!$B$6:$E$39,MATCH($B189,'1組'!$B$6:$B$39,0),4),"") ->  | H189: =IF(AND($I189>=1,$I189<=17),INDEX('1組'!$B$6:$E$39,MATCH($I189,'1組'!$B$6:$B$39,0),4),"") ->  | M189: =IF($A189="","",$B189+$B189+5) ->  | N189: =IF($A189="","",$I189+$I189+4) ->  | O189: =IF($A189="","",$M189-1) ->  | P189: =IF($A189="","",$N189) ->  | Q189: =IF($A189="","",$M189-1) ->  | R189: =IF($A189="","",$N189+1) ->  | S189: =IF(AND($B189>=1,$B189<=17),OFFSET(INDEX('1組'!$B$6:$E$39,MATCH($B189,'1組'!$B$6:$B$39,0),2),1,0),"") ->  | T189: =IF($A189="","",$I189+$I189+5) ->  | U189: =IF($A189="","",$B189+$B189+4) ->  | V189: =IF($A189="","",$T189-1) ->  | W189: =IF($A189="","",$U189) ->  | X189: =IF($A189="","",$T189-1) ->  | Y189: =IF($A189="","",$U189+1) ->  | Z189: =IF(AND($I189>=1,$I189<=17),OFFSET(INDEX('1組'!$B$6:$E$39,MATCH($I189,'1組'!$B$6:$B$39,0),2),1,0),"") -> 
C191: =IF(AND($B191>=1,$B191<=17),INDEX('1組'!$B$6:$E$39,MATCH($B191,'1組'!$B$6:$B$39,0),4),"") ->  | H191: =IF(AND($I191>=1,$I191<=17),INDEX('1組'!$B$6:$E$39,MATCH($I191,'1組'!$B$6:$B$39,0),4),"") ->  | M191: =IF($A191="","",$B191+$B191+5) ->  | N191: =IF($A191="","",$I191+$I191+4) ->  | O191: =IF($A191="","",$M191-1) ->  | P191: =IF($A191="","",$N191) ->  | Q191: =IF($A191="","",$M191-1) ->  | R191: =IF($A191="","",$N191+1) ->  | S191: =IF(AND($B191>=1,$B191<=17),OFFSET(INDEX('1組'!$B$6:$E$39,MATCH($B191,'1組'!$B$6:$B$39,0),2),1,0),"") ->  | T191: =IF($A191="","",$I191+$I191+5) ->  | U191: =IF($A191="","",$B191+$B191+4) ->  | V191: =IF($A191="","",$T191-1) ->  | W191: =IF($A191="","",$U191) ->  | X191: =IF($A191="","",$T191-1) ->  | Y191: =IF($A191="","",$U191+1) ->  | Z191: =IF(AND($I191>=1,$I191<=17),OFFSET(INDEX('1組'!$B$6:$E$39,MATCH($I191,'1組'!$B$6:$B$39,0),2),1,0),"") -> 
C193: =IF(AND($B193>=1,$B193<=17),INDEX('1組'!$B$6:$E$39,MATCH($B193,'1組'!$B$6:$B$39,0),4),"") ->  | H193: =IF(AND($I193>=1,$I193<=17),INDEX('1組'!$B$6:$E$39,MATCH($I193,'1組'!$B$6:$B$39,0),4),"") ->  | M193: =IF($A193="","",$B193+$B193+5) ->  | N193: =IF($A193="","",$I193+$I193+4) ->  | O193: =IF($A193="","",$M193-1) ->  | P193: =IF($A193="","",$N193) ->  | Q193: =IF($A193="","",$M193-1) ->  | R193: =IF($A193="","",$N193+1) ->  | S193: =IF(AND($B193>=1,$B193<=17),OFFSET(INDEX('1組'!$B$6:$E$39,MATCH($B193,'1組'!$B$6:$B$39,0),2),1,0),"") ->  | T193: =IF($A193="","",$I193+$I193+5) ->  | U193: =IF($A193="","",$B193+$B193+4) ->  | V193: =IF($A193="","",$T193-1) ->  | W193: =IF($A193="","",$U193) ->  | X193: =IF($A193="","",$T193-1) ->  | Y193: =IF($A193="","",$U193+1) ->  | Z193: =IF(AND($I193>=1,$I193<=17),OFFSET(INDEX('1組'!$B$6:$E$39,MATCH($I193,'1組'!$B$6:$B$39,0),2),1,0),"") -> 
C195: =IF(AND($B195>=1,$B195<=17),INDEX('1組'!$B$6:$E$39,MATCH($B195,'1組'!$B$6:$B$39,0),4),"") ->  | H195: =IF(AND($I195>=1,$I195<=17),INDEX('1組'!$B$6:$E$39,MATCH($I195,'1組'!$B$6:$B$39,0),4),"") ->  | M195: =IF($A195="","",$B195+$B195+5) ->  | N195: =IF($A195="","",$I195+$I195+4) ->  | O195: =IF($A195="","",$M195-1) ->  | P195: =IF($A195="","",$N195) ->  | Q195: =IF($A195="","",$M195-1) ->  | R195: =IF($A195="","",$N195+1) ->  | S195: =IF(AND($B195>=1,$B195<=17),OFFSET(INDEX('1組'!$B$6:$E$39,MATCH($B195,'1組'!$B$6:$B$39,0),2),1,0),"") ->  | T195: =IF($A195="","",$I195+$I195+5) ->  | U195: =IF($A195="","",$B195+$B195+4) ->  | V195: =IF($A195="","",$T195-1) ->  | W195: =IF($A195="","",$U195) ->  | X195: =IF($A195="","",$T195-1) ->  | Y195: =IF($A195="","",$U195+1) ->  | Z195: =IF(AND($I195>=1,$I195<=17),OFFSET(INDEX('1組'!$B$6:$E$39,MATCH($I195,'1組'!$B$6:$B$39,0),2),1,0),"") -> 
C197: =IF(AND($B197>=1,$B197<=17),INDEX('1組'!$B$6:$E$39,MATCH($B197,'1組'!$B$6:$B$39,0),4),"") ->  | H197: =IF(AND($I197>=1,$I197<=17),INDEX('1組'!$B$6:$E$39,MATCH($I197,'1組'!$B$6:$B$39,0),4),"") ->  | M197: =IF($A197="","",$B197+$B197+5) ->  | N197: =IF($A197="","",$I197+$I197+4) ->  | O197: =IF($A197="","",$M197-1) ->  | P197: =IF($A197="","",$N197) ->  | Q197: =IF($A197="","",$M197-1) ->  | R197: =IF($A197="","",$N197+1) ->  | S197: =IF(AND($B197>=1,$B197<=17),OFFSET(INDEX('1組'!$B$6:$E$39,MATCH($B197,'1組'!$B$6:$B$39,0),2),1,0),"") ->  | T197: =IF($A197="","",$I197+$I197+5) ->  | U197: =IF($A197="","",$B197+$B197+4) ->  | V197: =IF($A197="","",$T197-1) ->  | W197: =IF($A197="","",$U197) ->  | X197: =IF($A197="","",$T197-1) ->  | Y197: =IF($A197="","",$U197+1) ->  | Z197: =IF(AND($I197>=1,$I197<=17),OFFSET(INDEX('1組'!$B$6:$E$39,MATCH($I197,'1組'!$B$6:$B$39,0),2),1,0),"") -> 
C199: =IF(AND($B199>=1,$B199<=17),INDEX('1組'!$B$6:$E$39,MATCH($B199,'1組'!$B$6:$B$39,0),4),"") ->  | H199: =IF(AND($I199>=1,$I199<=17),INDEX('1組'!$B$6:$E$39,MATCH($I199,'1組'!$B$6:$B$39,0),4),"") ->  | M199: =IF($A199="","",$B199+$B199+5) ->  | N199: =IF($A199="","",$I199+$I199+4) ->  | O199: =IF($A199="","",$M199-1) ->  | P199: =IF($A199="","",$N199) ->  | Q199: =IF($A199="","",$M199-1) ->  | R199: =IF($A199="","",$N199+1) ->  | S199: =IF(AND($B199>=1,$B199<=17),OFFSET(INDEX('1組'!$B$6:$E$39,MATCH($B199,'1組'!$B$6:$B$39,0),2),1,0),"") ->  | T199: =IF($A199="","",$I199+$I199+5) ->  | U199: =IF($A199="","",$B199+$B199+4) ->  | V199: =IF($A199="","",$T199-1) ->  | W199: =IF($A199="","",$U199) ->  | X199: =IF($A199="","",$T199-1) ->  | Y199: =IF($A199="","",$U199+1) ->  | Z199: =IF(AND($I199>=1,$I199<=17),OFFSET(INDEX('1組'!$B$6:$E$39,MATCH($I199,'1組'!$B$6:$B$39,0),2),1,0),"") -> 
C201: =IF(AND($B201>=1,$B201<=17),INDEX('1組'!$B$6:$E$39,MATCH($B201,'1組'!$B$6:$B$39,0),4),"") ->  | H201: =IF(AND($I201>=1,$I201<=17),INDEX('1組'!$B$6:$E$39,MATCH($I201,'1組'!$B$6:$B$39,0),4),"") ->  | M201: =IF($A201="","",$B201+$B201+5) ->  | N201: =IF($A201="","",$I201+$I201+4) ->  | O201: =IF($A201="","",$M201-1) ->  | P201: =IF($A201="","",$N201) ->  | Q201: =IF($A201="","",$M201-1) ->  | R201: =IF($A201="","",$N201+1) ->  | S201: =IF(AND($B201>=1,$B201<=17),OFFSET(INDEX('1組'!$B$6:$E$39,MATCH($B201,'1組'!$B$6:$B$39,0),2),1,0),"") ->  | T201: =IF($A201="","",$I201+$I201+5) ->  | U201: =IF($A201="","",$B201+$B201+4) ->  | V201: =IF($A201="","",$T201-1) ->  | W201: =IF($A201="","",$U201) ->  | X201: =IF($A201="","",$T201-1) ->  | Y201: =IF($A201="","",$U201+1) ->  | Z201: =IF(AND($I201>=1,$I201<=17),OFFSET(INDEX('1組'!$B$6:$E$39,MATCH($I201,'1組'!$B$6:$B$39,0),2),1,0),"") -> 
C203: =IF(AND($B203>=1,$B203<=17),INDEX('1組'!$B$6:$E$39,MATCH($B203,'1組'!$B$6:$B$39,0),4),"") ->  | H203: =IF(AND($I203>=1,$I203<=17),INDEX('1組'!$B$6:$E$39,MATCH($I203,'1組'!$B$6:$B$39,0),4),"") ->  | M203: =IF($A203="","",$B203+$B203+5) ->  | N203: =IF($A203="","",$I203+$I203+4) ->  | O203: =IF($A203="","",$M203-1) ->  | P203: =IF($A203="","",$N203) ->  | Q203: =IF($A203="","",$M203-1) ->  | R203: =IF($A203="","",$N203+1) ->  | S203: =IF(AND($B203>=1,$B203<=17),OFFSET(INDEX('1組'!$B$6:$E$39,MATCH($B203,'1組'!$B$6:$B$39,0),2),1,0),"") ->  | T203: =IF($A203="","",$I203+$I203+5) ->  | U203: =IF($A203="","",$B203+$B203+4) ->  | V203: =IF($A203="","",$T203-1) ->  | W203: =IF($A203="","",$U203) ->  | X203: =IF($A203="","",$T203-1) ->  | Y203: =IF($A203="","",$U203+1) ->  | Z203: =IF(AND($I203>=1,$I203<=17),OFFSET(INDEX('1組'!$B$6:$E$39,MATCH($I203,'1組'!$B$6:$B$39,0),2),1,0),"") -> 
C205: =IF(AND($B205>=1,$B205<=17),INDEX('1組'!$B$6:$E$39,MATCH($B205,'1組'!$B$6:$B$39,0),4),"") ->  | H205: =IF(AND($I205>=1,$I205<=17),INDEX('1組'!$B$6:$E$39,MATCH($I205,'1組'!$B$6:$B$39,0),4),"") ->  | M205: =IF($A205="","",$B205+$B205+5) ->  | N205: =IF($A205="","",$I205+$I205+4) ->  | O205: =IF($A205="","",$M205-1) ->  | P205: =IF($A205="","",$N205) ->  | Q205: =IF($A205="","",$M205-1) ->  | R205: =IF($A205="","",$N205+1) ->  | S205: =IF(AND($B205>=1,$B205<=17),OFFSET(INDEX('1組'!$B$6:$E$39,MATCH($B205,'1組'!$B$6:$B$39,0),2),1,0),"") ->  | T205: =IF($A205="","",$I205+$I205+5) ->  | U205: =IF($A205="","",$B205+$B205+4) ->  | V205: =IF($A205="","",$T205-1) ->  | W205: =IF($A205="","",$U205) ->  | X205: =IF($A205="","",$T205-1) ->  | Y205: =IF($A205="","",$U205+1) ->  | Z205: =IF(AND($I205>=1,$I205<=17),OFFSET(INDEX('1組'!$B$6:$E$39,MATCH($I205,'1組'!$B$6:$B$39,0),2),1,0),"") -> 
C207: =IF(AND($B207>=1,$B207<=17),INDEX('1組'!$B$6:$E$39,MATCH($B207,'1組'!$B$6:$B$39,0),4),"") ->  | H207: =IF(AND($I207>=1,$I207<=17),INDEX('1組'!$B$6:$E$39,MATCH($I207,'1組'!$B$6:$B$39,0),4),"") ->  | M207: =IF($A207="","",$B207+$B207+5) ->  | N207: =IF($A207="","",$I207+$I207+4) ->  | O207: =IF($A207="","",$M207-1) ->  | P207: =IF($A207="","",$N207) ->  | Q207: =IF($A207="","",$M207-1) ->  | R207: =IF($A207="","",$N207+1) ->  | S207: =IF(AND($B207>=1,$B207<=17),OFFSET(INDEX('1組'!$B$6:$E$39,MATCH($B207,'1組'!$B$6:$B$39,0),2),1,0),"") ->  | T207: =IF($A207="","",$I207+$I207+5) ->  | U207: =IF($A207="","",$B207+$B207+4) ->  | V207: =IF($A207="","",$T207-1) ->  | W207: =IF($A207="","",$U207) ->  | X207: =IF($A207="","",$T207-1) ->  | Y207: =IF($A207="","",$U207+1) ->  | Z207: =IF(AND($I207>=1,$I207<=17),OFFSET(INDEX('1組'!$B$6:$E$39,MATCH($I207,'1組'!$B$6:$B$39,0),2),1,0),"") -> 
C209: =IF(AND($B209>=1,$B209<=17),INDEX('1組'!$B$6:$E$39,MATCH($B209,'1組'!$B$6:$B$39,0),4),"") ->  | H209: =IF(AND($I209>=1,$I209<=17),INDEX('1組'!$B$6:$E$39,MATCH($I209,'1組'!$B$6:$B$39,0),4),"") ->  | M209: =IF($A209="","",$B209+$B209+5) ->  | N209: =IF($A209="","",$I209+$I209+4) ->  | O209: =IF($A209="","",$M209-1) ->  | P209: =IF($A209="","",$N209) ->  | Q209: =IF($A209="","",$M209-1) ->  | R209: =IF($A209="","",$N209+1) ->  | S209: =IF(AND($B209>=1,$B209<=17),OFFSET(INDEX('1組'!$B$6:$E$39,MATCH($B209,'1組'!$B$6:$B$39,0),2),1,0),"") ->  | T209: =IF($A209="","",$I209+$I209+5) ->  | U209: =IF($A209="","",$B209+$B209+4) ->  | V209: =IF($A209="","",$T209-1) ->  | W209: =IF($A209="","",$U209) ->  | X209: =IF($A209="","",$T209-1) ->  | Y209: =IF($A209="","",$U209+1) ->  | Z209: =IF(AND($I209>=1,$I209<=17),OFFSET(INDEX('1組'!$B$6:$E$39,MATCH($I209,'1組'!$B$6:$B$39,0),2),1,0),"") -> 
C211: =IF(AND($B211>=1,$B211<=17),INDEX('1組'!$B$6:$E$39,MATCH($B211,'1組'!$B$6:$B$39,0),4),"") ->  | H211: =IF(AND($I211>=1,$I211<=17),INDEX('1組'!$B$6:$E$39,MATCH($I211,'1組'!$B$6:$B$39,0),4),"") ->  | M211: =IF($A211="","",$B211+$B211+5) ->  | N211: =IF($A211="","",$I211+$I211+4) ->  | O211: =IF($A211="","",$M211-1) ->  | P211: =IF($A211="","",$N211) ->  | Q211: =IF($A211="","",$M211-1) ->  | R211: =IF($A211="","",$N211+1) ->  | S211: =IF(AND($B211>=1,$B211<=17),OFFSET(INDEX('1組'!$B$6:$E$39,MATCH($B211,'1組'!$B$6:$B$39,0),2),1,0),"") ->  | T211: =IF($A211="","",$I211+$I211+5) ->  | U211: =IF($A211="","",$B211+$B211+4) ->  | V211: =IF($A211="","",$T211-1) ->  | W211: =IF($A211="","",$U211) ->  | X211: =IF($A211="","",$T211-1) ->  | Y211: =IF($A211="","",$U211+1) ->  | Z211: =IF(AND($I211>=1,$I211<=17),OFFSET(INDEX('1組'!$B$6:$E$39,MATCH($I211,'1組'!$B$6:$B$39,0),2),1,0),"") -> 
C213: =IF(AND($B213>=1,$B213<=17),INDEX('1組'!$B$6:$E$39,MATCH($B213,'1組'!$B$6:$B$39,0),4),"") ->  | H213: =IF(AND($I213>=1,$I213<=17),INDEX('1組'!$B$6:$E$39,MATCH($I213,'1組'!$B$6:$B$39,0),4),"") ->  | M213: =IF($A213="","",$B213+$B213+5) ->  | N213: =IF($A213="","",$I213+$I213+4) ->  | O213: =IF($A213="","",$M213-1) ->  | P213: =IF($A213="","",$N213) ->  | Q213: =IF($A213="","",$M213-1) ->  | R213: =IF($A213="","",$N213+1) ->  | S213: =IF(AND($B213>=1,$B213<=17),OFFSET(INDEX('1組'!$B$6:$E$39,MATCH($B213,'1組'!$B$6:$B$39,0),2),1,0),"") ->  | T213: =IF($A213="","",$I213+$I213+5) ->  | U213: =IF($A213="","",$B213+$B213+4) ->  | V213: =IF($A213="","",$T213-1) ->  | W213: =IF($A213="","",$U213) ->  | X213: =IF($A213="","",$T213-1) ->  | Y213: =IF($A213="","",$U213+1) ->  | Z213: =IF(AND($I213>=1,$I213<=17),OFFSET(INDEX('1組'!$B$6:$E$39,MATCH($I213,'1組'!$B$6:$B$39,0),2),1,0),"") -> 
C215: =IF(AND($B215>=1,$B215<=17),INDEX('1組'!$B$6:$E$39,MATCH($B215,'1組'!$B$6:$B$39,0),4),"") ->  | H215: =IF(AND($I215>=1,$I215<=17),INDEX('1組'!$B$6:$E$39,MATCH($I215,'1組'!$B$6:$B$39,0),4),"") ->  | M215: =IF($A215="","",$B215+$B215+5) ->  | N215: =IF($A215="","",$I215+$I215+4) ->  | O215: =IF($A215="","",$M215-1) ->  | P215: =IF($A215="","",$N215) ->  | Q215: =IF($A215="","",$M215-1) ->  | R215: =IF($A215="","",$N215+1) ->  | S215: =IF(AND($B215>=1,$B215<=17),OFFSET(INDEX('1組'!$B$6:$E$39,MATCH($B215,'1組'!$B$6:$B$39,0),2),1,0),"") ->  | T215: =IF($A215="","",$I215+$I215+5) ->  | U215: =IF($A215="","",$B215+$B215+4) ->  | V215: =IF($A215="","",$T215-1) ->  | W215: =IF($A215="","",$U215) ->  | X215: =IF($A215="","",$T215-1) ->  | Y215: =IF($A215="","",$U215+1) ->  | Z215: =IF(AND($I215>=1,$I215<=17),OFFSET(INDEX('1組'!$B$6:$E$39,MATCH($I215,'1組'!$B$6:$B$39,0),2),1,0),"") -> 
C217: =IF(AND($B217>=1,$B217<=17),INDEX('1組'!$B$6:$E$39,MATCH($B217,'1組'!$B$6:$B$39,0),4),"") ->  | H217: =IF(AND($I217>=1,$I217<=17),INDEX('1組'!$B$6:$E$39,MATCH($I217,'1組'!$B$6:$B$39,0),4),"") ->  | M217: =IF($A217="","",$B217+$B217+5) ->  | N217: =IF($A217="","",$I217+$I217+4) ->  | O217: =IF($A217="","",$M217-1) ->  | P217: =IF($A217="","",$N217) ->  | Q217: =IF($A217="","",$M217-1) ->  | R217: =IF($A217="","",$N217+1) ->  | S217: =IF(AND($B217>=1,$B217<=17),OFFSET(INDEX('1組'!$B$6:$E$39,MATCH($B217,'1組'!$B$6:$B$39,0),2),1,0),"") ->  | T217: =IF($A217="","",$I217+$I217+5) ->  | U217: =IF($A217="","",$B217+$B217+4) ->  | V217: =IF($A217="","",$T217-1) ->  | W217: =IF($A217="","",$U217) ->  | X217: =IF($A217="","",$T217-1) ->  | Y217: =IF($A217="","",$U217+1) ->  | Z217: =IF(AND($I217>=1,$I217<=17),OFFSET(INDEX('1組'!$B$6:$E$39,MATCH($I217,'1組'!$B$6:$B$39,0),2),1,0),"") -> 
C219: =IF(AND($B219>=1,$B219<=17),INDEX('1組'!$B$6:$E$39,MATCH($B219,'1組'!$B$6:$B$39,0),4),"") ->  | H219: =IF(AND($I219>=1,$I219<=17),INDEX('1組'!$B$6:$E$39,MATCH($I219,'1組'!$B$6:$B$39,0),4),"") ->  | M219: =IF($A219="","",$B219+$B219+5) ->  | N219: =IF($A219="","",$I219+$I219+4) ->  | O219: =IF($A219="","",$M219-1) ->  | P219: =IF($A219="","",$N219) ->  | Q219: =IF($A219="","",$M219-1) ->  | R219: =IF($A219="","",$N219+1) ->  | S219: =IF(AND($B219>=1,$B219<=17),OFFSET(INDEX('1組'!$B$6:$E$39,MATCH($B219,'1組'!$B$6:$B$39,0),2),1,0),"") ->  | T219: =IF($A219="","",$I219+$I219+5) ->  | U219: =IF($A219="","",$B219+$B219+4) ->  | V219: =IF($A219="","",$T219-1) ->  | W219: =IF($A219="","",$U219) ->  | X219: =IF($A219="","",$T219-1) ->  | Y219: =IF($A219="","",$U219+1) ->  | Z219: =IF(AND($I219>=1,$I219<=17),OFFSET(INDEX('1組'!$B$6:$E$39,MATCH($I219,'1組'!$B$6:$B$39,0),2),1,0),"") -> 
C221: =IF(AND($B221>=1,$B221<=17),INDEX('1組'!$B$6:$E$39,MATCH($B221,'1組'!$B$6:$B$39,0),4),"") ->  | H221: =IF(AND($I221>=1,$I221<=17),INDEX('1組'!$B$6:$E$39,MATCH($I221,'1組'!$B$6:$B$39,0),4),"") ->  | M221: =IF($A221="","",$B221+$B221+5) ->  | N221: =IF($A221="","",$I221+$I221+4) ->  | O221: =IF($A221="","",$M221-1) ->  | P221: =IF($A221="","",$N221) ->  | Q221: =IF($A221="","",$M221-1) ->  | R221: =IF($A221="","",$N221+1) ->  | S221: =IF(AND($B221>=1,$B221<=17),OFFSET(INDEX('1組'!$B$6:$E$39,MATCH($B221,'1組'!$B$6:$B$39,0),2),1,0),"") ->  | T221: =IF($A221="","",$I221+$I221+5) ->  | U221: =IF($A221="","",$B221+$B221+4) ->  | V221: =IF($A221="","",$T221-1) ->  | W221: =IF($A221="","",$U221) ->  | X221: =IF($A221="","",$T221-1) ->  | Y221: =IF($A221="","",$U221+1) ->  | Z221: =IF(AND($I221>=1,$I221<=17),OFFSET(INDEX('1組'!$B$6:$E$39,MATCH($I221,'1組'!$B$6:$B$39,0),2),1,0),"") -> 
C223: =IF(AND($B223>=1,$B223<=17),INDEX('1組'!$B$6:$E$39,MATCH($B223,'1組'!$B$6:$B$39,0),4),"") ->  | H223: =IF(AND($I223>=1,$I223<=17),INDEX('1組'!$B$6:$E$39,MATCH($I223,'1組'!$B$6:$B$39,0),4),"") ->  | M223: =IF($A223="","",$B223+$B223+5) ->  | N223: =IF($A223="","",$I223+$I223+4) ->  | O223: =IF($A223="","",$M223-1) ->  | P223: =IF($A223="","",$N223) ->  | Q223: =IF($A223="","",$M223-1) ->  | R223: =IF($A223="","",$N223+1) ->  | S223: =IF(AND($B223>=1,$B223<=17),OFFSET(INDEX('1組'!$B$6:$E$39,MATCH($B223,'1組'!$B$6:$B$39,0),2),1,0),"") ->  | T223: =IF($A223="","",$I223+$I223+5) ->  | U223: =IF($A223="","",$B223+$B223+4) ->  | V223: =IF($A223="","",$T223-1) ->  | W223: =IF($A223="","",$U223) ->  | X223: =IF($A223="","",$T223-1) ->  | Y223: =IF($A223="","",$U223+1) ->  | Z223: =IF(AND($I223>=1,$I223<=17),OFFSET(INDEX('1組'!$B$6:$E$39,MATCH($I223,'1組'!$B$6:$B$39,0),2),1,0),"") -> 
C225: =IF(AND($B225>=1,$B225<=17),INDEX('1組'!$B$6:$E$39,MATCH($B225,'1組'!$B$6:$B$39,0),4),"") ->  | H225: =IF(AND($I225>=1,$I225<=17),INDEX('1組'!$B$6:$E$39,MATCH($I225,'1組'!$B$6:$B$39,0),4),"") ->  | M225: =IF($A225="","",$B225+$B225+5) ->  | N225: =IF($A225="","",$I225+$I225+4) ->  | O225: =IF($A225="","",$M225-1) ->  | P225: =IF($A225="","",$N225) ->  | Q225: =IF($A225="","",$M225-1) ->  | R225: =IF($A225="","",$N225+1) ->  | S225: =IF(AND($B225>=1,$B225<=17),OFFSET(INDEX('1組'!$B$6:$E$39,MATCH($B225,'1組'!$B$6:$B$39,0),2),1,0),"") ->  | T225: =IF($A225="","",$I225+$I225+5) ->  | U225: =IF($A225="","",$B225+$B225+4) ->  | V225: =IF($A225="","",$T225-1) ->  | W225: =IF($A225="","",$U225) ->  | X225: =IF($A225="","",$T225-1) ->  | Y225: =IF($A225="","",$U225+1) ->  | Z225: =IF(AND($I225>=1,$I225<=17),OFFSET(INDEX('1組'!$B$6:$E$39,MATCH($I225,'1組'!$B$6:$B$39,0),2),1,0),"") -> 
C227: =IF(AND($B227>=1,$B227<=17),INDEX('1組'!$B$6:$E$39,MATCH($B227,'1組'!$B$6:$B$39,0),4),"") ->  | H227: =IF(AND($I227>=1,$I227<=17),INDEX('1組'!$B$6:$E$39,MATCH($I227,'1組'!$B$6:$B$39,0),4),"") ->  | M227: =IF($A227="","",$B227+$B227+5) ->  | N227: =IF($A227="","",$I227+$I227+4) ->  | O227: =IF($A227="","",$M227-1) ->  | P227: =IF($A227="","",$N227) ->  | Q227: =IF($A227="","",$M227-1) ->  | R227: =IF($A227="","",$N227+1) ->  | S227: =IF(AND($B227>=1,$B227<=17),OFFSET(INDEX('1組'!$B$6:$E$39,MATCH($B227,'1組'!$B$6:$B$39,0),2),1,0),"") ->  | T227: =IF($A227="","",$I227+$I227+5) ->  | U227: =IF($A227="","",$B227+$B227+4) ->  | V227: =IF($A227="","",$T227-1) ->  | W227: =IF($A227="","",$U227) ->  | X227: =IF($A227="","",$T227-1) ->  | Y227: =IF($A227="","",$U227+1) ->  | Z227: =IF(AND($I227>=1,$I227<=17),OFFSET(INDEX('1組'!$B$6:$E$39,MATCH($I227,'1組'!$B$6:$B$39,0),2),1,0),"") -> 
C229: =IF(AND($B229>=1,$B229<=17),INDEX('1組'!$B$6:$E$39,MATCH($B229,'1組'!$B$6:$B$39,0),4),"") ->  | H229: =IF(AND($I229>=1,$I229<=17),INDEX('1組'!$B$6:$E$39,MATCH($I229,'1組'!$B$6:$B$39,0),4),"") ->  | M229: =IF($A229="","",$B229+$B229+5) ->  | N229: =IF($A229="","",$I229+$I229+4) ->  | O229: =IF($A229="","",$M229-1) ->  | P229: =IF($A229="","",$N229) ->  | Q229: =IF($A229="","",$M229-1) ->  | R229: =IF($A229="","",$N229+1) ->  | S229: =IF(AND($B229>=1,$B229<=17),OFFSET(INDEX('1組'!$B$6:$E$39,MATCH($B229,'1組'!$B$6:$B$39,0),2),1,0),"") ->  | T229: =IF($A229="","",$I229+$I229+5) ->  | U229: =IF($A229="","",$B229+$B229+4) ->  | V229: =IF($A229="","",$T229-1) ->  | W229: =IF($A229="","",$U229) ->  | X229: =IF($A229="","",$T229-1) ->  | Y229: =IF($A229="","",$U229+1) ->  | Z229: =IF(AND($I229>=1,$I229<=17),OFFSET(INDEX('1組'!$B$6:$E$39,MATCH($I229,'1組'!$B$6:$B$39,0),2),1,0),"") -> 
C231: =IF(AND($B231>=1,$B231<=17),INDEX('1組'!$B$6:$E$39,MATCH($B231,'1組'!$B$6:$B$39,0),4),"") ->  | H231: =IF(AND($I231>=1,$I231<=17),INDEX('1組'!$B$6:$E$39,MATCH($I231,'1組'!$B$6:$B$39,0),4),"") ->  | M231: =IF($A231="","",$B231+$B231+5) ->  | N231: =IF($A231="","",$I231+$I231+4) ->  | O231: =IF($A231="","",$M231-1) ->  | P231: =IF($A231="","",$N231) ->  | Q231: =IF($A231="","",$M231-1) ->  | R231: =IF($A231="","",$N231+1) ->  | S231: =IF(AND($B231>=1,$B231<=17),OFFSET(INDEX('1組'!$B$6:$E$39,MATCH($B231,'1組'!$B$6:$B$39,0),2),1,0),"") ->  | T231: =IF($A231="","",$I231+$I231+5) ->  | U231: =IF($A231="","",$B231+$B231+4) ->  | V231: =IF($A231="","",$T231-1) ->  | W231: =IF($A231="","",$U231) ->  | X231: =IF($A231="","",$T231-1) ->  | Y231: =IF($A231="","",$U231+1) ->  | Z231: =IF(AND($I231>=1,$I231<=17),OFFSET(INDEX('1組'!$B$6:$E$39,MATCH($I231,'1組'!$B$6:$B$39,0),2),1,0),"") -> 
C233: =IF(AND($B233>=1,$B233<=17),INDEX('1組'!$B$6:$E$39,MATCH($B233,'1組'!$B$6:$B$39,0),4),"") ->  | H233: =IF(AND($I233>=1,$I233<=17),INDEX('1組'!$B$6:$E$39,MATCH($I233,'1組'!$B$6:$B$39,0),4),"") ->  | M233: =IF($A233="","",$B233+$B233+5) ->  | N233: =IF($A233="","",$I233+$I233+4) ->  | O233: =IF($A233="","",$M233-1) ->  | P233: =IF($A233="","",$N233) ->  | Q233: =IF($A233="","",$M233-1) ->  | R233: =IF($A233="","",$N233+1) ->  | S233: =IF(AND($B233>=1,$B233<=17),OFFSET(INDEX('1組'!$B$6:$E$39,MATCH($B233,'1組'!$B$6:$B$39,0),2),1,0),"") ->  | T233: =IF($A233="","",$I233+$I233+5) ->  | U233: =IF($A233="","",$B233+$B233+4) ->  | V233: =IF($A233="","",$T233-1) ->  | W233: =IF($A233="","",$U233) ->  | X233: =IF($A233="","",$T233-1) ->  | Y233: =IF($A233="","",$U233+1) ->  | Z233: =IF(AND($I233>=1,$I233<=17),OFFSET(INDEX('1組'!$B$6:$E$39,MATCH($I233,'1組'!$B$6:$B$39,0),2),1,0),"") -> 
C235: =IF(AND($B235>=1,$B235<=17),INDEX('1組'!$B$6:$E$39,MATCH($B235,'1組'!$B$6:$B$39,0),4),"") ->  | H235: =IF(AND($I235>=1,$I235<=17),INDEX('1組'!$B$6:$E$39,MATCH($I235,'1組'!$B$6:$B$39,0),4),"") ->  | M235: =IF($A235="","",$B235+$B235+5) ->  | N235: =IF($A235="","",$I235+$I235+4) ->  | O235: =IF($A235="","",$M235-1) ->  | P235: =IF($A235="","",$N235) ->  | Q235: =IF($A235="","",$M235-1) ->  | R235: =IF($A235="","",$N235+1) ->  | S235: =IF(AND($B235>=1,$B235<=17),OFFSET(INDEX('1組'!$B$6:$E$39,MATCH($B235,'1組'!$B$6:$B$39,0),2),1,0),"") ->  | T235: =IF($A235="","",$I235+$I235+5) ->  | U235: =IF($A235="","",$B235+$B235+4) ->  | V235: =IF($A235="","",$T235-1) ->  | W235: =IF($A235="","",$U235) ->  | X235: =IF($A235="","",$T235-1) ->  | Y235: =IF($A235="","",$U235+1) ->  | Z235: =IF(AND($I235>=1,$I235<=17),OFFSET(INDEX('1組'!$B$6:$E$39,MATCH($I235,'1組'!$B$6:$B$39,0),2),1,0),"") -> 
C237: =IF(AND($B237>=1,$B237<=17),INDEX('1組'!$B$6:$E$39,MATCH($B237,'1組'!$B$6:$B$39,0),4),"") ->  | H237: =IF(AND($I237>=1,$I237<=17),INDEX('1組'!$B$6:$E$39,MATCH($I237,'1組'!$B$6:$B$39,0),4),"") ->  | M237: =IF($A237="","",$B237+$B237+5) ->  | N237: =IF($A237="","",$I237+$I237+4) ->  | O237: =IF($A237="","",$M237-1) ->  | P237: =IF($A237="","",$N237) ->  | Q237: =IF($A237="","",$M237-1) ->  | R237: =IF($A237="","",$N237+1) ->  | S237: =IF(AND($B237>=1,$B237<=17),OFFSET(INDEX('1組'!$B$6:$E$39,MATCH($B237,'1組'!$B$6:$B$39,0),2),1,0),"") ->  | T237: =IF($A237="","",$I237+$I237+5) ->  | U237: =IF($A237="","",$B237+$B237+4) ->  | V237: =IF($A237="","",$T237-1) ->  | W237: =IF($A237="","",$U237) ->  | X237: =IF($A237="","",$T237-1) ->  | Y237: =IF($A237="","",$U237+1) ->  | Z237: =IF(AND($I237>=1,$I237<=17),OFFSET(INDEX('1組'!$B$6:$E$39,MATCH($I237,'1組'!$B$6:$B$39,0),2),1,0),"") -> 
C239: =IF(AND($B239>=1,$B239<=17),INDEX('1組'!$B$6:$E$39,MATCH($B239,'1組'!$B$6:$B$39,0),4),"") ->  | H239: =IF(AND($I239>=1,$I239<=17),INDEX('1組'!$B$6:$E$39,MATCH($I239,'1組'!$B$6:$B$39,0),4),"") ->  | M239: =IF($A239="","",$B239+$B239+5) ->  | N239: =IF($A239="","",$I239+$I239+4) ->  | O239: =IF($A239="","",$M239-1) ->  | P239: =IF($A239="","",$N239) ->  | Q239: =IF($A239="","",$M239-1) ->  | R239: =IF($A239="","",$N239+1) ->  | S239: =IF(AND($B239>=1,$B239<=17),OFFSET(INDEX('1組'!$B$6:$E$39,MATCH($B239,'1組'!$B$6:$B$39,0),2),1,0),"") ->  | T239: =IF($A239="","",$I239+$I239+5) ->  | U239: =IF($A239="","",$B239+$B239+4) ->  | V239: =IF($A239="","",$T239-1) ->  | W239: =IF($A239="","",$U239) ->  | X239: =IF($A239="","",$T239-1) ->  | Y239: =IF($A239="","",$U239+1) ->  | Z239: =IF(AND($I239>=1,$I239<=17),OFFSET(INDEX('1組'!$B$6:$E$39,MATCH($I239,'1組'!$B$6:$B$39,0),2),1,0),"") -> 
C241: =IF(AND($B241>=1,$B241<=17),INDEX('1組'!$B$6:$E$39,MATCH($B241,'1組'!$B$6:$B$39,0),4),"") ->  | H241: =IF(AND($I241>=1,$I241<=17),INDEX('1組'!$B$6:$E$39,MATCH($I241,'1組'!$B$6:$B$39,0),4),"") ->  | M241: =IF($A241="","",$B241+$B241+5) ->  | N241: =IF($A241="","",$I241+$I241+4) ->  | O241: =IF($A241="","",$M241-1) ->  | P241: =IF($A241="","",$N241) ->  | Q241: =IF($A241="","",$M241-1) ->  | R241: =IF($A241="","",$N241+1) ->  | S241: =IF(AND($B241>=1,$B241<=17),OFFSET(INDEX('1組'!$B$6:$E$39,MATCH($B241,'1組'!$B$6:$B$39,0),2),1,0),"") ->  | T241: =IF($A241="","",$I241+$I241+5) ->  | U241: =IF($A241="","",$B241+$B241+4) ->  | V241: =IF($A241="","",$T241-1) ->  | W241: =IF($A241="","",$U241) ->  | X241: =IF($A241="","",$T241-1) ->  | Y241: =IF($A241="","",$U241+1) ->  | Z241: =IF(AND($I241>=1,$I241<=17),OFFSET(INDEX('1組'!$B$6:$E$39,MATCH($I241,'1組'!$B$6:$B$39,0),2),1,0),"") -> 
C243: =IF(AND($B243>=1,$B243<=17),INDEX('1組'!$B$6:$E$39,MATCH($B243,'1組'!$B$6:$B$39,0),4),"") ->  | H243: =IF(AND($I243>=1,$I243<=17),INDEX('1組'!$B$6:$E$39,MATCH($I243,'1組'!$B$6:$B$39,0),4),"") ->  | M243: =IF($A243="","",$B243+$B243+5) ->  | N243: =IF($A243="","",$I243+$I243+4) ->  | O243: =IF($A243="","",$M243-1) ->  | P243: =IF($A243="","",$N243) ->  | Q243: =IF($A243="","",$M243-1) ->  | R243: =IF($A243="","",$N243+1) ->  | S243: =IF(AND($B243>=1,$B243<=17),OFFSET(INDEX('1組'!$B$6:$E$39,MATCH($B243,'1組'!$B$6:$B$39,0),2),1,0),"") ->  | T243: =IF($A243="","",$I243+$I243+5) ->  | U243: =IF($A243="","",$B243+$B243+4) ->  | V243: =IF($A243="","",$T243-1) ->  | W243: =IF($A243="","",$U243) ->  | X243: =IF($A243="","",$T243-1) ->  | Y243: =IF($A243="","",$U243+1) ->  | Z243: =IF(AND($I243>=1,$I243<=17),OFFSET(INDEX('1組'!$B$6:$E$39,MATCH($I243,'1組'!$B$6:$B$39,0),2),1,0),"") -> 
C245: =IF(AND($B245>=1,$B245<=17),INDEX('1組'!$B$6:$E$39,MATCH($B245,'1組'!$B$6:$B$39,0),4),"") ->  | H245: =IF(AND($I245>=1,$I245<=17),INDEX('1組'!$B$6:$E$39,MATCH($I245,'1組'!$B$6:$B$39,0),4),"") ->  | M245: =IF($A245="","",$B245+$B245+5) ->  | N245: =IF($A245="","",$I245+$I245+4) ->  | O245: =IF($A245="","",$M245-1) ->  | P245: =IF($A245="","",$N245) ->  | Q245: =IF($A245="","",$M245-1) ->  | R245: =IF($A245="","",$N245+1) ->  | S245: =IF(AND($B245>=1,$B245<=17),OFFSET(INDEX('1組'!$B$6:$E$39,MATCH($B245,'1組'!$B$6:$B$39,0),2),1,0),"") ->  | T245: =IF($A245="","",$I245+$I245+5) ->  | U245: =IF($A245="","",$B245+$B245+4) ->  | V245: =IF($A245="","",$T245-1) ->  | W245: =IF($A245="","",$U245) ->  | X245: =IF($A245="","",$T245-1) ->  | Y245: =IF($A245="","",$U245+1) ->  | Z245: =IF(AND($I245>=1,$I245<=17),OFFSET(INDEX('1組'!$B$6:$E$39,MATCH($I245,'1組'!$B$6:$B$39,0),2),1,0),"") -> 
C247: =IF(AND($B247>=1,$B247<=17),INDEX('1組'!$B$6:$E$39,MATCH($B247,'1組'!$B$6:$B$39,0),4),"") ->  | H247: =IF(AND($I247>=1,$I247<=17),INDEX('1組'!$B$6:$E$39,MATCH($I247,'1組'!$B$6:$B$39,0),4),"") ->  | M247: =IF($A247="","",$B247+$B247+5) ->  | N247: =IF($A247="","",$I247+$I247+4) ->  | O247: =IF($A247="","",$M247-1) ->  | P247: =IF($A247="","",$N247) ->  | Q247: =IF($A247="","",$M247-1) ->  | R247: =IF($A247="","",$N247+1) ->  | S247: =IF(AND($B247>=1,$B247<=17),OFFSET(INDEX('1組'!$B$6:$E$39,MATCH($B247,'1組'!$B$6:$B$39,0),2),1,0),"") ->  | T247: =IF($A247="","",$I247+$I247+5) ->  | U247: =IF($A247="","",$B247+$B247+4) ->  | V247: =IF($A247="","",$T247-1) ->  | W247: =IF($A247="","",$U247) ->  | X247: =IF($A247="","",$T247-1) ->  | Y247: =IF($A247="","",$U247+1) ->  | Z247: =IF(AND($I247>=1,$I247<=17),OFFSET(INDEX('1組'!$B$6:$E$39,MATCH($I247,'1組'!$B$6:$B$39,0),2),1,0),"") -> 
C249: =IF(AND($B249>=1,$B249<=17),INDEX('1組'!$B$6:$E$39,MATCH($B249,'1組'!$B$6:$B$39,0),4),"") ->  | H249: =IF(AND($I249>=1,$I249<=17),INDEX('1組'!$B$6:$E$39,MATCH($I249,'1組'!$B$6:$B$39,0),4),"") ->  | M249: =IF($A249="","",$B249+$B249+5) ->  | N249: =IF($A249="","",$I249+$I249+4) ->  | O249: =IF($A249="","",$M249-1) ->  | P249: =IF($A249="","",$N249) ->  | Q249: =IF($A249="","",$M249-1) ->  | R249: =IF($A249="","",$N249+1) ->  | S249: =IF(AND($B249>=1,$B249<=17),OFFSET(INDEX('1組'!$B$6:$E$39,MATCH($B249,'1組'!$B$6:$B$39,0),2),1,0),"") ->  | T249: =IF($A249="","",$I249+$I249+5) ->  | U249: =IF($A249="","",$B249+$B249+4) ->  | V249: =IF($A249="","",$T249-1) ->  | W249: =IF($A249="","",$U249) ->  | X249: =IF($A249="","",$T249-1) ->  | Y249: =IF($A249="","",$U249+1) ->  | Z249: =IF(AND($I249>=1,$I249<=17),OFFSET(INDEX('1組'!$B$6:$E$39,MATCH($I249,'1組'!$B$6:$B$39,0),2),1,0),"") -> 
C251: =IF(AND($B251>=1,$B251<=17),INDEX('1組'!$B$6:$E$39,MATCH($B251,'1組'!$B$6:$B$39,0),4),"") ->  | H251: =IF(AND($I251>=1,$I251<=17),INDEX('1組'!$B$6:$E$39,MATCH($I251,'1組'!$B$6:$B$39,0),4),"") ->  | M251: =IF($A251="","",$B251+$B251+5) ->  | N251: =IF($A251="","",$I251+$I251+4) ->  | O251: =IF($A251="","",$M251-1) ->  | P251: =IF($A251="","",$N251) ->  | Q251: =IF($A251="","",$M251-1) ->  | R251: =IF($A251="","",$N251+1) ->  | S251: =IF(AND($B251>=1,$B251<=17),OFFSET(INDEX('1組'!$B$6:$E$39,MATCH($B251,'1組'!$B$6:$B$39,0),2),1,0),"") ->  | T251: =IF($A251="","",$I251+$I251+5) ->  | U251: =IF($A251="","",$B251+$B251+4) ->  | V251: =IF($A251="","",$T251-1) ->  | W251: =IF($A251="","",$U251) ->  | X251: =IF($A251="","",$T251-1) ->  | Y251: =IF($A251="","",$U251+1) ->  | Z251: =IF(AND($I251>=1,$I251<=17),OFFSET(INDEX('1組'!$B$6:$E$39,MATCH($I251,'1組'!$B$6:$B$39,0),2),1,0),"") -> 
C253: =IF(AND($B253>=1,$B253<=17),INDEX('1組'!$B$6:$E$39,MATCH($B253,'1組'!$B$6:$B$39,0),4),"") ->  | H253: =IF(AND($I253>=1,$I253<=17),INDEX('1組'!$B$6:$E$39,MATCH($I253,'1組'!$B$6:$B$39,0),4),"") ->  | M253: =IF($A253="","",$B253+$B253+5) ->  | N253: =IF($A253="","",$I253+$I253+4) ->  | O253: =IF($A253="","",$M253-1) ->  | P253: =IF($A253="","",$N253) ->  | Q253: =IF($A253="","",$M253-1) ->  | R253: =IF($A253="","",$N253+1) ->  | S253: =IF(AND($B253>=1,$B253<=17),OFFSET(INDEX('1組'!$B$6:$E$39,MATCH($B253,'1組'!$B$6:$B$39,0),2),1,0),"") ->  | T253: =IF($A253="","",$I253+$I253+5) ->  | U253: =IF($A253="","",$B253+$B253+4) ->  | V253: =IF($A253="","",$T253-1) ->  | W253: =IF($A253="","",$U253) ->  | X253: =IF($A253="","",$T253-1) ->  | Y253: =IF($A253="","",$U253+1) ->  | Z253: =IF(AND($I253>=1,$I253<=17),OFFSET(INDEX('1組'!$B$6:$E$39,MATCH($I253,'1組'!$B$6:$B$39,0),2),1,0),"") -> 
C255: =IF(AND($B255>=1,$B255<=17),INDEX('1組'!$B$6:$E$39,MATCH($B255,'1組'!$B$6:$B$39,0),4),"") ->  | H255: =IF(AND($I255>=1,$I255<=17),INDEX('1組'!$B$6:$E$39,MATCH($I255,'1組'!$B$6:$B$39,0),4),"") ->  | M255: =IF($A255="","",$B255+$B255+5) ->  | N255: =IF($A255="","",$I255+$I255+4) ->  | O255: =IF($A255="","",$M255-1) ->  | P255: =IF($A255="","",$N255) ->  | Q255: =IF($A255="","",$M255-1) ->  | R255: =IF($A255="","",$N255+1) ->  | S255: =IF(AND($B255>=1,$B255<=17),OFFSET(INDEX('1組'!$B$6:$E$39,MATCH($B255,'1組'!$B$6:$B$39,0),2),1,0),"") ->  | T255: =IF($A255="","",$I255+$I255+5) ->  | U255: =IF($A255="","",$B255+$B255+4) ->  | V255: =IF($A255="","",$T255-1) ->  | W255: =IF($A255="","",$U255) ->  | X255: =IF($A255="","",$T255-1) ->  | Y255: =IF($A255="","",$U255+1) ->  | Z255: =IF(AND($I255>=1,$I255<=17),OFFSET(INDEX('1組'!$B$6:$E$39,MATCH($I255,'1組'!$B$6:$B$39,0),2),1,0),"") -> 
C257: =IF(AND($B257>=1,$B257<=17),INDEX('1組'!$B$6:$E$39,MATCH($B257,'1組'!$B$6:$B$39,0),4),"") ->  | H257: =IF(AND($I257>=1,$I257<=17),INDEX('1組'!$B$6:$E$39,MATCH($I257,'1組'!$B$6:$B$39,0),4),"") ->  | M257: =IF($A257="","",$B257+$B257+5) ->  | N257: =IF($A257="","",$I257+$I257+4) ->  | O257: =IF($A257="","",$M257-1) ->  | P257: =IF($A257="","",$N257) ->  | Q257: =IF($A257="","",$M257-1) ->  | R257: =IF($A257="","",$N257+1) ->  | S257: =IF(AND($B257>=1,$B257<=17),OFFSET(INDEX('1組'!$B$6:$E$39,MATCH($B257,'1組'!$B$6:$B$39,0),2),1,0),"") ->  | T257: =IF($A257="","",$I257+$I257+5) ->  | U257: =IF($A257="","",$B257+$B257+4) ->  | V257: =IF($A257="","",$T257-1) ->  | W257: =IF($A257="","",$U257) ->  | X257: =IF($A257="","",$T257-1) ->  | Y257: =IF($A257="","",$U257+1) ->  | Z257: =IF(AND($I257>=1,$I257<=17),OFFSET(INDEX('1組'!$B$6:$E$39,MATCH($I257,'1組'!$B$6:$B$39,0),2),1,0),"") -> 
C259: =IF(AND($B259>=1,$B259<=17),INDEX('1組'!$B$6:$E$39,MATCH($B259,'1組'!$B$6:$B$39,0),4),"") ->  | H259: =IF(AND($I259>=1,$I259<=17),INDEX('1組'!$B$6:$E$39,MATCH($I259,'1組'!$B$6:$B$39,0),4),"") ->  | M259: =IF($A259="","",$B259+$B259+5) ->  | N259: =IF($A259="","",$I259+$I259+4) ->  | O259: =IF($A259="","",$M259-1) ->  | P259: =IF($A259="","",$N259) ->  | Q259: =IF($A259="","",$M259-1) ->  | R259: =IF($A259="","",$N259+1) ->  | S259: =IF(AND($B259>=1,$B259<=17),OFFSET(INDEX('1組'!$B$6:$E$39,MATCH($B259,'1組'!$B$6:$B$39,0),2),1,0),"") ->  | T259: =IF($A259="","",$I259+$I259+5) ->  | U259: =IF($A259="","",$B259+$B259+4) ->  | V259: =IF($A259="","",$T259-1) ->  | W259: =IF($A259="","",$U259) ->  | X259: =IF($A259="","",$T259-1) ->  | Y259: =IF($A259="","",$U259+1) ->  | Z259: =IF(AND($I259>=1,$I259<=17),OFFSET(INDEX('1組'!$B$6:$E$39,MATCH($I259,'1組'!$B$6:$B$39,0),2),1,0),"") -> 
C261: =IF(AND($B261>=1,$B261<=17),INDEX('1組'!$B$6:$E$39,MATCH($B261,'1組'!$B$6:$B$39,0),4),"") ->  | H261: =IF(AND($I261>=1,$I261<=17),INDEX('1組'!$B$6:$E$39,MATCH($I261,'1組'!$B$6:$B$39,0),4),"") ->  | M261: =IF($A261="","",$B261+$B261+5) ->  | N261: =IF($A261="","",$I261+$I261+4) ->  | O261: =IF($A261="","",$M261-1) ->  | P261: =IF($A261="","",$N261) ->  | Q261: =IF($A261="","",$M261-1) ->  | R261: =IF($A261="","",$N261+1) ->  | S261: =IF(AND($B261>=1,$B261<=17),OFFSET(INDEX('1組'!$B$6:$E$39,MATCH($B261,'1組'!$B$6:$B$39,0),2),1,0),"") ->  | T261: =IF($A261="","",$I261+$I261+5) ->  | U261: =IF($A261="","",$B261+$B261+4) ->  | V261: =IF($A261="","",$T261-1) ->  | W261: =IF($A261="","",$U261) ->  | X261: =IF($A261="","",$T261-1) ->  | Y261: =IF($A261="","",$U261+1) ->  | Z261: =IF(AND($I261>=1,$I261<=17),OFFSET(INDEX('1組'!$B$6:$E$39,MATCH($I261,'1組'!$B$6:$B$39,0),2),1,0),"") -> 
C263: =IF(AND($B263>=1,$B263<=17),INDEX('1組'!$B$6:$E$39,MATCH($B263,'1組'!$B$6:$B$39,0),4),"") ->  | H263: =IF(AND($I263>=1,$I263<=17),INDEX('1組'!$B$6:$E$39,MATCH($I263,'1組'!$B$6:$B$39,0),4),"") ->  | M263: =IF($A263="","",$B263+$B263+5) ->  | N263: =IF($A263="","",$I263+$I263+4) ->  | O263: =IF($A263="","",$M263-1) ->  | P263: =IF($A263="","",$N263) ->  | Q263: =IF($A263="","",$M263-1) ->  | R263: =IF($A263="","",$N263+1) ->  | S263: =IF(AND($B263>=1,$B263<=17),OFFSET(INDEX('1組'!$B$6:$E$39,MATCH($B263,'1組'!$B$6:$B$39,0),2),1,0),"") ->  | T263: =IF($A263="","",$I263+$I263+5) ->  | U263: =IF($A263="","",$B263+$B263+4) ->  | V263: =IF($A263="","",$T263-1) ->  | W263: =IF($A263="","",$U263) ->  | X263: =IF($A263="","",$T263-1) ->  | Y263: =IF($A263="","",$U263+1) ->  | Z263: =IF(AND($I263>=1,$I263<=17),OFFSET(INDEX('1組'!$B$6:$E$39,MATCH($I263,'1組'!$B$6:$B$39,0),2),1,0),"") -> 
C265: =IF(AND($B265>=1,$B265<=17),INDEX('1組'!$B$6:$E$39,MATCH($B265,'1組'!$B$6:$B$39,0),4),"") ->  | H265: =IF(AND($I265>=1,$I265<=17),INDEX('1組'!$B$6:$E$39,MATCH($I265,'1組'!$B$6:$B$39,0),4),"") ->  | M265: =IF($A265="","",$B265+$B265+5) ->  | N265: =IF($A265="","",$I265+$I265+4) ->  | O265: =IF($A265="","",$M265-1) ->  | P265: =IF($A265="","",$N265) ->  | Q265: =IF($A265="","",$M265-1) ->  | R265: =IF($A265="","",$N265+1) ->  | S265: =IF(AND($B265>=1,$B265<=17),OFFSET(INDEX('1組'!$B$6:$E$39,MATCH($B265,'1組'!$B$6:$B$39,0),2),1,0),"") ->  | T265: =IF($A265="","",$I265+$I265+5) ->  | U265: =IF($A265="","",$B265+$B265+4) ->  | V265: =IF($A265="","",$T265-1) ->  | W265: =IF($A265="","",$U265) ->  | X265: =IF($A265="","",$T265-1) ->  | Y265: =IF($A265="","",$U265+1) ->  | Z265: =IF(AND($I265>=1,$I265<=17),OFFSET(INDEX('1組'!$B$6:$E$39,MATCH($I265,'1組'!$B$6:$B$39,0),2),1,0),"") -> 
C267: =IF(AND($B267>=1,$B267<=17),INDEX('1組'!$B$6:$E$39,MATCH($B267,'1組'!$B$6:$B$39,0),4),"") ->  | H267: =IF(AND($I267>=1,$I267<=17),INDEX('1組'!$B$6:$E$39,MATCH($I267,'1組'!$B$6:$B$39,0),4),"") ->  | M267: =IF($A267="","",$B267+$B267+5) ->  | N267: =IF($A267="","",$I267+$I267+4) ->  | O267: =IF($A267="","",$M267-1) ->  | P267: =IF($A267="","",$N267) ->  | Q267: =IF($A267="","",$M267-1) ->  | R267: =IF($A267="","",$N267+1) ->  | S267: =IF(AND($B267>=1,$B267<=17),OFFSET(INDEX('1組'!$B$6:$E$39,MATCH($B267,'1組'!$B$6:$B$39,0),2),1,0),"") ->  | T267: =IF($A267="","",$I267+$I267+5) ->  | U267: =IF($A267="","",$B267+$B267+4) ->  | V267: =IF($A267="","",$T267-1) ->  | W267: =IF($A267="","",$U267) ->  | X267: =IF($A267="","",$T267-1) ->  | Y267: =IF($A267="","",$U267+1) ->  | Z267: =IF(AND($I267>=1,$I267<=17),OFFSET(INDEX('1組'!$B$6:$E$39,MATCH($I267,'1組'!$B$6:$B$39,0),2),1,0),"") -> 
C269: =IF(AND($B269>=1,$B269<=17),INDEX('1組'!$B$6:$E$39,MATCH($B269,'1組'!$B$6:$B$39,0),4),"") ->  | H269: =IF(AND($I269>=1,$I269<=17),INDEX('1組'!$B$6:$E$39,MATCH($I269,'1組'!$B$6:$B$39,0),4),"") ->  | M269: =IF($A269="","",$B269+$B269+5) ->  | N269: =IF($A269="","",$I269+$I269+4) ->  | O269: =IF($A269="","",$M269-1) ->  | P269: =IF($A269="","",$N269) ->  | Q269: =IF($A269="","",$M269-1) ->  | R269: =IF($A269="","",$N269+1) ->  | S269: =IF(AND($B269>=1,$B269<=17),OFFSET(INDEX('1組'!$B$6:$E$39,MATCH($B269,'1組'!$B$6:$B$39,0),2),1,0),"") ->  | T269: =IF($A269="","",$I269+$I269+5) ->  | U269: =IF($A269="","",$B269+$B269+4) ->  | V269: =IF($A269="","",$T269-1) ->  | W269: =IF($A269="","",$U269) ->  | X269: =IF($A269="","",$T269-1) ->  | Y269: =IF($A269="","",$U269+1) ->  | Z269: =IF(AND($I269>=1,$I269<=17),OFFSET(INDEX('1組'!$B$6:$E$39,MATCH($I269,'1組'!$B$6:$B$39,0),2),1,0),"") -> 
C271: =IF(AND($B271>=1,$B271<=17),INDEX('1組'!$B$6:$E$39,MATCH($B271,'1組'!$B$6:$B$39,0),4),"") ->  | H271: =IF(AND($I271>=1,$I271<=17),INDEX('1組'!$B$6:$E$39,MATCH($I271,'1組'!$B$6:$B$39,0),4),"") ->  | M271: =IF($A271="","",$B271+$B271+5) ->  | N271: =IF($A271="","",$I271+$I271+4) ->  | O271: =IF($A271="","",$M271-1) ->  | P271: =IF($A271="","",$N271) ->  | Q271: =IF($A271="","",$M271-1) ->  | R271: =IF($A271="","",$N271+1) ->  | S271: =IF(AND($B271>=1,$B271<=17),OFFSET(INDEX('1組'!$B$6:$E$39,MATCH($B271,'1組'!$B$6:$B$39,0),2),1,0),"") ->  | T271: =IF($A271="","",$I271+$I271+5) ->  | U271: =IF($A271="","",$B271+$B271+4) ->  | V271: =IF($A271="","",$T271-1) ->  | W271: =IF($A271="","",$U271) ->  | X271: =IF($A271="","",$T271-1) ->  | Y271: =IF($A271="","",$U271+1) ->  | Z271: =IF(AND($I271>=1,$I271<=17),OFFSET(INDEX('1組'!$B$6:$E$39,MATCH($I271,'1組'!$B$6:$B$39,0),2),1,0),"") -> 
C273: =IF(AND($B273>=1,$B273<=17),INDEX('1組'!$B$6:$E$39,MATCH($B273,'1組'!$B$6:$B$39,0),4),"") ->  | H273: =IF(AND($I273>=1,$I273<=17),INDEX('1組'!$B$6:$E$39,MATCH($I273,'1組'!$B$6:$B$39,0),4),"") ->  | M273: =IF($A273="","",$B273+$B273+5) ->  | N273: =IF($A273="","",$I273+$I273+4) ->  | O273: =IF($A273="","",$M273-1) ->  | P273: =IF($A273="","",$N273) ->  | Q273: =IF($A273="","",$M273-1) ->  | R273: =IF($A273="","",$N273+1) ->  | S273: =IF(AND($B273>=1,$B273<=17),OFFSET(INDEX('1組'!$B$6:$E$39,MATCH($B273,'1組'!$B$6:$B$39,0),2),1,0),"") ->  | T273: =IF($A273="","",$I273+$I273+5) ->  | U273: =IF($A273="","",$B273+$B273+4) ->  | V273: =IF($A273="","",$T273-1) ->  | W273: =IF($A273="","",$U273) ->  | X273: =IF($A273="","",$T273-1) ->  | Y273: =IF($A273="","",$U273+1) ->  | Z273: =IF(AND($I273>=1,$I273<=17),OFFSET(INDEX('1組'!$B$6:$E$39,MATCH($I273,'1組'!$B$6:$B$39,0),2),1,0),"") -> 
C275: =IF(AND($B275>=1,$B275<=17),INDEX('1組'!$B$6:$E$39,MATCH($B275,'1組'!$B$6:$B$39,0),4),"") ->  | H275: =IF(AND($I275>=1,$I275<=17),INDEX('1組'!$B$6:$E$39,MATCH($I275,'1組'!$B$6:$B$39,0),4),"") ->  | M275: =IF($A275="","",$B275+$B275+5) ->  | N275: =IF($A275="","",$I275+$I275+4) ->  | S275: =IF(AND($B275>=1,$B275<=17),OFFSET(INDEX('1組'!$B$6:$E$39,MATCH($B275,'1組'!$B$6:$B$39,0),2),1,0),"") ->  | T275: =IF($A275="","",$I275+$I275+5) ->  | U275: =IF($A275="","",$B275+$B275+4) ->  | Z275: =IF(AND($I275>=1,$I275<=17),OFFSET(INDEX('1組'!$B$6:$E$39,MATCH($I275,'1組'!$B$6:$B$39,0),2),1,0),"") -> 
C277: =IF(AND($B277>=1,$B277<=17),INDEX('1組'!$B$6:$E$39,MATCH($B277,'1組'!$B$6:$B$39,0),4),"") ->  | H277: =IF(AND($I277>=1,$I277<=17),INDEX('1組'!$B$6:$E$39,MATCH($I277,'1組'!$B$6:$B$39,0),4),"") ->  | M277: =IF($A277="","",$B277+$B277+5) ->  | N277: =IF($A277="","",$I277+$I277+4) ->  | S277: =IF(AND($B277>=1,$B277<=17),OFFSET(INDEX('1組'!$B$6:$E$39,MATCH($B277,'1組'!$B$6:$B$39,0),2),1,0),"") ->  | T277: =IF($A277="","",$I277+$I277+5) ->  | U277: =IF($A277="","",$B277+$B277+4) ->  | Z277: =IF(AND($I277>=1,$I277<=17),OFFSET(INDEX('1組'!$B$6:$E$39,MATCH($I277,'1組'!$B$6:$B$39,0),2),1,0),"") -> 
C279: =IF(AND($B279>=1,$B279<=17),INDEX('1組'!$B$6:$E$39,MATCH($B279,'1組'!$B$6:$B$39,0),4),"") ->  | H279: =IF(AND($I279>=1,$I279<=17),INDEX('1組'!$B$6:$E$39,MATCH($I279,'1組'!$B$6:$B$39,0),4),"") ->  | M279: =IF($A279="","",$B279+$B279+5) ->  | N279: =IF($A279="","",$I279+$I279+4) ->  | S279: =IF(AND($B279>=1,$B279<=17),OFFSET(INDEX('1組'!$B$6:$E$39,MATCH($B279,'1組'!$B$6:$B$39,0),2),1,0),"") ->  | T279: =IF($A279="","",$I279+$I279+5) ->  | U279: =IF($A279="","",$B279+$B279+4) ->  | Z279: =IF(AND($I279>=1,$I279<=17),OFFSET(INDEX('1組'!$B$6:$E$39,MATCH($I279,'1組'!$B$6:$B$39,0),2),1,0),"") -> 
C281: =IF(AND($B281>=1,$B281<=17),INDEX('1組'!$B$6:$E$39,MATCH($B281,'1組'!$B$6:$B$39,0),4),"") ->  | H281: =IF(AND($I281>=1,$I281<=17),INDEX('1組'!$B$6:$E$39,MATCH($I281,'1組'!$B$6:$B$39,0),4),"") ->  | M281: =IF($A281="","",$B281+$B281+5) ->  | N281: =IF($A281="","",$I281+$I281+4) ->  | S281: =IF(AND($B281>=1,$B281<=17),OFFSET(INDEX('1組'!$B$6:$E$39,MATCH($B281,'1組'!$B$6:$B$39,0),2),1,0),"") ->  | T281: =IF($A281="","",$I281+$I281+5) ->  | U281: =IF($A281="","",$B281+$B281+4) ->  | Z281: =IF(AND($I281>=1,$I281<=17),OFFSET(INDEX('1組'!$B$6:$E$39,MATCH($I281,'1組'!$B$6:$B$39,0),2),1,0),"") -> 
C283: =IF(AND($B283>=1,$B283<=17),INDEX('1組'!$B$6:$E$39,MATCH($B283,'1組'!$B$6:$B$39,0),4),"") ->  | H283: =IF(AND($I283>=1,$I283<=17),INDEX('1組'!$B$6:$E$39,MATCH($I283,'1組'!$B$6:$B$39,0),4),"") ->  | M283: =IF($A283="","",$B283+$B283+5) ->  | N283: =IF($A283="","",$I283+$I283+4) ->  | S283: =IF(AND($B283>=1,$B283<=17),OFFSET(INDEX('1組'!$B$6:$E$39,MATCH($B283,'1組'!$B$6:$B$39,0),2),1,0),"") ->  | T283: =IF($A283="","",$I283+$I283+5) ->  | U283: =IF($A283="","",$B283+$B283+4) ->  | Z283: =IF(AND($I283>=1,$I283<=17),OFFSET(INDEX('1組'!$B$6:$E$39,MATCH($I283,'1組'!$B$6:$B$39,0),2),1,0),"") -> 
C285: =IF(AND($B285>=1,$B285<=17),INDEX('1組'!$B$6:$E$39,MATCH($B285,'1組'!$B$6:$B$39,0),4),"") ->  | H285: =IF(AND($I285>=1,$I285<=17),INDEX('1組'!$B$6:$E$39,MATCH($I285,'1組'!$B$6:$B$39,0),4),"") ->  | M285: =IF($A285="","",$B285+$B285+5) ->  | N285: =IF($A285="","",$I285+$I285+4) ->  | S285: =IF(AND($B285>=1,$B285<=17),OFFSET(INDEX('1組'!$B$6:$E$39,MATCH($B285,'1組'!$B$6:$B$39,0),2),1,0),"") ->  | T285: =IF($A285="","",$I285+$I285+5) ->  | U285: =IF($A285="","",$B285+$B285+4) ->  | Z285: =IF(AND($I285>=1,$I285<=17),OFFSET(INDEX('1組'!$B$6:$E$39,MATCH($I285,'1組'!$B$6:$B$39,0),2),1,0),"") -> 
C287: =IF(AND($B287>=1,$B287<=17),INDEX('1組'!$B$6:$E$39,MATCH($B287,'1組'!$B$6:$B$39,0),4),"") ->  | H287: =IF(AND($I287>=1,$I287<=17),INDEX('1組'!$B$6:$E$39,MATCH($I287,'1組'!$B$6:$B$39,0),4),"") ->  | M287: =IF($A287="","",$B287+$B287+5) ->  | N287: =IF($A287="","",$I287+$I287+4) ->  | S287: =IF(AND($B287>=1,$B287<=17),OFFSET(INDEX('1組'!$B$6:$E$39,MATCH($B287,'1組'!$B$6:$B$39,0),2),1,0),"") ->  | T287: =IF($A287="","",$I287+$I287+5) ->  | U287: =IF($A287="","",$B287+$B287+4) ->  | Z287: =IF(AND($I287>=1,$I287<=17),OFFSET(INDEX('1組'!$B$6:$E$39,MATCH($I287,'1組'!$B$6:$B$39,0),2),1,0),"") -> 
C289: =IF(AND($B289>=1,$B289<=17),INDEX('1組'!$B$6:$E$39,MATCH($B289,'1組'!$B$6:$B$39,0),4),"") ->  | H289: =IF(AND($I289>=1,$I289<=17),INDEX('1組'!$B$6:$E$39,MATCH($I289,'1組'!$B$6:$B$39,0),4),"") ->  | M289: =IF($A289="","",$B289+$B289+5) ->  | N289: =IF($A289="","",$I289+$I289+4) ->  | S289: =IF(AND($B289>=1,$B289<=17),OFFSET(INDEX('1組'!$B$6:$E$39,MATCH($B289,'1組'!$B$6:$B$39,0),2),1,0),"") ->  | T289: =IF($A289="","",$I289+$I289+5) ->  | U289: =IF($A289="","",$B289+$B289+4) ->  | Z289: =IF(AND($I289>=1,$I289<=17),OFFSET(INDEX('1組'!$B$6:$E$39,MATCH($I289,'1組'!$B$6:$B$39,0),2),1,0),"") -> 
C291: =IF(AND($B291>=1,$B291<=17),INDEX('1組'!$B$6:$E$39,MATCH($B291,'1組'!$B$6:$B$39,0),4),"") ->  | H291: =IF(AND($I291>=1,$I291<=17),INDEX('1組'!$B$6:$E$39,MATCH($I291,'1組'!$B$6:$B$39,0),4),"") ->  | M291: =IF($A291="","",$B291+$B291+5) ->  | N291: =IF($A291="","",$I291+$I291+4) ->  | S291: =IF(AND($B291>=1,$B291<=17),OFFSET(INDEX('1組'!$B$6:$E$39,MATCH($B291,'1組'!$B$6:$B$39,0),2),1,0),"") ->  | T291: =IF($A291="","",$I291+$I291+5) ->  | U291: =IF($A291="","",$B291+$B291+4) ->  | Z291: =IF(AND($I291>=1,$I291<=17),OFFSET(INDEX('1組'!$B$6:$E$39,MATCH($I291,'1組'!$B$6:$B$39,0),2),1,0),"") -> 
C293: =IF(AND($B293>=1,$B293<=17),INDEX('1組'!$B$6:$E$39,MATCH($B293,'1組'!$B$6:$B$39,0),4),"") ->  | H293: =IF(AND($I293>=1,$I293<=17),INDEX('1組'!$B$6:$E$39,MATCH($I293,'1組'!$B$6:$B$39,0),4),"") ->  | M293: =IF($A293="","",$B293+$B293+5) ->  | N293: =IF($A293="","",$I293+$I293+4) ->  | S293: =IF(AND($B293>=1,$B293<=17),OFFSET(INDEX('1組'!$B$6:$E$39,MATCH($B293,'1組'!$B$6:$B$39,0),2),1,0),"") ->  | T293: =IF($A293="","",$I293+$I293+5) ->  | U293: =IF($A293="","",$B293+$B293+4) ->  | Z293: =IF(AND($I293>=1,$I293<=17),OFFSET(INDEX('1組'!$B$6:$E$39,MATCH($I293,'1組'!$B$6:$B$39,0),2),1,0),"") -> 
C295: =IF(AND($B295>=1,$B295<=17),INDEX('1組'!$B$6:$E$39,MATCH($B295,'1組'!$B$6:$B$39,0),4),"") ->  | H295: =IF(AND($I295>=1,$I295<=17),INDEX('1組'!$B$6:$E$39,MATCH($I295,'1組'!$B$6:$B$39,0),4),"") ->  | M295: =IF($A295="","",$B295+$B295+5) ->  | N295: =IF($A295="","",$I295+$I295+4) ->  | S295: =IF(AND($B295>=1,$B295<=17),OFFSET(INDEX('1組'!$B$6:$E$39,MATCH($B295,'1組'!$B$6:$B$39,0),2),1,0),"") ->  | T295: =IF($A295="","",$I295+$I295+5) ->  | U295: =IF($A295="","",$B295+$B295+4) ->  | Z295: =IF(AND($I295>=1,$I295<=17),OFFSET(INDEX('1組'!$B$6:$E$39,MATCH($I295,'1組'!$B$6:$B$39,0),2),1,0),"") -> 
C297: =IF(AND($B297>=1,$B297<=17),INDEX('1組'!$B$6:$E$39,MATCH($B297,'1組'!$B$6:$B$39,0),4),"") ->  | H297: =IF(AND($I297>=1,$I297<=17),INDEX('1組'!$B$6:$E$39,MATCH($I297,'1組'!$B$6:$B$39,0),4),"") ->  | M297: =IF($A297="","",$B297+$B297+5) ->  | N297: =IF($A297="","",$I297+$I297+4) ->  | S297: =IF(AND($B297>=1,$B297<=17),OFFSET(INDEX('1組'!$B$6:$E$39,MATCH($B297,'1組'!$B$6:$B$39,0),2),1,0),"") ->  | T297: =IF($A297="","",$I297+$I297+5) ->  | U297: =IF($A297="","",$B297+$B297+4) ->  | Z297: =IF(AND($I297>=1,$I297<=17),OFFSET(INDEX('1組'!$B$6:$E$39,MATCH($I297,'1組'!$B$6:$B$39,0),2),1,0),"") -> 
C299: =IF(AND($B299>=1,$B299<=17),INDEX('1組'!$B$6:$E$39,MATCH($B299,'1組'!$B$6:$B$39,0),4),"") ->  | H299: =IF(AND($I299>=1,$I299<=17),INDEX('1組'!$B$6:$E$39,MATCH($I299,'1組'!$B$6:$B$39,0),4),"") ->  | M299: =IF($A299="","",$B299+$B299+5) ->  | N299: =IF($A299="","",$I299+$I299+4) ->  | S299: =IF(AND($B299>=1,$B299<=17),OFFSET(INDEX('1組'!$B$6:$E$39,MATCH($B299,'1組'!$B$6:$B$39,0),2),1,0),"") ->  | T299: =IF($A299="","",$I299+$I299+5) ->  | U299: =IF($A299="","",$B299+$B299+4) ->  | Z299: =IF(AND($I299>=1,$I299<=17),OFFSET(INDEX('1組'!$B$6:$E$39,MATCH($I299,'1組'!$B$6:$B$39,0),2),1,0),"") -> 
C301: =IF(AND($B301>=1,$B301<=17),INDEX('1組'!$B$6:$E$39,MATCH($B301,'1組'!$B$6:$B$39,0),4),"") ->  | H301: =IF(AND($I301>=1,$I301<=17),INDEX('1組'!$B$6:$E$39,MATCH($I301,'1組'!$B$6:$B$39,0),4),"") ->  | M301: =IF($A301="","",$B301+$B301+5) ->  | N301: =IF($A301="","",$I301+$I301+4) ->  | S301: =IF(AND($B301>=1,$B301<=17),OFFSET(INDEX('1組'!$B$6:$E$39,MATCH($B301,'1組'!$B$6:$B$39,0),2),1,0),"") ->  | T301: =IF($A301="","",$I301+$I301+5) ->  | U301: =IF($A301="","",$B301+$B301+4) ->  | Z301: =IF(AND($I301>=1,$I301<=17),OFFSET(INDEX('1組'!$B$6:$E$39,MATCH($I301,'1組'!$B$6:$B$39,0),2),1,0),"") -> 
C303: =IF(AND($B303>=1,$B303<=17),INDEX('1組'!$B$6:$E$39,MATCH($B303,'1組'!$B$6:$B$39,0),4),"") ->  | H303: =IF(AND($I303>=1,$I303<=17),INDEX('1組'!$B$6:$E$39,MATCH($I303,'1組'!$B$6:$B$39,0),4),"") ->  | M303: =IF($A303="","",$B303+$B303+5) ->  | N303: =IF($A303="","",$I303+$I303+4) ->  | S303: =IF(AND($B303>=1,$B303<=17),OFFSET(INDEX('1組'!$B$6:$E$39,MATCH($B303,'1組'!$B$6:$B$39,0),2),1,0),"") ->  | T303: =IF($A303="","",$I303+$I303+5) ->  | U303: =IF($A303="","",$B303+$B303+4) ->  | Z303: =IF(AND($I303>=1,$I303<=17),OFFSET(INDEX('1組'!$B$6:$E$39,MATCH($I303,'1組'!$B$6:$B$39,0),2),1,0),"") -> 
C305: =IF(AND($B305>=1,$B305<=17),INDEX('1組'!$B$6:$E$39,MATCH($B305,'1組'!$B$6:$B$39,0),4),"") ->  | H305: =IF(AND($I305>=1,$I305<=17),INDEX('1組'!$B$6:$E$39,MATCH($I305,'1組'!$B$6:$B$39,0),4),"") ->  | M305: =IF($A305="","",$B305+$B305+5) ->  | N305: =IF($A305="","",$I305+$I305+4) ->  | S305: =IF(AND($B305>=1,$B305<=17),OFFSET(INDEX('1組'!$B$6:$E$39,MATCH($B305,'1組'!$B$6:$B$39,0),2),1,0),"") ->  | T305: =IF($A305="","",$I305+$I305+5) ->  | U305: =IF($A305="","",$B305+$B305+4) ->  | Z305: =IF(AND($I305>=1,$I305<=17),OFFSET(INDEX('1組'!$B$6:$E$39,MATCH($I305,'1組'!$B$6:$B$39,0),2),1,0),"") -> 
C307: =IF(AND($B307>=1,$B307<=17),INDEX('1組'!$B$6:$E$39,MATCH($B307,'1組'!$B$6:$B$39,0),4),"") ->  | H307: =IF(AND($I307>=1,$I307<=17),INDEX('1組'!$B$6:$E$39,MATCH($I307,'1組'!$B$6:$B$39,0),4),"") ->  | M307: =IF($A307="","",$B307+$B307+5) ->  | N307: =IF($A307="","",$I307+$I307+4) ->  | S307: =IF(AND($B307>=1,$B307<=17),OFFSET(INDEX('1組'!$B$6:$E$39,MATCH($B307,'1組'!$B$6:$B$39,0),2),1,0),"") ->  | T307: =IF($A307="","",$I307+$I307+5) ->  | U307: =IF($A307="","",$B307+$B307+4) ->  | Z307: =IF(AND($I307>=1,$I307<=17),OFFSET(INDEX('1組'!$B$6:$E$39,MATCH($I307,'1組'!$B$6:$B$39,0),2),1,0),"") -> 
C309: =IF(AND($B309>=1,$B309<=17),INDEX('1組'!$B$6:$E$39,MATCH($B309,'1組'!$B$6:$B$39,0),4),"") ->  | H309: =IF(AND($I309>=1,$I309<=17),INDEX('1組'!$B$6:$E$39,MATCH($I309,'1組'!$B$6:$B$39,0),4),"") ->  | M309: =IF($A309="","",$B309+$B309+5) ->  | N309: =IF($A309="","",$I309+$I309+4) ->  | S309: =IF(AND($B309>=1,$B309<=17),OFFSET(INDEX('1組'!$B$6:$E$39,MATCH($B309,'1組'!$B$6:$B$39,0),2),1,0),"") ->  | T309: =IF($A309="","",$I309+$I309+5) ->  | U309: =IF($A309="","",$B309+$B309+4) ->  | Z309: =IF(AND($I309>=1,$I309<=17),OFFSET(INDEX('1組'!$B$6:$E$39,MATCH($I309,'1組'!$B$6:$B$39,0),2),1,0),"") -> 
C311: =IF(AND($B311>=1,$B311<=17),INDEX('1組'!$B$6:$E$39,MATCH($B311,'1組'!$B$6:$B$39,0),4),"") ->  | H311: =IF(AND($I311>=1,$I311<=17),INDEX('1組'!$B$6:$E$39,MATCH($I311,'1組'!$B$6:$B$39,0),4),"") ->  | M311: =IF($A311="","",$B311+$B311+5) ->  | N311: =IF($A311="","",$I311+$I311+4) ->  | S311: =IF(AND($B311>=1,$B311<=17),OFFSET(INDEX('1組'!$B$6:$E$39,MATCH($B311,'1組'!$B$6:$B$39,0),2),1,0),"") ->  | T311: =IF($A311="","",$I311+$I311+5) ->  | U311: =IF($A311="","",$B311+$B311+4) ->  | Z311: =IF(AND($I311>=1,$I311<=17),OFFSET(INDEX('1組'!$B$6:$E$39,MATCH($I311,'1組'!$B$6:$B$39,0),2),1,0),"") -> 
C313: =IF(AND($B313>=1,$B313<=17),INDEX('1組'!$B$6:$E$39,MATCH($B313,'1組'!$B$6:$B$39,0),4),"") ->  | H313: =IF(AND($I313>=1,$I313<=17),INDEX('1組'!$B$6:$E$39,MATCH($I313,'1組'!$B$6:$B$39,0),4),"") ->  | M313: =IF($A313="","",$B313+$B313+5) ->  | N313: =IF($A313="","",$I313+$I313+4) ->  | S313: =IF(AND($B313>=1,$B313<=17),OFFSET(INDEX('1組'!$B$6:$E$39,MATCH($B313,'1組'!$B$6:$B$39,0),2),1,0),"") ->  | T313: =IF($A313="","",$I313+$I313+5) ->  | U313: =IF($A313="","",$B313+$B313+4) ->  | Z313: =IF(AND($I313>=1,$I313<=17),OFFSET(INDEX('1組'!$B$6:$E$39,MATCH($I313,'1組'!$B$6:$B$39,0),2),1,0),"") -> 
C315: =IF(AND($B315>=1,$B315<=17),INDEX('1組'!$B$6:$E$39,MATCH($B315,'1組'!$B$6:$B$39,0),4),"") ->  | H315: =IF(AND($I315>=1,$I315<=17),INDEX('1組'!$B$6:$E$39,MATCH($I315,'1組'!$B$6:$B$39,0),4),"") ->  | M315: =IF($A315="","",$B315+$B315+5) ->  | N315: =IF($A315="","",$I315+$I315+4) ->  | S315: =IF(AND($B315>=1,$B315<=17),OFFSET(INDEX('1組'!$B$6:$E$39,MATCH($B315,'1組'!$B$6:$B$39,0),2),1,0),"") ->  | T315: =IF($A315="","",$I315+$I315+5) ->  | U315: =IF($A315="","",$B315+$B315+4) ->  | Z315: =IF(AND($I315>=1,$I315<=17),OFFSET(INDEX('1組'!$B$6:$E$39,MATCH($I315,'1組'!$B$6:$B$39,0),2),1,0),"") -> 
C317: =IF(AND($B317>=1,$B317<=17),INDEX('1組'!$B$6:$E$39,MATCH($B317,'1組'!$B$6:$B$39,0),4),"") ->  | H317: =IF(AND($I317>=1,$I317<=17),INDEX('1組'!$B$6:$E$39,MATCH($I317,'1組'!$B$6:$B$39,0),4),"") ->  | M317: =IF($A317="","",$B317+$B317+5) ->  | N317: =IF($A317="","",$I317+$I317+4) ->  | S317: =IF(AND($B317>=1,$B317<=17),OFFSET(INDEX('1組'!$B$6:$E$39,MATCH($B317,'1組'!$B$6:$B$39,0),2),1,0),"") ->  | T317: =IF($A317="","",$I317+$I317+5) ->  | U317: =IF($A317="","",$B317+$B317+4) ->  | Z317: =IF(AND($I317>=1,$I317<=17),OFFSET(INDEX('1組'!$B$6:$E$39,MATCH($I317,'1組'!$B$6:$B$39,0),2),1,0),"") -> 
C319: =IF(AND($B319>=1,$B319<=17),INDEX('1組'!$B$6:$E$39,MATCH($B319,'1組'!$B$6:$B$39,0),4),"") ->  | H319: =IF(AND($I319>=1,$I319<=17),INDEX('1組'!$B$6:$E$39,MATCH($I319,'1組'!$B$6:$B$39,0),4),"") ->  | M319: =IF($A319="","",$B319+$B319+5) ->  | N319: =IF($A319="","",$I319+$I319+4) ->  | S319: =IF(AND($B319>=1,$B319<=17),OFFSET(INDEX('1組'!$B$6:$E$39,MATCH($B319,'1組'!$B$6:$B$39,0),2),1,0),"") ->  | T319: =IF($A319="","",$I319+$I319+5) ->  | U319: =IF($A319="","",$B319+$B319+4) ->  | Z319: =IF(AND($I319>=1,$I319<=17),OFFSET(INDEX('1組'!$B$6:$E$39,MATCH($I319,'1組'!$B$6:$B$39,0),2),1,0),"") -> 
C321: =IF(AND($B321>=1,$B321<=17),INDEX('1組'!$B$6:$E$39,MATCH($B321,'1組'!$B$6:$B$39,0),4),"") ->  | H321: =IF(AND($I321>=1,$I321<=17),INDEX('1組'!$B$6:$E$39,MATCH($I321,'1組'!$B$6:$B$39,0),4),"") ->  | M321: =IF($A321="","",$B321+$B321+5) ->  | N321: =IF($A321="","",$I321+$I321+4) ->  | S321: =IF(AND($B321>=1,$B321<=17),OFFSET(INDEX('1組'!$B$6:$E$39,MATCH($B321,'1組'!$B$6:$B$39,0),2),1,0),"") ->  | T321: =IF($A321="","",$I321+$I321+5) ->  | U321: =IF($A321="","",$B321+$B321+4) ->  | Z321: =IF(AND($I321>=1,$I321<=17),OFFSET(INDEX('1組'!$B$6:$E$39,MATCH($I321,'1組'!$B$6:$B$39,0),2),1,0),"") -> 
C323: =IF(AND($B323>=1,$B323<=17),INDEX('1組'!$B$6:$E$39,MATCH($B323,'1組'!$B$6:$B$39,0),4),"") ->  | H323: =IF(AND($I323>=1,$I323<=17),INDEX('1組'!$B$6:$E$39,MATCH($I323,'1組'!$B$6:$B$39,0),4),"") ->  | M323: =IF($A323="","",$B323+$B323+5) ->  | N323: =IF($A323="","",$I323+$I323+4) ->  | S323: =IF(AND($B323>=1,$B323<=17),OFFSET(INDEX('1組'!$B$6:$E$39,MATCH($B323,'1組'!$B$6:$B$39,0),2),1,0),"") ->  | T323: =IF($A323="","",$I323+$I323+5) ->  | U323: =IF($A323="","",$B323+$B323+4) ->  | Z323: =IF(AND($I323>=1,$I323<=17),OFFSET(INDEX('1組'!$B$6:$E$39,MATCH($I323,'1組'!$B$6:$B$39,0),2),1,0),"") -> 
C325: =IF(AND($B325>=1,$B325<=17),INDEX('1組'!$B$6:$E$39,MATCH($B325,'1組'!$B$6:$B$39,0),4),"") ->  | H325: =IF(AND($I325>=1,$I325<=17),INDEX('1組'!$B$6:$E$39,MATCH($I325,'1組'!$B$6:$B$39,0),4),"") ->  | M325: =IF($A325="","",$B325+$B325+5) ->  | N325: =IF($A325="","",$I325+$I325+4) ->  | S325: =IF(AND($B325>=1,$B325<=17),OFFSET(INDEX('1組'!$B$6:$E$39,MATCH($B325,'1組'!$B$6:$B$39,0),2),1,0),"") ->  | T325: =IF($A325="","",$I325+$I325+5) ->  | U325: =IF($A325="","",$B325+$B325+4) ->  | Z325: =IF(AND($I325>=1,$I325<=17),OFFSET(INDEX('1組'!$B$6:$E$39,MATCH($I325,'1組'!$B$6:$B$39,0),2),1,0),"") -> 
C327: =IF(AND($B327>=1,$B327<=17),INDEX('1組'!$B$6:$E$39,MATCH($B327,'1組'!$B$6:$B$39,0),4),"") ->  | H327: =IF(AND($I327>=1,$I327<=17),INDEX('1組'!$B$6:$E$39,MATCH($I327,'1組'!$B$6:$B$39,0),4),"") ->  | M327: =IF($A327="","",$B327+$B327+5) ->  | N327: =IF($A327="","",$I327+$I327+4) ->  | S327: =IF(AND($B327>=1,$B327<=17),OFFSET(INDEX('1組'!$B$6:$E$39,MATCH($B327,'1組'!$B$6:$B$39,0),2),1,0),"") ->  | T327: =IF($A327="","",$I327+$I327+5) ->  | U327: =IF($A327="","",$B327+$B327+4) ->  | Z327: =IF(AND($I327>=1,$I327<=17),OFFSET(INDEX('1組'!$B$6:$E$39,MATCH($I327,'1組'!$B$6:$B$39,0),2),1,0),"") -> 
C329: =IF(AND($B329>=1,$B329<=17),INDEX('1組'!$B$6:$E$39,MATCH($B329,'1組'!$B$6:$B$39,0),4),"") ->  | H329: =IF(AND($I329>=1,$I329<=17),INDEX('1組'!$B$6:$E$39,MATCH($I329,'1組'!$B$6:$B$39,0),4),"") ->  | M329: =IF($A329="","",$B329+$B329+5) ->  | N329: =IF($A329="","",$I329+$I329+4) ->  | S329: =IF(AND($B329>=1,$B329<=17),OFFSET(INDEX('1組'!$B$6:$E$39,MATCH($B329,'1組'!$B$6:$B$39,0),2),1,0),"") ->  | T329: =IF($A329="","",$I329+$I329+5) ->  | U329: =IF($A329="","",$B329+$B329+4) ->  | Z329: =IF(AND($I329>=1,$I329<=17),OFFSET(INDEX('1組'!$B$6:$E$39,MATCH($I329,'1組'!$B$6:$B$39,0),2),1,0),"") -> 

Sheet ラベル
B2: 2 - 4 持ち点：180 | C2: 第1節 (1) 持ち点：180 | F2: 3 - 6 持ち点：180 | G2: 第1節 (2) 持ち点：180 | J2: 5 - 8 持ち点：180 | K2: 第1節 (3) 持ち点：180 | N2: 10 - 7 持ち点：180 | O2: 第1節 (4) 持ち点：180
B3: 近藤 | C3: 山田 晋之 | F3: 吉向 | G3: 長谷川 | J3: 山田晃司 | K3: 金澤 | N3: 岩本 | O3: 植田
B6: HR | C6: HR | F6: HR | G6: HR | J6: HR | K6: HR | N6: HR | O6: HR
B7: レフリー | F7: レフリー | J7: レフリー | N7: レフリー
B10: 9 - 12 持ち点：140 | C10: 第1節 (5) 持ち点：180 | F10: 11 - 13 持ち点：180 | G10: 第1節 (6) 持ち点：180 | J10: 4 - 1 持ち点：180 | K10: 第1節 (7) 持ち点：180 | N10: 2 - 6 持ち点：180 | O10: 第1節 (8) 持ち点：180
B11: 宮野 | C11: 斎藤裕児 | F11: 水田 | G11: 鷲尾 | J11: 山田 晋之 | K11: 白戸 | N11: 近藤 | O11: 長谷川
B14: HR | C14: HR | F14: HR | G14: HR | J14: HR | K14: HR | N14: HR | O14: HR
B15: レフリー | F15: レフリー | J15: レフリー | N15: レフリー
B18: 3 - 8 持ち点：180 | C18: 第1節 (9) 持ち点：180 | F18: 5 - 10 持ち点：180 | G18: 第1節 (10) 持ち点：180 | J18: 7 - 12 持ち点：180 | K18: 第1節 (11) 持ち点：180 | N18: 9 - 13 持ち点：140 | O18: 第1節 (12) 持ち点：180
B19: 吉向 | C19: 金澤 | F19: 山田晃司 | G19: 岩本 | J19: 植田 | K19: 斎藤裕児 | N19: 宮野 | O19: 鷲尾
B22: HR | C22: HR | F22: HR | G22: HR | J22: HR | K22: HR | N22: HR | O22: HR
B23: レフリー | F23: レフリー | J23: レフリー | N23: レフリー
B26: 1 - 11 持ち点：180 | C26: 第1節 (13) 持ち点：180 | F26: 4 - 6 持ち点：180 | G26: 第2節 (14) 持ち点：180 | J26: 2 - 8 持ち点：180 | K26: 第2節 (15) 持ち点：180 | N26: 3 - 10 持ち点：180 | O26: 第2節 (16) 持ち点：180
B27: 白戸 | C27: 水田 | F27: 山田 晋之 | G27: 長谷川 | J27: 近藤 | K27: 金澤 | N27: 吉向 | O27: 岩本
B30: HR | C30: HR | F30: HR | G30: HR | J30: HR | K30: HR | N30: HR | O30: HR
B31: レフリー | F31: レフリー | J31: レフリー | N31: レフリー
B34: 5 - 12 持ち点：180 | C34: 第2節 (17) 持ち点：180 | F34: 7 - 13 持ち点：180 | G34: 第2節 (18) 持ち点：180 | J34: 9 - 11 持ち点：140 | K34: 第2節 (19) 持ち点：180 | N34: 6 - 1 持ち点：180 | O34: 第2節 (20) 持ち点：180
B35: 山田晃司 | C35: 斎藤裕児 | F35: 植田 | G35: 鷲尾 | J35: 宮野 | K35: 水田 | N35: 長谷川 | O35: 白戸
B38: HR | C38: HR | F38: HR | G38: HR | J38: HR | K38: HR | N38: HR | O38: HR
B39: レフリー | F39: レフリー | J39: レフリー | N39: レフリー
B42: 4 - 8 持ち点：180 | C42: 第2節 (21) 持ち点：180 | F42: 2 - 10 持ち点：180 | G42: 第2節 (22) 持ち点：180 | J42: 3 - 12 持ち点：180 | K42: 第2節 (23) 持ち点：180 | N42: 5 - 13 持ち点：180 | O42: 第2節 (24) 持ち点：180
B43: 山田 晋之 | C43: 金澤 | F43: 近藤 | G43: 岩本 | J43: 吉向 | K43: 斎藤裕児 | N43: 山田晃司 | O43: 鷲尾
B46: HR | C46: HR | F46: HR | G46: HR | J46: HR | K46: HR | N46: HR | O46: HR
B47: レフリー | F47: レフリー | J47: レフリー | N47: レフリー
B50: 7 - 11 持ち点：180 | C50: 第2節 (25) 持ち点：180 | F50: 1 - 9 持ち点：180 | G50: 第2節 (26) 持ち点：140 | J50: 6 - 8 持ち点：180 | K50: 第3節 (27) 持ち点：180 | N50: 4 - 10 持ち点：180 | O50: 第3節 (28) 持ち点：180
B51: 植田 | C51: 水田 | F51: 白戸 | G51: 宮野 | J51: 長谷川 | K51: 金澤 | N51: 山田 晋之 | O51: 岩本
B54: HR | C54: HR | F54: HR | G54: HR | J54: HR | K54: HR | N54: HR | O54: HR
B55: レフリー | F55: レフリー | J55: レフリー | N55: レフリー
B58: 2 - 12 持ち点：180 | C58: 第3節 (29) 持ち点：180 | F58: 3 - 13 持ち点：180 | G58: 第3節 (30) 持ち点：180 | J58: 5 - 11 持ち点：180 | K58: 第3節 (31) 持ち点：180 | N58: 7 - 9 持ち点：180 | O58: 第3節 (32) 持ち点：140
B59: 近藤 | C59: 斎藤裕児 | F59: 吉向 | G59: 鷲尾 | J59: 山田晃司 | K59: 水田 | N59: 植田 | O59: 宮野
B62: HR | C62: HR | F62: HR | G62: HR | J62: HR | K62: HR | N62: HR | O62: HR
B63: レフリー | F63: レフリー | J63: レフリー | N63: レフリー
B66: 8 - 1 持ち点：180 | C66: 第3節 (33) 持ち点：180 | F66: 6 - 10 持ち点：180 | G66: 第3節 (34) 持ち点：180 | J66: 4 - 12 持ち点：180 | K66: 第3節 (35) 持ち点：180 | N66: 2 - 13 持ち点：180 | O66: 第3節 (36) 持ち点：180
B67: 金澤 | C67: 白戸 | F67: 長谷川 | G67: 岩本 | J67: 山田 晋之 | K67: 斎藤裕児 | N67: 近藤 | O67: 鷲尾
B70: HR | C70: HR | F70: HR | G70: HR | J70: HR | K70: HR | N70: HR | O70: HR
B71: レフリー | F71: レフリー | J71: レフリー | N71: レフリー
B74: 3 - 11 持ち点：180 | C74: 第3節 (37) 持ち点：180 | F74: 5 - 9 持ち点：180 | G74: 第3節 (38) 持ち点：140 | J74: 1 - 7 持ち点：180 | K74: 第3節 (39) 持ち点：180
B75: 吉向 | C75: 水田 | F75: 山田晃司 | G75: 宮野 | J75: 白戸 | K75: 植田
B78: HR | C78: HR | F78: HR | G78: HR | J78: HR | K78: HR
B79: レフリー | F79: レフリー | J79: レフリー

Sheet 結果
A1: 順位 | B1: 名 前 | C1: W | D1: L | E1: TP | F1: LP | G1: HR
A2: 1 | B2: =IF(ISERROR(INDEX('1組'!$E$6:$AT$39,MATCH($A2,'1組'!$AS$6:$AS$39,0),1)),"",INDEX('1組'!$E$6:$AT$39,MATCH($A2,'1組'!$AS$6:$AS$39,0),1)) -> 白戸 | C2: =IF(ISERROR(INDEX('1組'!$E$6:$AT$39,MATCH($A2,'1組'!$AS$6:$AS$39,0),36)),"",INDEX('1組'!$E$6:$AT$39,MATCH($A2,'1組'!$AS$6:$AS$39,0),36)) -> 5 | D2: =IF(ISERROR(INDEX('1組'!$E$6:$AT$39,MATCH($A2,'1組'!$AS$6:$AS$39,0),37)),"",INDEX('1組'!$E$6:$AT$39,MATCH($A2,'1組'!$AS$6:$AS$39,0),37)) -> 1 | E2: =IF(ISERROR(INDEX('1組'!$E$6:$AT$39,MATCH($A2,'1組'!$AS$6:$AS$39,0),38)),"",INDEX('1組'!$E$6:$AT$39,MATCH($A2,'1組'!$AS$6:$AS$39,0),38)) -> 1073 | F2: =IF(ISERROR(INDEX('1組'!$E$6:$AT$39,MATCH($A2,'1組'!$AS$6:$AS$39,0),39)),"",INDEX('1組'!$E$6:$AT$39,MATCH($A2,'1組'!$AS$6:$AS$39,0),39)) -> 263 | G2: =IF(ISERROR(INDEX('1組'!$E$6:$AT$39,MATCH($A2,'1組'!$AS$6:$AS$39,0),42)),"",INDEX('1組'!$E$6:$AT$39,MATCH($A2,'1組'!$AS$6:$AS$39,0),42)) -> 110
A3: =A2+1 -> 2 | B3: =IF(ISERROR(INDEX('1組'!$E$6:$AS$39,MATCH($A3,'1組'!$AS$6:$AS$39,0),1)),"",INDEX('1組'!$E$6:$AS$39,MATCH($A3,'1組'!$AS$6:$AS$39,0),1)) -> 吉向 | C3: =IF(ISERROR(INDEX('1組'!$E$6:$AT$39,MATCH($A3,'1組'!$AS$6:$AS$39,0),36)),"",INDEX('1組'!$E$6:$AT$39,MATCH($A3,'1組'!$AS$6:$AS$39,0),36)) -> 5 | D3: =IF(ISERROR(INDEX('1組'!$E$6:$AT$39,MATCH($A3,'1組'!$AS$6:$AS$39,0),37)),"",INDEX('1組'!$E$6:$AT$39,MATCH($A3,'1組'!$AS$6:$AS$39,0),37)) -> 1 | E3: =IF(ISERROR(INDEX('1組'!$E$6:$AT$39,MATCH($A3,'1組'!$AS$6:$AS$39,0),38)),"",INDEX('1組'!$E$6:$AT$39,MATCH($A3,'1組'!$AS$6:$AS$39,0),38)) -> 1065 | F3: =IF(ISERROR(INDEX('1組'!$E$6:$AT$39,MATCH($A3,'1組'!$AS$6:$AS$39,0),39)),"",INDEX('1組'!$E$6:$AT$39,MATCH($A3,'1組'!$AS$6:$AS$39,0),39)) -> 316 | G3: =IF(ISERROR(INDEX('1組'!$E$6:$AT$39,MATCH($A3,'1組'!$AS$6:$AS$39,0),42)),"",INDEX('1組'!$E$6:$AT$39,MATCH($A3,'1組'!$AS$6:$AS$39,0),42)) -> 105
A4: =A3+1 -> 3 | B4: =IF(ISERROR(INDEX('1組'!$E$6:$AS$39,MATCH($A4,'1組'!$AS$6:$AS$39,0),1)),"",INDEX('1組'!$E$6:$AS$39,MATCH($A4,'1組'!$AS$6:$AS$39,0),1)) -> 山田晃司 | C4: =IF(ISERROR(INDEX('1組'!$E$6:$AT$39,MATCH($A4,'1組'!$AS$6:$AS$39,0),36)),"",INDEX('1組'!$E$6:$AT$39,MATCH($A4,'1組'!$AS$6:$AS$39,0),36)) -> 5 | D4: =IF(ISERROR(INDEX('1組'!$E$6:$AT$39,MATCH($A4,'1組'!$AS$6:$AS$39,0),37)),"",INDEX('1組'!$E$6:$AT$39,MATCH($A4,'1組'!$AS$6:$AS$39,0),37)) -> 1 | E4: =IF(ISERROR(INDEX('1組'!$E$6:$AT$39,MATCH($A4,'1組'!$AS$6:$AS$39,0),38)),"",INDEX('1組'!$E$6:$AT$39,MATCH($A4,'1組'!$AS$6:$AS$39,0),38)) -> 1018 | F4: =IF(ISERROR(INDEX('1組'!$E$6:$AT$39,MATCH($A4,'1組'!$AS$6:$AS$39,0),39)),"",INDEX('1組'!$E$6:$AT$39,MATCH($A4,'1組'!$AS$6:$AS$39,0),39)) -> 648 | G4: =IF(ISERROR(INDEX('1組'!$E$6:$AT$39,MATCH($A4,'1組'!$AS$6:$AS$39,0),42)),"",INDEX('1組'!$E$6:$AT$39,MATCH($A4,'1組'!$AS$6:$AS$39,0),42)) -> 0
A5: 4 | B5: =IF(ISERROR(INDEX('1組'!$E$6:$AS$39,MATCH($A5,'1組'!$AS$6:$AS$39,0),1)),"",INDEX('1組'!$E$6:$AS$39,MATCH($A5,'1組'!$AS$6:$AS$39,0),1)) -> 斎藤裕児 | C5: =IF(ISERROR(INDEX('1組'!$E$6:$AT$39,MATCH($A5,'1組'!$AS$6:$AS$39,0),36)),"",INDEX('1組'!$E$6:$AT$39,MATCH($A5,'1組'!$AS$6:$AS$39,0),36)) -> 5 | D5: =IF(ISERROR(INDEX('1組'!$E$6:$AT$39,MATCH($A5,'1組'!$AS$6:$AS$39,0),37)),"",INDEX('1組'!$E$6:$AT$39,MATCH($A5,'1組'!$AS$6:$AS$39,0),37)) -> 1 | E5: =IF(ISERROR(INDEX('1組'!$E$6:$AT$39,MATCH($A5,'1組'!$AS$6:$AS$39,0),38)),"",INDEX('1組'!$E$6:$AT$39,MATCH($A5,'1組'!$AS$6:$AS$39,0),38)) -> 964 | F5: =IF(ISERROR(INDEX('1組'!$E$6:$AT$39,MATCH($A5,'1組'!$AS$6:$AS$39,0),39)),"",INDEX('1組'!$E$6:$AT$39,MATCH($A5,'1組'!$AS$6:$AS$39,0),39)) -> 406 | G5: =IF(ISERROR(INDEX('1組'!$E$6:$AT$39,MATCH($A5,'1組'!$AS$6:$AS$39,0),42)),"",INDEX('1組'!$E$6:$AT$39,MATCH($A5,'1組'!$AS$6:$AS$39,0),42)) -> 0
A6: 5 | B6: =IF(ISERROR(INDEX('1組'!$E$6:$AS$39,MATCH($A6,'1組'!$AS$6:$AS$39,0),1)),"",INDEX('1組'!$E$6:$AS$39,MATCH($A6,'1組'!$AS$6:$AS$39,0),1)) -> 近藤 | C6: =IF(ISERROR(INDEX('1組'!$E$6:$AT$39,MATCH($A6,'1組'!$AS$6:$AS$39,0),36)),"",INDEX('1組'!$E$6:$AT$39,MATCH($A6,'1組'!$AS$6:$AS$39,0),36)) -> 4 | D6: =IF(ISERROR(INDEX('1組'!$E$6:$AT$39,MATCH($A6,'1組'!$AS$6:$AS$39,0),37)),"",INDEX('1組'!$E$6:$AT$39,MATCH($A6,'1組'!$AS$6:$AS$39,0),37)) -> 2 | E6: =IF(ISERROR(INDEX('1組'!$E$6:$AT$39,MATCH($A6,'1組'!$AS$6:$AS$39,0),38)),"",INDEX('1組'!$E$6:$AT$39,MATCH($A6,'1組'!$AS$6:$AS$39,0),38)) -> 829 | F6: =IF(ISERROR(INDEX('1組'!$E$6:$AT$39,MATCH($A6,'1組'!$AS$6:$AS$39,0),39)),"",INDEX('1組'!$E$6:$AT$39,MATCH($A6,'1組'!$AS$6:$AS$39,0),39)) -> 343 | G6: 0
A7: 6 | B7: =IF(ISERROR(INDEX('1組'!$E$6:$AS$39,MATCH($A7,'1組'!$AS$6:$AS$39,0),1)),"",INDEX('1組'!$E$6:$AS$39,MATCH($A7,'1組'!$AS$6:$AS$39,0),1)) -> 植田 | C7: =IF(ISERROR(INDEX('1組'!$E$6:$AT$39,MATCH($A7,'1組'!$AS$6:$AS$39,0),36)),"",INDEX('1組'!$E$6:$AT$39,MATCH($A7,'1組'!$AS$6:$AS$39,0),36)) -> 3 | D7: =IF(ISERROR(INDEX('1組'!$E$6:$AT$39,MATCH($A7,'1組'!$AS$6:$AS$39,0),37)),"",INDEX('1組'!$E$6:$AT$39,MATCH($A7,'1組'!$AS$6:$AS$39,0),37)) -> 3 | E7: =IF(ISERROR(INDEX('1組'!$E$6:$AT$39,MATCH($A7,'1組'!$AS$6:$AS$39,0),38)),"",INDEX('1組'!$E$6:$AT$39,MATCH($A7,'1組'!$AS$6:$AS$39,0),38)) -> 902 | F7: =IF(ISERROR(INDEX('1組'!$E$6:$AT$39,MATCH($A7,'1組'!$AS$6:$AS$39,0),39)),"",INDEX('1組'!$E$6:$AT$39,MATCH($A7,'1組'!$AS$6:$AS$39,0),39)) -> 393 | G7: =IF(ISERROR(INDEX('1組'!$E$6:$AT$39,MATCH($A7,'1組'!$AS$6:$AS$39,0),42)),"",INDEX('1組'!$E$6:$AT$39,MATCH($A7,'1組'!$AS$6:$AS$39,0),42)) -> 0
A8: 7 | B8: =IF(ISERROR(INDEX('1組'!$E$6:$AS$39,MATCH($A8,'1組'!$AS$6:$AS$39,0),1)),"",INDEX('1組'!$E$6:$AS$39,MATCH($A8,'1組'!$AS$6:$AS$39,0),1)) -> 岩本 | C8: =IF(ISERROR(INDEX('1組'!$E$6:$AT$39,MATCH($A8,'1組'!$AS$6:$AS$39,0),36)),"",INDEX('1組'!$E$6:$AT$39,MATCH($A8,'1組'!$AS$6:$AS$39,0),36)) -> 2 | D8: =IF(ISERROR(INDEX('1組'!$E$6:$AT$39,MATCH($A8,'1組'!$AS$6:$AS$39,0),37)),"",INDEX('1組'!$E$6:$AT$39,MATCH($A8,'1組'!$AS$6:$AS$39,0),37)) -> 4 | E8: =IF(ISERROR(INDEX('1組'!$E$6:$AT$39,MATCH($A8,'1組'!$AS$6:$AS$39,0),38)),"",INDEX('1組'!$E$6:$AT$39,MATCH($A8,'1組'!$AS$6:$AS$39,0),38)) -> 860 | F8: =IF(ISERROR(INDEX('1組'!$E$6:$AT$39,MATCH($A8,'1組'!$AS$6:$AS$39,0),39)),"",INDEX('1組'!$E$6:$AT$39,MATCH($A8,'1組'!$AS$6:$AS$39,0),39)) -> 229 | G8: =IF(ISERROR(INDEX('1組'!$E$6:$AT$39,MATCH($A8,'1組'!$AS$6:$AS$39,0),42)),"",INDEX('1組'!$E$6:$AT$39,MATCH($A8,'1組'!$AS$6:$AS$39,0),42)) -> 0
A9: 8 | B9: =IF(ISERROR(INDEX('1組'!$E$6:$AS$39,MATCH($A9,'1組'!$AS$6:$AS$39,0),1)),"",INDEX('1組'!$E$6:$AS$39,MATCH($A9,'1組'!$AS$6:$AS$39,0),1)) -> 金澤 | C9: =IF(ISERROR(INDEX('1組'!$E$6:$AT$39,MATCH($A9,'1組'!$AS$6:$AS$39,0),36)),"",INDEX('1組'!$E$6:$AT$39,MATCH($A9,'1組'!$AS$6:$AS$39,0),36)) -> 2 | D9: =IF(ISERROR(INDEX('1組'!$E$6:$AT$39,MATCH($A9,'1組'!$AS$6:$AS$39,0),37)),"",INDEX('1組'!$E$6:$AT$39,MATCH($A9,'1組'!$AS$6:$AS$39,0),37)) -> 4 | E9: =IF(ISERROR(INDEX('1組'!$E$6:$AT$39,MATCH($A9,'1組'!$AS$6:$AS$39,0),38)),"",INDEX('1組'!$E$6:$AT$39,MATCH($A9,'1組'!$AS$6:$AS$39,0),38)) -> 804 | F9: =IF(ISERROR(INDEX('1組'!$E$6:$AT$39,MATCH($A9,'1組'!$AS$6:$AS$39,0),39)),"",INDEX('1組'!$E$6:$AT$39,MATCH($A9,'1組'!$AS$6:$AS$39,0),39)) -> 99 | G9: =IF(ISERROR(INDEX('1組'!$E$6:$AT$39,MATCH($A9,'1組'!$AS$6:$AS$39,0),42)),"",INDEX('1組'!$E$6:$AT$39,MATCH($A9,'1組'!$AS$6:$AS$39,0),42)) -> 120
A10: 9 | B10: =IF(ISERROR(INDEX('1組'!$E$6:$AS$39,MATCH($A10,'1組'!$AS$6:$AS$39,0),1)),"",INDEX('1組'!$E$6:$AS$39,MATCH($A10,'1組'!$AS$6:$AS$39,0),1)) -> 鷲尾 | C10: =IF(ISERROR(INDEX('1組'!$E$6:$AT$39,MATCH($A10,'1組'!$AS$6:$AS$39,0),36)),"",INDEX('1組'!$E$6:$AT$39,MATCH($A10,'1組'!$AS$6:$AS$39,0),36)) -> 2 | D10: =IF(ISERROR(INDEX('1組'!$E$6:$AT$39,MATCH($A10,'1組'!$AS$6:$AS$39,0),37)),"",INDEX('1組'!$E$6:$AT$39,MATCH($A10,'1組'!$AS$6:$AS$39,0),37)) -> 4 | E10: =IF(ISERROR(INDEX('1組'!$E$6:$AT$39,MATCH($A10,'1組'!$AS$6:$AS$39,0),38)),"",INDEX('1組'!$E$6:$AT$39,MATCH($A10,'1組'!$AS$6:$AS$39,0),38)) -> 785 | F10: =IF(ISERROR(INDEX('1組'!$E$6:$AT$39,MATCH($A10,'1組'!$AS$6:$AS$39,0),39)),"",INDEX('1組'!$E$6:$AT$39,MATCH($A10,'1組'!$AS$6:$AS$39,0),39)) -> 288 | G10: =IF(ISERROR(INDEX('1組'!$E$6:$AT$39,MATCH($A10,'1組'!$AS$6:$AS$39,0),42)),"",INDEX('1組'!$E$6:$AT$39,MATCH($A10,'1組'!$AS$6:$AS$39,0),42)) -> 103
A11: 10 | B11: =IF(ISERROR(INDEX('1組'!$E$6:$AS$39,MATCH($A11,'1組'!$AS$6:$AS$39,0),1)),"",INDEX('1組'!$E$6:$AS$39,MATCH($A11,'1組'!$AS$6:$AS$39,0),1)) -> 山田 晋之 | C11: =IF(ISERROR(INDEX('1組'!$E$6:$AT$39,MATCH($A11,'1組'!$AS$6:$AS$39,0),36)),"",INDEX('1組'!$E$6:$AT$39,MATCH($A11,'1組'!$AS$6:$AS$39,0),36)) -> 2 | D11: =IF(ISERROR(INDEX('1組'!$E$6:$AT$39,MATCH($A11,'1組'!$AS$6:$AS$39,0),37)),"",INDEX('1組'!$E$6:$AT$39,MATCH($A11,'1組'!$AS$6:$AS$39,0),37)) -> 4 | E11: =IF(ISERROR(INDEX('1組'!$E$6:$AT$39,MATCH($A11,'1組'!$AS$6:$AS$39,0),38)),"",INDEX('1組'!$E$6:$AT$39,MATCH($A11,'1組'!$AS$6:$AS$39,0),38)) -> 757 | F11: =IF(ISERROR(INDEX('1組'!$E$6:$AT$39,MATCH($A11,'1組'!$AS$6:$AS$39,0),39)),"",INDEX('1組'!$E$6:$AT$39,MATCH($A11,'1組'!$AS$6:$AS$39,0),39)) -> 293 | G11: =IF(ISERROR(INDEX('1組'!$E$6:$AT$39,MATCH($A11,'1組'!$AS$6:$AS$39,0),42)),"",INDEX('1組'!$E$6:$AT$39,MATCH($A11,'1組'!$AS$6:$AS$39,0),42)) -> 0
A12: 11 | B12: =IF(ISERROR(INDEX('1組'!$E$6:$AS$39,MATCH($A12,'1組'!$AS$6:$AS$39,0),1)),"",INDEX('1組'!$E$6:$AS$39,MATCH($A12,'1組'!$AS$6:$AS$39,0),1)) -> 水田 | C12: =IF(ISERROR(INDEX('1組'!$E$6:$AT$39,MATCH($A12,'1組'!$AS$6:$AS$39,0),36)),"",INDEX('1組'!$E$6:$AT$39,MATCH($A12,'1組'!$AS$6:$AS$39,0),36)) -> 2 | D12: =IF(ISERROR(INDEX('1組'!$E$6:$AT$39,MATCH($A12,'1組'!$AS$6:$AS$39,0),37)),"",INDEX('1組'!$E$6:$AT$39,MATCH($A12,'1組'!$AS$6:$AS$39,0),37)) -> 4 | E12: =IF(ISERROR(INDEX('1組'!$E$6:$AT$39,MATCH($A12,'1組'!$AS$6:$AS$39,0),38)),"",INDEX('1組'!$E$6:$AT$39,MATCH($A12,'1組'!$AS$6:$AS$39,0),38)) -> 691 | F12: =IF(ISERROR(INDEX('1組'!$E$6:$AT$39,MATCH($A12,'1組'!$AS$6:$AS$39,0),39)),"",INDEX('1組'!$E$6:$AT$39,MATCH($A12,'1組'!$AS$6:$AS$39,0),39)) -> 176 | G12: =IF(ISERROR(INDEX('1組'!$E$6:$AT$39,MATCH($A12,'1組'!$AS$6:$AS$39,0),42)),"",INDEX('1組'!$E$6:$AT$39,MATCH($A12,'1組'!$AS$6:$AS$39,0),42)) -> 0
A13: 12 | B13: =IF(ISERROR(INDEX('1組'!$E$6:$AS$39,MATCH($A13,'1組'!$AS$6:$AS$39,0),1)),"",INDEX('1組'!$E$6:$AS$39,MATCH($A13,'1組'!$AS$6:$AS$39,0),1)) -> 宮野 | C13: =IF(ISERROR(INDEX('1組'!$E$6:$AT$39,MATCH($A13,'1組'!$AS$6:$AS$39,0),36)),"",INDEX('1組'!$E$6:$AT$39,MATCH($A13,'1組'!$AS$6:$AS$39,0),36)) -> 1 | D13: =IF(ISERROR(INDEX('1組'!$E$6:$AT$39,MATCH($A13,'1組'!$AS$6:$AS$39,0),37)),"",INDEX('1組'!$E$6:$AT$39,MATCH($A13,'1組'!$AS$6:$AS$39,0),37)) -> 5 | E13: =IF(ISERROR(INDEX('1組'!$E$6:$AT$39,MATCH($A13,'1組'!$AS$6:$AS$39,0),38)),"",INDEX('1組'!$E$6:$AT$39,MATCH($A13,'1組'!$AS$6:$AS$39,0),38)) -> 528 | F13: =IF(ISERROR(INDEX('1組'!$E$6:$AT$39,MATCH($A13,'1組'!$AS$6:$AS$39,0),39)),"",INDEX('1組'!$E$6:$AT$39,MATCH($A13,'1組'!$AS$6:$AS$39,0),39)) -> 141 | G13: =IF(ISERROR(INDEX('1組'!$E$6:$AT$39,MATCH($A13,'1組'!$AS$6:$AS$39,0),42)),"",INDEX('1組'!$E$6:$AT$39,MATCH($A13,'1組'!$AS$6:$AS$39,0),42)) -> 0
A14: 13 | B14: =IF(ISERROR(INDEX('1組'!$E$6:$AS$39,MATCH($A14,'1組'!$AS$6:$AS$39,0),1)),"",INDEX('1組'!$E$6:$AS$39,MATCH($A14,'1組'!$AS$6:$AS$39,0),1)) -> 長谷川 | C14: =IF(ISERROR(INDEX('1組'!$E$6:$AT$39,MATCH($A14,'1組'!$AS$6:$AS$39,0),36)),"",INDEX('1組'!$E$6:$AT$39,MATCH($A14,'1組'!$AS$6:$AS$39,0),36)) -> 1 | D14: =IF(ISERROR(INDEX('1組'!$E$6:$AT$39,MATCH($A14,'1組'!$AS$6:$AS$39,0),37)),"",INDEX('1組'!$E$6:$AT$39,MATCH($A14,'1組'!$AS$6:$AS$39,0),37)) -> 5 | E14: =IF(ISERROR(INDEX('1組'!$E$6:$AT$39,MATCH($A14,'1組'!$AS$6:$AS$39,0),38)),"",INDEX('1組'!$E$6:$AT$39,MATCH($A14,'1組'!$AS$6:$AS$39,0),38)) -> 518 | F14: =IF(ISERROR(INDEX('1組'!$E$6:$AT$39,MATCH($A14,'1組'!$AS$6:$AS$39,0),39)),"",INDEX('1組'!$E$6:$AT$39,MATCH($A14,'1組'!$AS$6:$AS$39,0),39)) -> 102 | G14: =IF(ISERROR(INDEX('1組'!$E$6:$AT$39,MATCH($A14,'1組'!$AS$6:$AS$39,0),42)),"",INDEX('1組'!$E$6:$AT$39,MATCH($A14,'1組'!$AS$6:$AS$39,0),42)) -> 0
A15: 14 | B15: =IF(ISERROR(INDEX('1組'!$E$6:$AS$39,MATCH($A15,'1組'!$AS$6:$AS$39,0),1)),"",INDEX('1組'!$E$6:$AS$39,MATCH($A15,'1組'!$AS$6:$AS$39,0),1)) ->  | C15: =IF(ISERROR(INDEX('1組'!$E$6:$AT$39,MATCH($A15,'1組'!$AS$6:$AS$39,0),36)),"",INDEX('1組'!$E$6:$AT$39,MATCH($A15,'1組'!$AS$6:$AS$39,0),36)) ->  | D15: =IF(ISERROR(INDEX('1組'!$E$6:$AT$39,MATCH($A15,'1組'!$AS$6:$AS$39,0),37)),"",INDEX('1組'!$E$6:$AT$39,MATCH($A15,'1組'!$AS$6:$AS$39,0),37)) ->  | E15: =IF(ISERROR(INDEX('1組'!$E$6:$AT$39,MATCH($A15,'1組'!$AS$6:$AS$39,0),38)),"",INDEX('1組'!$E$6:$AT$39,MATCH($A15,'1組'!$AS$6:$AS$39,0),38)) ->  | F15: =IF(ISERROR(INDEX('1組'!$E$6:$AT$39,MATCH($A15,'1組'!$AS$6:$AS$39,0),39)),"",INDEX('1組'!$E$6:$AT$39,MATCH($A15,'1組'!$AS$6:$AS$39,0),39)) ->  | G15: =IF(ISERROR(INDEX('1組'!$E$6:$AT$39,MATCH($A15,'1組'!$AS$6:$AS$39,0),42)),"",INDEX('1組'!$E$6:$AT$39,MATCH($A15,'1組'!$AS$6:$AS$39,0),42)) -> 
A16: 15 | B16: =IF(ISERROR(INDEX('1組'!$E$6:$AS$39,MATCH($A16,'1組'!$AS$6:$AS$39,0),1)),"",INDEX('1組'!$E$6:$AS$39,MATCH($A16,'1組'!$AS$6:$AS$39,0),1)) ->  | C16: =IF(ISERROR(INDEX('1組'!$E$6:$AT$39,MATCH($A16,'1組'!$AS$6:$AS$39,0),36)),"",INDEX('1組'!$E$6:$AT$39,MATCH($A16,'1組'!$AS$6:$AS$39,0),36)) ->  | D16: =IF(ISERROR(INDEX('1組'!$E$6:$AT$39,MATCH($A16,'1組'!$AS$6:$AS$39,0),37)),"",INDEX('1組'!$E$6:$AT$39,MATCH($A16,'1組'!$AS$6:$AS$39,0),37)) ->  | E16: =IF(ISERROR(INDEX('1組'!$E$6:$AT$39,MATCH($A16,'1組'!$AS$6:$AS$39,0),38)),"",INDEX('1組'!$E$6:$AT$39,MATCH($A16,'1組'!$AS$6:$AS$39,0),38)) ->  | F16: =IF(ISERROR(INDEX('1組'!$E$6:$AT$39,MATCH($A16,'1組'!$AS$6:$AS$39,0),39)),"",INDEX('1組'!$E$6:$AT$39,MATCH($A16,'1組'!$AS$6:$AS$39,0),39)) ->  | G16: =IF(ISERROR(INDEX('1組'!$E$6:$AT$39,MATCH($A16,'1組'!$AS$6:$AS$39,0),42)),"",INDEX('1組'!$E$6:$AT$39,MATCH($A16,'1組'!$AS$6:$AS$39,0),42)) -> 
A17: 16 | B17: =IF(ISERROR(INDEX('1組'!$E$6:$AS$39,MATCH($A17,'1組'!$AS$6:$AS$39,0),1)),"",INDEX('1組'!$E$6:$AS$39,MATCH($A17,'1組'!$AS$6:$AS$39,0),1)) ->  | C17: =IF(ISERROR(INDEX('1組'!$E$6:$AT$39,MATCH($A17,'1組'!$AS$6:$AS$39,0),36)),"",INDEX('1組'!$E$6:$AT$39,MATCH($A17,'1組'!$AS$6:$AS$39,0),36)) ->  | D17: =IF(ISERROR(INDEX('1組'!$E$6:$AT$39,MATCH($A17,'1組'!$AS$6:$AS$39,0),37)),"",INDEX('1組'!$E$6:$AT$39,MATCH($A17,'1組'!$AS$6:$AS$39,0),37)) ->  | E17: =IF(ISERROR(INDEX('1組'!$E$6:$AT$39,MATCH($A17,'1組'!$AS$6:$AS$39,0),38)),"",INDEX('1組'!$E$6:$AT$39,MATCH($A17,'1組'!$AS$6:$AS$39,0),38)) ->  | F17: =IF(ISERROR(INDEX('1組'!$E$6:$AT$39,MATCH($A17,'1組'!$AS$6:$AS$39,0),39)),"",INDEX('1組'!$E$6:$AT$39,MATCH($A17,'1組'!$AS$6:$AS$39,0),39)) ->  | G17: =IF(ISERROR(INDEX('1組'!$E$6:$AT$39,MATCH($A17,'1組'!$AS$6:$AS$39,0),42)),"",INDEX('1組'!$E$6:$AT$39,MATCH($A17,'1組'!$AS$6:$AS$39,0),42)) -> 
A18: 17 | B18: =IF(ISERROR(INDEX('1組'!$E$6:$AS$39,MATCH($A18,'1組'!$AS$6:$AS$39,0),1)),"",INDEX('1組'!$E$6:$AS$39,MATCH($A18,'1組'!$AS$6:$AS$39,0),1)) ->  | C18: =IF(ISERROR(INDEX('1組'!$E$6:$AT$39,MATCH($A18,'1組'!$AS$6:$AS$39,0),36)),"",INDEX('1組'!$E$6:$AT$39,MATCH($A18,'1組'!$AS$6:$AS$39,0),36)) ->  | D18: =IF(ISERROR(INDEX('1組'!$E$6:$AT$39,MATCH($A18,'1組'!$AS$6:$AS$39,0),37)),"",INDEX('1組'!$E$6:$AT$39,MATCH($A18,'1組'!$AS$6:$AS$39,0),37)) ->  | E18: =IF(ISERROR(INDEX('1組'!$E$6:$AT$39,MATCH($A18,'1組'!$AS$6:$AS$39,0),38)),"",INDEX('1組'!$E$6:$AT$39,MATCH($A18,'1組'!$AS$6:$AS$39,0),38)) ->  | F18: =IF(ISERROR(INDEX('1組'!$E$6:$AT$39,MATCH($A18,'1組'!$AS$6:$AS$39,0),39)),"",INDEX('1組'!$E$6:$AT$39,MATCH($A18,'1組'!$AS$6:$AS$39,0),39)) ->  | G18: =IF(ISERROR(INDEX('1組'!$E$6:$AT$39,MATCH($A18,'1組'!$AS$6:$AS$39,0),42)),"",INDEX('1組'!$E$6:$AT$39,MATCH($A18,'1組'!$AS$6:$AS$39,0),42)) -> 
